Service Delivery Area(T),Service Delivery Team(T),ExpenditureGroup(T),Account(T),Supplier Name(T),Trans Date,Amount
Adult Social Care,ASC Prevention & Enablement,Third Party Payments,Homecare Expenditure,Brockton Care LTD,21/07/2022,"16,100.00"
Adult Social Care,ASC Prevention & Enablement,Transport-Related Expenditure,Taxi Costs,Go Carz,07/07/2022,327.60
Adult Social Care,ASC Prevention & Enablement,Transport-Related Expenditure,Taxi Costs,Telford and Wrekin Community Enterprise LTD,21/07/2022,459.90
Adult Social Care,ASC Prevention & Enablement,Transport-Related Expenditure,Taxi Costs,Go Carz,21/07/2022,865.56
Adult Social Care,ASC Prevention & Enablement,Transport-Related Expenditure,Taxi Costs,Go Carz,21/07/2022,561.60
Adult Social Care,ASC Prevention & Enablement,Transport-Related Expenditure,Taxi Costs,Go Carz,21/07/2022,575.00
Adult Social Care,ASC Prevention & Enablement,Transport-Related Expenditure,Taxi Costs,Telford and Wrekin Community Enterprise LTD,21/07/2022,280.77
Adult Social Care,ASC Prevention & Enablement,Transport-Related Expenditure,Taxi Costs,Go Carz,21/07/2022,183.72
Adult Social Care,ASC Prevention & Enablement,Third Party Payments,Homecare Expenditure,Medgen LTD,07/07/2022,995.69
Adult Social Care,ASC Prevention & Enablement,Third Party Payments,Homecare Expenditure,Medgen LTD,07/07/2022,997.09
Adult Social Care,ASC Prevention & Enablement,Third Party Payments,Homecare Expenditure,Medgen LTD,21/07/2022,"1,264.81"
Adult Social Care,ASC Prevention & Enablement,Third Party Payments,Homecare Expenditure,Medgen LTD,21/07/2022,480.16
Adult Social Care,ASC Prevention & Enablement,Employees,Agency Supply Costs,Reed Talent Solutions Ltd,07/07/2022,"1,080.00"
Adult Social Care,ASC Prevention & Enablement,Employees,Agency Supply Costs,Reed Talent Solutions Ltd,21/07/2022,"1,728.00"
Adult Social Care,ASC Prevention & Enablement,Employees,Agency Supply Costs,Reed Talent Solutions Ltd,21/07/2022,"1,728.00"
Adult Social Care,ASC Prevention & Enablement,Employees,Agency Supply Costs,Reed Talent Solutions Ltd,21/07/2022,"2,160.00"
Adult Social Care,ASC Prevention & Enablement,Employees,Agency Supply Costs,Reed Talent Solutions Ltd,21/07/2022,"2,160.00"
Adult Social Care,ASC Prevention & Enablement,Employees,Agency Supply Costs,Reed Talent Solutions Ltd,21/07/2022,"2,160.00"
Adult Social Care,ASC Prevention & Enablement,Employees,Other Employee Costs,Medgen LTD,07/07/2022,"3,013.79"
Adult Social Care,ASC Prevention & Enablement,Employees,Other Employee Costs,Medgen LTD,07/07/2022,"1,188.80"
Adult Social Care,ASC Prevention & Enablement,Supplies & Services,Mobile Phones,EE LTD EQUIPMENT ,14/07/2022,142.00
Adult Social Care,"Commissioning, Procurement & Brokerage",Supplies & Services,Registration / Licence Fees,iESE Innovation Ltd,06/07/2022,"15,000.00"
Adult Social Care,"Commissioning, Procurement & Brokerage",Supplies & Services,Other Grants (Expenses),TELFORD & WREKIN CVS,29/07/2022,"90,000.00"
Adult Social Care,"Commissioning, Procurement & Brokerage",Supplies & Services,Other Grants (Expenses),TELFORD & WREKIN CVS,18/07/2022,"18,500.00"
Adult Social Care,"Commissioning, Procurement & Brokerage",Supplies & Services,Grants To Voluntary Organis,Doro Care Uk,22/07/2022,"5,217.17"
Adult Social Care,"Commissioning, Procurement & Brokerage",Supplies & Services,Grants To Voluntary Organis,Doro Care Uk,22/07/2022,"5,217.17"
Adult Social Care,"Commissioning, Procurement & Brokerage",Supplies & Services,Other Grants (Expenses),Doro Care Uk,22/07/2022,"3,815.12"
Adult Social Care,"Commissioning, Procurement & Brokerage",Supplies & Services,Other Grants (Expenses),Doro Care Uk,22/07/2022,"2,045.19"
Adult Social Care,"Commissioning, Procurement & Brokerage",Supplies & Services,Other Grants (Expenses),Doro Care Uk,22/07/2022,"3,815.12"
Adult Social Care,"Commissioning, Procurement & Brokerage",Supplies & Services,Other Grants (Expenses),Doro Care Uk,22/07/2022,"1,946.44"
Adult Social Care,"Commissioning, Procurement & Brokerage",Supplies & Services,Other Grants (Expenses),ANCHOR HOUSING TRUST,01/07/2022,133.33
Adult Social Care,"Commissioning, Procurement & Brokerage",Supplies & Services,Other Grants (Expenses),HANOVER HOUSING ASSOCIATION,01/07/2022,750.00
Adult Social Care,"Commissioning, Procurement & Brokerage",Supplies & Services,Other Grants (Expenses),OLD BEN HOMES,01/07/2022,433.33
Adult Social Care,"Commissioning, Procurement & Brokerage",Supplies & Services,Other Grants (Expenses),SANCTUARY HOUSING ASSOCIATION ,01/07/2022,610.70
Adult Social Care,"Commissioning, Procurement & Brokerage",Supplies & Services,Other Grants (Expenses),BROMFORD HOUSING ASSOCIATION LIMITED,01/07/2022,"36,666.67"
Adult Social Care,"Commissioning, Procurement & Brokerage",Supplies & Services,Other Grants (Expenses),TELFORD CHRISTIAN COUNCIL SUPPORTED HOUS,01/07/2022,"36,401.83"
Adult Social Care,"Commissioning, Procurement & Brokerage",Supplies & Services,Other Grants (Expenses),WREKIN HOUSING TRUST,01/07/2022,"25,568.33"
Adult Social Care,Community Social Work & Adult Safeguarding,Supplies & Services,Mobile Phones,EE LTD EQUIPMENT,14/07/2022,142.00
Adult Social Care,Community Social Work & Adult Safeguarding,Supplies & Services,Medical Consultants Fees,REDACTED PERSONAL INFORMATION,15/07/2022,"1,222.12"
Adult Social Care,Community Social Work (Principal Social Worker),Employees,Staff Training,SHROPSHIRE COUNCIL,12/07/2022,405.00
Adult Social Care,Community Social Work (Principal Social Worker),Premises-Related Expenditure,General Rents,Inclusion Housing CIC Ltd,18/07/2022,526.74
Adult Social Care,Community Social Work (Principal Social Worker),Premises-Related Expenditure,General Rents,Inclusion Housing CIC Ltd,08/07/2022,658.43
Adult Social Care,Community Social Work (Principal Social Worker),Third Party Payments,Other Care Purchasing,ACCORD HOUSING ASSOCIATION LTD ,08/07/2022,"11,764.28"
Adult Social Care,Community Social Work (Principal Social Worker),Supplies & Services,Other Grants (Expenses),Shropshire Parent and Carer Council ,29/07/2022,"50,000.00"
Adult Social Care,Community Social Work (Principal Social Worker),Transport-Related Expenditure,Transport,Go Carz,08/07/2022,"2,400.00"
Adult Social Care,My Options,Employees,Training Expenses,REDACTED PERSONAL INFORMATION,28/07/2022,"1,650.00"
Adult Social Care,My Options,Employees,Training Expenses,Opus Experts in Medicines Training,01/07/2022,144.90
Adult Social Care,My Options,Premises-Related Expenditure,Hire Of Rooms,MEETING POINT TRUST LTD,28/07/2022,180.00
Adult Social Care,My Options,Premises-Related Expenditure,Clean Mats & Toilet Requisites,PHS GROUP,15/07/2022,125.22
Adult Social Care,My Options,Supplies & Services,Equipment - Purchase,Sensory Toy Warehouse,28/07/2022,"1,749.25"
Adult Social Care,My Options,Transport-Related Expenditure,Taxi Costs,A-STAR TRANSPORT MIDLANDS LTD,25/07/2022,300.00
Adult Social Care,My Options,Transport-Related Expenditure,Licences,MOTION PICTURE LICENSING COMPANY,01/07/2022,411.79
Adult Social Care,My Options,Premises-Related Expenditure,Hire Of Rooms,DONNINGTON PARTNERSHIP,25/07/2022,210.00
Adult Social Care,My Options,Premises-Related Expenditure,Hire Of Rooms,Dawley Baptist Church,25/07/2022,450.00
Adult Social Care,My Options,Premises-Related Expenditure,Hire Of Rooms,Dawley Baptist Church,11/07/2022,400.00
Adult Social Care,My Options,Employees,Agency Supply Costs,Safehands Recruitment,06/07/2022,965.00
Adult Social Care,My Options,Employees,Agency Supply Costs,Safehands Recruitment,01/07/2022,700.00
Adult Social Care,My Options,Employees,Agency Supply Costs,Nurse Plus and Carer Plus (UK) Limited,15/07/2022,652.92
Adult Social Care,My Options,Employees,Agency Supply Costs,Nurse Plus and Carer Plus (UK) Limited,28/07/2022,"2,019.91"
Adult Social Care,My Options,Employees,Agency Supply Costs,Safehands Recruitment,28/07/2022,"3,166.00"
Adult Social Care,My Options,Employees,Agency Supply Costs,Safehands Recruitment,19/07/2022,"1,143.00"
Adult Social Care,My Options,Employees,Agency Supply Costs,Nurse Plus and Carer Plus (UK) Limited,22/07/2022,"1,770.73"
Adult Social Care,My Options,Employees,Agency Supply Costs,Safehands Recruitment,14/07/2022,"1,560.00"
Adult Social Care,My Options,Premises-Related Expenditure,Clean Mats & Toilet Requisites,BERWICK CARE EQUIPMENT LTD,06/07/2022,288.23
Adult Social Care,My Options,Premises-Related Expenditure,R&M -Buildings DLO Charge,A E C & Co ,13/07/2022,108.00
Adult Social Care,My Options,Premises-Related Expenditure,Clean Mats & Toilet Requisites,BERWICK CARE EQUIPMENT LTD,28/07/2022,223.71
Adult Social Care,My Options,Premises-Related Expenditure,Hire Of Rooms,All Saints Wellington,28/07/2022,300.00
Adult Social Care,My Options,Premises-Related Expenditure,Clean Mats & Toilet Requisites,BERWICK CARE EQUIPMENT LTD,22/07/2022,232.83
Adult Social Care,My Options,Supplies & Services,Equipment - Purchase,A E C & Co ,13/07/2022,748.00
Adult Social Care,My Options,Supplies & Services,Equipment - Purchase,A E C & Co ,13/07/2022,478.07
Adult Social Care,My Options,Employees,Agency Supply Costs,JN Recruitment,26/07/2022,738.39
Adult Social Care,My Options,Employees,Agency Supply Costs,JN Recruitment,06/07/2022,668.27
Adult Social Care,My Options,Employees,Agency Supply Costs,Safehands Recruitment,06/07/2022,385.00
Adult Social Care,My Options,Employees,Agency Supply Costs,Safehands Recruitment,06/07/2022,658.00
Adult Social Care,My Options,Employees,Agency Supply Costs,Safehands Recruitment,06/07/2022,669.00
Adult Social Care,My Options,Employees,Agency Supply Costs,Safehands Recruitment,06/07/2022,"2,298.25"
Adult Social Care,My Options,Employees,Agency Supply Costs,Safehands Recruitment,06/07/2022,728.00
Adult Social Care,My Options,Employees,Agency Supply Costs,Nurse Plus and Carer Plus (UK) Limited,06/07/2022,421.15
Adult Social Care,My Options,Employees,Agency Supply Costs,Nurse Plus and Carer Plus (UK) Limited,06/07/2022,125.65
Adult Social Care,My Options,Employees,Agency Supply Costs,Safehands Recruitment,06/07/2022,623.00
Adult Social Care,My Options,Employees,Agency Supply Costs,Safehands Recruitment,06/07/2022,"1,582.00"
Adult Social Care,My Options,Employees,Agency Supply Costs,Nurse Plus and Carer Plus (UK) Limited,06/07/2022,345.50
Adult Social Care,My Options,Employees,Agency Supply Costs,Nurse Plus and Carer Plus (UK) Limited,06/07/2022,150.50
Adult Social Care,My Options,Employees,Agency Supply Costs,Safehands Recruitment,14/07/2022,651.00
Adult Social Care,My Options,Employees,Agency Supply Costs,Safehands Recruitment,14/07/2022,504.00
Adult Social Care,My Options,Employees,Agency Supply Costs,Safehands Recruitment,14/07/2022,"1,092.50"
Adult Social Care,My Options,Employees,Agency Supply Costs,Safehands Recruitment,14/07/2022,754.39
Adult Social Care,My Options,Employees,Agency Supply Costs,Safehands Recruitment,14/07/2022,684.00
Adult Social Care,My Options,Employees,Agency Supply Costs,Safehands Recruitment,14/07/2022,581.00
Adult Social Care,My Options,Employees,Agency Supply Costs,Safehands Recruitment,14/07/2022,"1,742.00"
Adult Social Care,My Options,Employees,Agency Supply Costs,Nurse Plus and Carer Plus (UK) Limited,22/07/2022,"3,922.56"
Adult Social Care,My Options,Employees,Agency Supply Costs,Nurse Plus and Carer Plus (UK) Limited,22/07/2022,195.00
Adult Social Care,My Options,Employees,Agency Supply Costs,Iconic Care Limited,22/07/2022,180.00
Adult Social Care,My Options,Employees,Agency Supply Costs,Safehands Recruitment,25/07/2022,551.00
Adult Social Care,My Options,Employees,Agency Supply Costs,Safehands Recruitment,25/07/2022,270.75
Adult Social Care,My Options,Employees,Agency Supply Costs,Safehands Recruitment,25/07/2022,"1,234.00"
Adult Social Care,My Options,Employees,Agency Supply Costs,Safehands Recruitment,01/07/2022,651.00
Adult Social Care,My Options,Employees,Agency Supply Costs,Safehands Recruitment,01/07/2022,638.00
Adult Social Care,My Options,Employees,Agency Supply Costs,Safehands Recruitment,01/07/2022,"1,759.75"
Adult Social Care,My Options,Employees,Agency Supply Costs,Safehands Recruitment,01/07/2022,200.00
Adult Social Care,My Options,Employees,Agency Supply Costs,Safehands Recruitment,01/07/2022,"1,591.00"
Adult Social Care,My Options,Employees,Agency Supply Costs,Safehands Recruitment,01/07/2022,190.00
Adult Social Care,My Options,Employees,Agency Supply Costs,Safehands Recruitment,01/07/2022,683.00
Adult Social Care,My Options,Employees,Agency Supply Costs,JN Recruitment,15/07/2022,457.88
Adult Social Care,My Options,Employees,Agency Supply Costs,Nurse Plus and Carer Plus (UK) Limited,15/07/2022,"3,169.70"
Adult Social Care,My Options,Employees,Agency Supply Costs,Safehands Recruitment,15/07/2022,492.50
Adult Social Care,My Options,Employees,Agency Supply Costs,Nurse Plus and Carer Plus (UK) Limited,11/07/2022,"4,104.15"
Adult Social Care,My Options,Employees,Agency Supply Costs,Safehands Recruitment,19/07/2022,"2,297.00"
Adult Social Care,My Options,Employees,Agency Supply Costs,Safehands Recruitment,19/07/2022,651.75
Adult Social Care,My Options,Employees,Agency Supply Costs,Safehands Recruitment,19/07/2022,600.50
Adult Social Care,My Options,Employees,Agency Supply Costs,Safehands Recruitment,19/07/2022,678.50
Adult Social Care,My Options,Employees,Agency Supply Costs,Safehands Recruitment,15/07/2022,408.50
Adult Social Care,My Options,Employees,Agency Supply Costs,Nurse Plus and Carer Plus (UK) Limited,28/07/2022,"4,613.09"
Adult Social Care,My Options,Employees,Agency Supply Costs,Nurse Plus and Carer Plus (UK) Limited,28/07/2022,125.65
Adult Social Care,My Options,Employees,Agency Supply Costs,Safehands Recruitment,28/07/2022,242.50
Adult Social Care,My Options,Employees,Agency Supply Costs,Safehands Recruitment,28/07/2022,548.50
Adult Social Care,My Options,Employees,Agency Supply Costs,Safehands Recruitment,28/07/2022,551.00
Adult Social Care,My Options,Employees,Agency Supply Costs,Safehands Recruitment,28/07/2022,"2,271.75"
Adult Social Care,My Options,Employees,Agency Supply Costs,Safehands Recruitment,28/07/2022,"1,510.50"
Adult Social Care,My Options,Supplies & Services,Computer Software (Maint),Access UK Ltd,25/07/2022,644.40
Adult Social Care,My Options,Supplies & Services,Adult Flexi / Day Care,REDACTED PERSONAL INFORMATION,13/07/2022,160.20
Adult Social Care,My Options,Supplies & Services,Adult Flexi / Day Care,REDACTED PERSONAL INFORMATION,13/07/2022,373.80
Adult Social Care,My Options,Supplies & Services,Adult Flexi / Day Care,REDACTED PERSONAL INFORMATION,06/07/2022,427.20
Adult Social Care,My Options,Supplies & Services,Adult Flexi / Day Care,REDACTED PERSONAL INFORMATION,06/07/2022,587.40
Adult Social Care,My Options,Supplies & Services,Other Travel,REDACTED PERSONAL INFORMATION,06/07/2022,144.00
Adult Social Care,My Options,Supplies & Services,Other Travel,REDACTED PERSONAL INFORMATION,06/07/2022,198.00
Adult Social Care,My Options,Supplies & Services,Adult Flexi / Day Care,REDACTED PERSONAL INFORMATION,13/07/2022,106.80
Adult Social Care,My Options,Supplies & Services,Adult Flexi / Day Care,REDACTED PERSONAL INFORMATION,13/07/2022,106.80
Adult Social Care,My Options,Supplies & Services,Respite Care,REDACTED PERSONAL INFORMATION,25/07/2022,632.40
Adult Social Care,My Options,Supplies & Services,Respite Care,REDACTED PERSONAL INFORMATION,25/07/2022,"1,372.40"
Adult Social Care,My Options,Supplies & Services,Respite Care,REDACTED PERSONAL INFORMATION,25/07/2022,953.08
Adult Social Care,My Options,Supplies & Services,Respite Care,REDACTED PERSONAL INFORMATION,06/07/2022,238.27
Adult Social Care,My Options,Supplies & Services,Respite Care,REDACTED PERSONAL INFORMATION,13/07/2022,373.80
Adult Social Care,My Options,Supplies & Services,Respite Care,REDACTED PERSONAL INFORMATION,21/07/2022,476.54
Adult Social Care,My Options,Supplies & Services,Respite Care,REDACTED PERSONAL INFORMATION,28/07/2022,238.27
Adult Social Care,My Options,Supplies & Services,Respite Care,REDACTED PERSONAL INFORMATION,25/07/2022,"1,179.24"
Adult Social Care,My Options,Employees,Agency Supply Costs,Iconic Care Limited,22/07/2022,"7,887.00"
Adult Social Care,My Options,Employees,Agency Supply Costs,Iconic Care Limited,22/07/2022,"6,421.50"
Adult Social Care,My Options,Employees,Agency Supply Costs,Iconic Care Limited,22/07/2022,534.00
Adult Social Care,My Options,Employees,Agency Supply Costs,Iconic Care Limited,22/07/2022,"6,949.75"
Adult Social Care,My Options,Employees,Agency Supply Costs,Iconic Care Limited,22/07/2022,"6,207.50"
Adult Social Care,My Options,Employees,Agency Supply Costs,Iconic Care Limited,22/07/2022,888.00
Adult Social Care,My Options,Employees,Agency Supply Costs,Iconic Care Limited,22/07/2022,"6,972.58"
Adult Social Care,My Options,Employees,Agency Supply Costs,Iconic Care Limited,22/07/2022,534.00
Adult Social Care,My Options,Employees,Agency Supply Costs,Iconic Care Limited,22/07/2022,"2,151.00"
Adult Social Care,My Options,Employees,Agency Supply Costs,Iconic Care Limited,22/07/2022,"1,062.00"
Adult Social Care,My Options,Employees,Staff Training,SHROPSHIRE COUNCIL,01/07/2022,129.00
Adult Social Care,My Options,Employees,Staff Training,SHROPSHIRE COUNCIL ,01/07/2022,172.00
Adult Social Care,Prevention & Independence - Older Adults & Disability,Third Party Payments,Homecare Expenditure,Medgen LTD,06/07/2022,"1,112.65"
Adult Social Care,Prevention & Independence - Older Adults & Disability,Third Party Payments,Homecare Expenditure,Medgen LTD,06/07/2022,"2,654.03"
Adult Social Care,Prevention & Independence - Older Adults & Disability,Third Party Payments,Homecare Expenditure,Medgen LTD,06/07/2022,"1,857.57"
Adult Social Care,Prevention & Independence - Older Adults & Disability,Third Party Payments,Homecare Expenditure,Medgen LTD,06/07/2022,"2,597.98"
Adult Social Care,Prevention & Independence - Older Adults & Disability,Third Party Payments,Other Care Purchasing,SUPREME HOME CARE,28/07/2022,"1,746.00"
Adult Social Care,Prevention & Independence - Older Adults & Disability,Third Party Payments,Other Care Purchasing,SUPREME HOME CARE,28/07/2022,"3,492.00"
Adult Social Care,Prevention & Independence - Older Adults & Disability,Third Party Payments,Other Care Purchasing,Wrekin Clearances,28/07/2022,300.00
Adult Social Care,Prevention & Independence - Older Adults & Disability,Supplies & Services,Aids & Appliances,Alert-it Care Alarms,11/07/2022,680.00
Adult Social Care,Prevention & Independence - Older Adults & Disability,Supplies & Services,Aids & Appliances,Possum Ltd,09/07/2022,765.00
Adult Social Care,Prevention & Independence - Older Adults & Disability,Supplies & Services,Aids & Appliances,Easylink,29/07/2022,160.65
Adult Social Care,Prevention & Independence - Older Adults & Disability,Supplies & Services,Equipment - Repair,STANNAH LIFT SERVICES LTD,18/07/2022,380.00
Adult Social Care,Prevention & Independence - Older Adults & Disability,Supplies & Services,Equipment - Repair,STANNAH LIFT SERVICES LTD,18/07/2022,797.04
Adult Social Care,Prevention & Independence - Older Adults & Disability,Supplies & Services,Equipment - Repair,STANNAH LIFT SERVICES LTD,18/07/2022,227.47
Adult Social Care,Prevention & Independence - Older Adults & Disability,Supplies & Services,Equipment - Repair,STANNAH LIFT SERVICES LTD,18/07/2022,516.60
Adult Social Care,Prevention & Independence - Older Adults & Disability,Supplies & Services,Equipment - Repair,STANNAH LIFT SERVICES LTD,01/07/2022,683.40
Adult Social Care,Prevention & Independence - Older Adults & Disability,Supplies & Services,Equipment - Repair,STANNAH LIFT SERVICES LTD,18/07/2022,276.23
Adult Social Care,Prevention & Independence - Older Adults & Disability,Supplies & Services,Equipment - Repair,STANNAH LIFT SERVICES LTD,18/07/2022,244.00
Adult Social Care,Prevention & Independence - Older Adults & Disability,Supplies & Services,Equipment - Repair,STANNAH LIFT SERVICES LTD,18/07/2022,175.06
Adult Social Care,Prevention & Independence - Older Adults & Disability,Supplies & Services,Equipment - Repair,STANNAH LIFT SERVICES LTD,18/07/2022,428.55
Adult Social Care,Prevention & Independence - Older Adults & Disability,Supplies & Services,Equipment - Repair,STANNAH LIFT SERVICES LTD,18/07/2022,227.47
Adult Social Care,Prevention & Independence - Older Adults & Disability,Supplies & Services,Aids & Appliances,N Rehab Ltd,28/07/2022,867.60
Adult Social Care,Prevention & Independence - Older Adults & Disability,Supplies & Services,Aids & Appliances,OSPREY HEALTHCARE LTD,18/07/2022,105.00
Adult Social Care,Prevention & Independence - Older Adults & Disability,Supplies & Services,Aids & Appliances,BERWICK CARE EQUIPMENT LTD,15/07/2022,662.00
Adult Social Care,Prevention & Independence - Older Adults & Disability,Supplies & Services,Aids & Appliances,OSPREY HEALTHCARE LTD,20/07/2022,215.00
Adult Social Care,Prevention & Independence - Older Adults & Disability,Supplies & Services,Aids & Appliances,PRISM MEDICAL WESTHOLME DIVISION,12/07/2022,343.62
Adult Social Care,Prevention & Independence - Older Adults & Disability,Supplies & Services,Aids & Appliances,Mobility Smart Limited,28/07/2022,"7,650.00"
Adult Social Care,Prevention & Independence - Older Adults & Disability,Supplies & Services,Aids & Appliances,OSPREY HEALTHCARE LTD,20/07/2022,173.00
Adult Social Care,Prevention & Independence - Older Adults & Disability,Supplies & Services,Aids & Appliances,OSPREY HEALTHCARE LTD,20/07/2022,151.00
Adult Social Care,Prevention & Independence - Older Adults & Disability,Supplies & Services,Aids & Appliances,OSPREY HEALTHCARE LTD,20/07/2022,111.00
Adult Social Care,Prevention & Independence - Older Adults & Disability,Supplies & Services,Aids & Appliances,OSPREY HEALTHCARE LTD,20/07/2022,213.00
Adult Social Care,Prevention & Independence - Older Adults & Disability,Supplies & Services,Aids & Appliances,MANGAR INTERNATIONAL LTD,11/07/2022,200.00
Adult Social Care,Prevention & Independence - Older Adults & Disability,Supplies & Services,Aids & Appliances,BERWICK CARE EQUIPMENT LTD,11/07/2022,662.00
Adult Social Care,Prevention & Independence - Older Adults & Disability,Supplies & Services,Aids & Appliances,OSPREY HEALTHCARE LTD,15/07/2022,354.00
Adult Social Care,Prevention & Independence - Older Adults & Disability,Supplies & Services,Carriage/Delivery Charge,Wealden Rehab,21/07/2022,195.00
Adult Social Care,Prevention & Independence - Older Adults & Disability,Supplies & Services,Aids & Appliances,Wealden Rehab,21/07/2022,"2,701.83"
Adult Social Care,Prevention & Independence - Older Adults & Disability,Supplies & Services,Aids & Appliances,Nottingham Rehab Ltd,29/07/2022,740.87
Adult Social Care,Prevention & Independence - Older Adults & Disability,Supplies & Services,Aids & Appliances,SHROPSHIRE COMMUNITY HEALTH NHS TRUST,01/07/2022,"6,301.66"
Adult Social Care,Prevention & Independence - Older Adults & Disability,Employees,Agency Supply Costs,Reed Talent Solutions Ltd,06/07/2022,113.85
Adult Social Care,Prevention & Independence - Older Adults & Disability,Employees,Agency Supply Costs,Reed Talent Solutions Ltd,07/07/2022,"1,080.00"
Adult Social Care,Prevention & Independence - Older Adults & Disability,Employees,Agency Supply Costs,Reed Talent Solutions Ltd,07/07/2022,"1,800.00"
Adult Social Care,Prevention & Independence - Older Adults & Disability,Employees,Agency Supply Costs,Reed Talent Solutions Ltd,21/07/2022,"1,728.00"
Adult Social Care,Prevention & Independence - Older Adults & Disability,Employees,Agency Supply Costs,Reed Talent Solutions Ltd,21/07/2022,"2,160.00"
Adult Social Care,Prevention & Independence - Older Adults & Disability,Employees,Agency Supply Costs,Reed Talent Solutions Ltd,21/07/2022,449.64
Adult Social Care,Prevention & Independence - Older Adults & Disability,Employees,Agency Supply Costs,Reed Talent Solutions Ltd,21/07/2022,"2,160.00"
Adult Social Care,Prevention & Independence - Older Adults & Disability,Employees,Agency Supply Costs,Reed Talent Solutions Ltd,21/07/2022,"1,800.00"
Adult Social Care,Prevention & Independence - Older Adults & Disability,Employees,Agency Supply Costs,Reed Talent Solutions Ltd,21/07/2022,"2,160.00"
Adult Social Care,Prevention & Independence - Older Adults & Disability,Employees,Agency Supply Costs,Reed Talent Solutions Ltd,21/07/2022,"2,160.00"
Adult Social Care,Prevention & Independence - Older Adults & Disability,Employees,Agency Supply Costs,Reed Talent Solutions Ltd,21/07/2022,"2,160.00"
Adult Social Care,Prevention & Independence - Older Adults & Disability,Employees,Agency Supply Costs,Reed Talent Solutions Ltd,21/07/2022,443.25
Children�s Safeguarding & Family Support,Child Protection & Family Support,Supplies & Services,Grants To Voluntary Organis,YMCA,12/07/2022,"19,876.40"
Children�s Safeguarding & Family Support,Child Protection & Family Support,Premises-Related Expenditure,Hire Of Rooms,AFC Telford Holdings Limited,18/07/2022,"1,317.00"
Children�s Safeguarding & Family Support,Child Protection & Family Support,Supplies & Services,Materials,Telford Balloons,01/07/2022,156.00
Children�s Safeguarding & Family Support,Child Protection & Family Support,Supplies & Services,Other Grants (Expenses),REDACTED PERSONAL INFORMATION,19/07/2022,500.00
Children�s Safeguarding & Family Support,Child Protection & Family Support,Supplies & Services,Other Grants (Expenses),REDACTED PERSONAL INFORMATION,19/07/2022,300.00
Children�s Safeguarding & Family Support,Child Protection & Family Support,Supplies & Services,Other Grants (Expenses),REDACTED PERSONAL INFORMATION,19/07/2022,439.20
Children�s Safeguarding & Family Support,Child Protection & Family Support,Supplies & Services,Other Services,L R Social Care Solutions Ltd,01/07/2022,"1,125.00"
Children�s Safeguarding & Family Support,Child Protection & Family Support,Employees,Agency Supply Costs,Xyla Health & Social Services,21/07/2022,"15,593.00"
Children�s Safeguarding & Family Support,Child Protection & Family Support,Employees,Agency Supply Costs,Xyla Health & Social Services,21/07/2022,"15,593.00"
Children�s Safeguarding & Family Support,Child Protection & Family Support,Employees,Agency Supply Costs,Xyla Health & Social Services,21/07/2022,"15,593.00"
Children�s Safeguarding & Family Support,Child Protection & Family Support,Employees,Agency Supply Costs,Xyla Health & Social Services,21/07/2022,"13,056.00"
Children�s Safeguarding & Family Support,Child Protection & Family Support,Employees,Agency Supply Costs,Xyla Health & Social Services,21/07/2022,"13,056.00"
Children�s Safeguarding & Family Support,Child Protection & Family Support,Third Party Payments,Agency Services,Agape Homecare Limited,27/07/2022,612.00
Children�s Safeguarding & Family Support,Child Protection & Family Support,Employees,Staff Training,SHROPSHIRE COUNCIL ,12/07/2022,870.00
Children�s Safeguarding & Family Support,Child Protection & Family Support,Employees,Staff Training,Headsight,18/07/2022,"3,201.00"
Children�s Safeguarding & Family Support,Child Protection & Family Support,Employees,Staff Training,RAMADA TELFORD IRONBRIDGE,18/07/2022,208.33
Children�s Safeguarding & Family Support,Child Protection & Family Support,Employees,Staff Training,Institute of Family Therapy,11/07/2022,600.00
Children�s Safeguarding & Family Support,Child Protection & Family Support,Employees,Staff Training,THE HUB EVENTS,12/07/2022,580.00
Children�s Safeguarding & Family Support,Child Protection & Family Support,Supplies & Services,Consultancy,DWC Consulting Services Ltd,26/07/2022,"21,536.97"
Children�s Safeguarding & Family Support,Child Protection & Family Support,Employees,Staff Training,A C & Associates Ltd,18/07/2022,650.00
Children�s Safeguarding & Family Support,Child Protection & Family Support,Employees,Staff Training,Strengthening Practice,19/07/2022,325.00
Children�s Safeguarding & Family Support,Child Protection & Family Support,Supplies & Services,Other Services,ACPAS Limited,26/07/2022,190.65
Children�s Safeguarding & Family Support,Child Protection & Family Support,Third Party Payments,Joint Financing,Adoption Focus,26/07/2022,"54,630.00"
Children�s Safeguarding & Family Support,Family Connect & Childrens Centres,Premises-Related Expenditure,R&M -Building Other,Forde Hall Supplies Ltd,15/07/2022,350.00
Children�s Safeguarding & Family Support,Family Connect & Childrens Centres,Premises-Related Expenditure,R&M -Building Other,TAYLORS MECHANICAL H & P SERVICES LTD,15/07/2022,144.00
Children�s Safeguarding & Family Support,Family Connect & Childrens Centres,Premises-Related Expenditure,R&M -Building Other,JCE & SONS LTD,01/07/2022,143.72
Children�s Safeguarding & Family Support,Family Connect & Childrens Centres,Premises-Related Expenditure,R&M -Building Other,JCE & SONS LTD,01/07/2022,193.64
Children�s Safeguarding & Family Support,Family Connect & Childrens Centres,Supplies & Services,Other Services,TELFORD & WREKIN CITIZENS ADVICE BUREAU,25/07/2022,"3,333.34"
Children�s Safeguarding & Family Support,Family Connect & Childrens Centres,Supplies & Services,Bulk Refuse Contracts Hire,GREEN SKIPS LTD,01/07/2022,180.00
Children�s Safeguarding & Family Support,Family Connect & Childrens Centres,Supplies & Services,Other Services,TELFORD & WREKIN CITIZENS ADVICE BUREAU,25/07/2022,"3,333.33"
Children�s Safeguarding & Family Support,Family Connect & Childrens Centres,Supplies & Services,Other Services,TELFORD & WREKIN CITIZENS ADVICE BUREAU,25/07/2022,"3,333.33"
Children�s Safeguarding & Family Support,Family Connect & Childrens Centres,Supplies & Services,Mobile Phones,EE LTD EQUIPMENT ,14/07/2022,142.00
Children�s Safeguarding & Family Support,Family Connect & Childrens Centres,Supplies & Services,Consultancy,TRIPLE P UK LIMITED,07/07/2022,"1,798.50"
Children�s Safeguarding & Family Support,Family Connect & Childrens Centres,Supplies & Services,Stationery,Go Carz,19/07/2022,217.20
Children�s Safeguarding & Family Support,Family Connect & Childrens Centres,Supplies & Services,Stationery,MEETING POINT TRUST LTD,26/07/2022,149.58
Children�s Safeguarding & Family Support,"Family Placements, Children in Care, Leaving Care & Emergency Duty Team",Supplies & Services,Equipment - Repair,STANNAH LIFT SERVICES LTD,06/07/2022,220.57
Children�s Safeguarding & Family Support,"Family Placements, Children in Care, Leaving Care & Emergency Duty Team",Supplies & Services,Aids & Appliances,Jiraffe,12/07/2022,"1,697.00"
Children�s Safeguarding & Family Support,"Family Placements, Children in Care, Leaving Care & Emergency Duty Team",Supplies & Services,Aids & Appliances,MIDSHIRES MOBILITY GROUP,12/07/2022,404.25
Children�s Safeguarding & Family Support,"Family Placements, Children in Care, Leaving Care & Emergency Duty Team",Supplies & Services,Aids & Appliances,Jiraffe,09/07/2022,"1,832.00"
Children�s Safeguarding & Family Support,"Family Placements, Children in Care, Leaving Care & Emergency Duty Team",Supplies & Services,Aids & Appliances,MIDSHIRES MOBILITY GROUP,13/07/2022,"2,446.75"
Children�s Safeguarding & Family Support,"Family Placements, Children in Care, Leaving Care & Emergency Duty Team",Supplies & Services,Aids & Appliances,MIDSHIRES MOBILITY GROUP,13/07/2022,"2,733.00"
Children�s Safeguarding & Family Support,"Family Placements, Children in Care, Leaving Care & Emergency Duty Team",Supplies & Services,Aids & Appliances,Jiraffe,14/07/2022,650.00
Children�s Safeguarding & Family Support,"Family Placements, Children in Care, Leaving Care & Emergency Duty Team",Supplies & Services,Equipment - Repair,STANNAH LIFT SERVICES LTD,04/07/2022,290.57
Children�s Safeguarding & Family Support,"Family Placements, Children in Care, Leaving Care & Emergency Duty Team",Supplies & Services,Equipment - Repair,STANNAH LIFT SERVICES LTD,04/07/2022,185.41
Children�s Safeguarding & Family Support,"Family Placements, Children in Care, Leaving Care & Emergency Duty Team",Supplies & Services,Equipment - Repair,STANNAH LIFT SERVICES LTD,04/07/2022,357.05
Children�s Safeguarding & Family Support,"Family Placements, Children in Care, Leaving Care & Emergency Duty Team",Supplies & Services,Other Services,ARJO UK LTD,27/07/2022,"3,893.00"
Children�s Safeguarding & Family Support,"Family Placements, Children in Care, Leaving Care & Emergency Duty Team",Third Party Payments,Agency Services,T Nursing Services,07/07/2022,-212.12
Children�s Safeguarding & Family Support,"Family Placements, Children in Care, Leaving Care & Emergency Duty Team",Third Party Payments,Agency Services,T Nursing Services,07/07/2022,-103.00
Children�s Safeguarding & Family Support,"Family Placements, Children in Care, Leaving Care & Emergency Duty Team",Third Party Payments,Agency Services,T Nursing Services,22/07/2022,-103.00
Children�s Safeguarding & Family Support,"Family Placements, Children in Care, Leaving Care & Emergency Duty Team",Supplies & Services,Section 17 Childrens Act,CLEANIT CLEANING SERVICES,27/07/2022,450.00
Children�s Safeguarding & Family Support,"Family Placements, Children in Care, Leaving Care & Emergency Duty Team",Third Party Payments,Childminders,K Kids Nursery Ltd,21/07/2022,221.00
Children�s Safeguarding & Family Support,"Family Placements, Children in Care, Leaving Care & Emergency Duty Team",Employees,Staff Training,Leaving Care Training & Consultancy Service,27/07/2022,"1,182.18"
Children�s Safeguarding & Family Support,"Family Placements, Children in Care, Leaving Care & Emergency Duty Team",Premises-Related Expenditure,Hire Of Rooms,MEETING POINT TRUST LTD,22/07/2022,"2,337.50"
Children�s Safeguarding & Family Support,"Family Placements, Children in Care, Leaving Care & Emergency Duty Team",Premises-Related Expenditure,Hire Of Rooms,MEETING POINT TRUST LTD,22/07/2022,"2,337.50"
Children�s Safeguarding & Family Support,"Family Placements, Children in Care, Leaving Care & Emergency Duty Team",Transport-Related Expenditure,Outside Hire,Innosil (UK) Limited,12/07/2022,350.00
Children�s Safeguarding & Family Support,"Family Placements, Children in Care, Leaving Care & Emergency Duty Team",Supplies & Services,Other Services,ARJO UK LTD,06/07/2022,600.00
Children�s Safeguarding & Family Support,"Family Placements, Children in Care, Leaving Care & Emergency Duty Team",Transport-Related Expenditure,Taxi Costs,Go Carz,27/07/2022,"1,050.00"
Children�s Safeguarding & Family Support,"Family Placements, Children in Care, Leaving Care & Emergency Duty Team",Transport-Related Expenditure,Taxi Costs,Go Carz,04/07/2022,"1,050.00"
Children�s Safeguarding & Family Support,"Family Placements, Children in Care, Leaving Care & Emergency Duty Team",Third Party Payments,External Foster Care Payments,FOSTERING SOLUTIONS LTD,04/07/2022,"2,113.94"
Children�s Safeguarding & Family Support,"Family Placements, Children in Care, Leaving Care & Emergency Duty Team",Third Party Payments,External Foster Care Payments,FOSTERING SOLUTIONS LTD,04/07/2022,870.96
Children�s Safeguarding & Family Support,"Family Placements, Children in Care, Leaving Care & Emergency Duty Team",Third Party Payments,External Foster Care Payments,FOSTERING SOLUTIONS LTD,04/07/2022,"-2,959.52"
Children�s Safeguarding & Family Support,"Family Placements, Children in Care, Leaving Care & Emergency Duty Team",Supplies & Services,Doctors Fees,Sandwell & West Birmingham Hospitals NHS Trust,01/07/2022,115.00
Children�s Safeguarding & Family Support,"Family Placements, Children in Care, Leaving Care & Emergency Duty Team",Supplies & Services,Doctors Fees,WOODSIDE MEDICAL PRACTICE,12/07/2022,125.00
Children�s Safeguarding & Family Support,"Family Placements, Children in Care, Leaving Care & Emergency Duty Team",Supplies & Services,Mobile Phones,EE LTD EQUIPMENT,18/07/2022,426.00
Children�s Safeguarding & Family Support,"Family Placements, Children in Care, Leaving Care & Emergency Duty Team",Employees,Recruitment Advertising,Bridge & Tunnel Ventures Ltd,12/07/2022,"1,350.00"
Children�s Safeguarding & Family Support,"Family Placements, Children in Care, Leaving Care & Emergency Duty Team",Employees,Staff Training,The Stay True Project,27/07/2022,200.00
Children�s Safeguarding & Family Support,"Family Placements, Children in Care, Leaving Care & Emergency Duty Team",Premises-Related Expenditure,Hire Of Rooms,KETLEY PARISH COUNCIL,01/07/2022,156.50
Children�s Safeguarding & Family Support,"Family Placements, Children in Care, Leaving Care & Emergency Duty Team",Premises-Related Expenditure,Hire Of Rooms,MEETING POINT TRUST LTD,21/07/2022,117.50
Children�s Safeguarding & Family Support,"Family Placements, Children in Care, Leaving Care & Emergency Duty Team",Supplies & Services,Other Services,Share Foundation,25/07/2022,"15,977.83"
Children�s Safeguarding & Family Support,"Family Placements, Children in Care, Leaving Care & Emergency Duty Team",Supplies & Services,Other Services,Sheffield Mutual Friendly Society,04/07/2022,156.00
Children�s Safeguarding & Family Support,"Family Placements, Children in Care, Leaving Care & Emergency Duty Team",Supplies & Services,Other Services,PILLING & CO STOCKBROCKERS,04/07/2022,154.72
Children�s Safeguarding & Family Support,"Family Placements, Children in Care, Leaving Care & Emergency Duty Team",Supplies & Services,Mobile Phones,EE LTD EQUIPMENT,18/07/2022,568.00
Children�s Safeguarding & Family Support,"Family Placements, Children in Care, Leaving Care & Emergency Duty Team",Supplies & Services,Advertising,Bauer Radio Ltd,12/07/2022,848.16
Children�s Safeguarding & Family Support,"Family Placements, Children in Care, Leaving Care & Emergency Duty Team",Supplies & Services,Advertising,Bauer Radio Ltd,12/07/2022,"1,035.54"
Children�s Safeguarding & Family Support,"Family Placements, Children in Care, Leaving Care & Emergency Duty Team",Supplies & Services,Advertising,Bauer Radio Ltd,12/07/2022,"1,312.83"
Children�s Safeguarding & Family Support,"Family Placements, Children in Care, Leaving Care & Emergency Duty Team",Supplies & Services,Advertising,Bauer Radio Ltd,12/07/2022,"1,200.00"
Children�s Safeguarding & Family Support,"Family Placements, Children in Care, Leaving Care & Emergency Duty Team",Supplies & Services,Advertising,Newsquest Media Group,12/07/2022,240.00
Children�s Safeguarding & Family Support,"Family Placements, Children in Care, Leaving Care & Emergency Duty Team",Supplies & Services,Advertising,NEWPORT & DISTRICT AGRICULTURAL SOCIETY,08/07/2022,180.00
Children�s Safeguarding & Family Support,"Family Placements, Children in Care, Leaving Care & Emergency Duty Team",Supplies & Services,Advertising,Bauer Radio Ltd,27/07/2022,820.80
Children�s Safeguarding & Family Support,"Family Placements, Children in Care, Leaving Care & Emergency Duty Team",Supplies & Services,Advertising,Bauer Radio Ltd,27/07/2022,398.38
Children�s Safeguarding & Family Support,"Family Placements, Children in Care, Leaving Care & Emergency Duty Team",Third Party Payments,Childminders,CHILDCARE SOS,25/07/2022,138.75
Children�s Safeguarding & Family Support,"Family Placements, Children in Care, Leaving Care & Emergency Duty Team",Supplies & Services,Mobile Phones,EE LTD EQUIPMENT ,18/07/2022,142.00
Children�s Safeguarding & Family Support,Safeguarding Advisory,Premises-Related Expenditure,Hire Of Rooms,MEETING POINT TRUST LTD,18/07/2022,130.00
Children�s Safeguarding & Family Support,Safeguarding Advisory,Premises-Related Expenditure,Hire Of Rooms,MEETING POINT TRUST LTD,18/07/2022,130.00
Children�s Safeguarding & Family Support,Safeguarding Advisory,Premises-Related Expenditure,Hire Of Rooms,MEETING POINT TRUST LTD,27/07/2022,195.00
Children�s Safeguarding & Family Support,Safeguarding Advisory,Employees,Staff Training,SHROPSHIRE COUNCIL ,15/07/2022,200.50
Children�s Safeguarding & Family Support,Safeguarding Advisory,Employees,Training Expenses,Creative Connection Animation Studio,22/07/2022,250.00
Children�s Safeguarding & Family Support,Safeguarding Advisory,Supplies & Services,Other Services,Wychwood Park Hotel,22/07/2022,494.37
Children�s Safeguarding & Family Support,Safeguarding Advisory,Supplies & Services,Other Services,L R Social Care Solutions Ltd,02/07/2022,"2,375.00"
Children's Safeguarding,Child Protection & Family Support,contribution to provision,legal,HM Courts and Tribunal service,18/07/2022," 4,753.00 "
"Communities, Customer & Commercial Services",Community Services,Supplies & Services,Grants To Voluntary Organis,TELFORD & WREKIN CITIZENS ADVICE BUREAU,28/07/2022,"232,000.00"
"Communities, Customer & Commercial Services",Community Services,Supplies & Services,Other - Arts Development,BRITISH YOUTH COUNCIL,21/07/2022,600.00
"Communities, Customer & Commercial Services",Community Services,Supplies & Services,Grants To Voluntary Organis,The Ironbridge Gorge Brass Band Festival,19/07/2022,500.00
"Communities, Customer & Commercial Services",Community Services,Supplies & Services,Grants To Voluntary Organis,PARK LANE CENTRE,25/07/2022,"5,462.00"
"Communities, Customer & Commercial Services",Community Services,Supplies & Services,Grants To Voluntary Organis,MEETING POINT TRUST LTD,25/07/2022,"3,129.00"
"Communities, Customer & Commercial Services",Community Services,Supplies & Services,Grants To Voluntary Organis,DONNINGTON PARTNERSHIP,11/07/2022,"3,000.00"
"Communities, Customer & Commercial Services",Community Services,Supplies & Services,Grants To Voluntary Organis,The Leegate Centre CIC,27/07/2022,"3,360.00"
"Communities, Customer & Commercial Services",Community Services,Supplies & Services,Equipment - Hire,AJS Bouncy Castle Hire,06/07/2022,370.00
"Communities, Customer & Commercial Services",Community Services,Supplies & Services,Printing - Other,Frenzy Creative Limited,29/07/2022,"1,370.16"
"Communities, Customer & Commercial Services",Community Services,Premises-Related Expenditure,Electricity,West Mercia Energy (WME),25/07/2022,562.68
"Communities, Customer & Commercial Services",Community Services,Supplies & Services,Other Services,IZEN Energy Systems,26/07/2022,"7,747.51"
"Communities, Customer & Commercial Services",Community Services,Supplies & Services,Other Services,IZEN Energy Systems,26/07/2022,"15,174.62"
"Communities, Customer & Commercial Services",Community Services,Supplies & Services,Other Services,IZEN Energy Systems,26/07/2022,"7,747.51"
"Communities, Customer & Commercial Services",Culture & Events,Supplies & Services,Marketing & Publicity,THW Marketing,15/07/2022,"2,700.00"
"Communities, Customer & Commercial Services",Culture & Events,Supplies & Services,Service Contracts,PROKILL UK LIMITED,20/07/2022,159.60
"Communities, Customer & Commercial Services",Culture & Events,Supplies & Services,Equipment - Purchase,Spektrix Limited,25/07/2022,"1,800.00"
"Communities, Customer & Commercial Services",Culture & Events,Supplies & Services,Equipment - Purchase,STAGE ELECTRICS PARTNERSHIP LTD,06/07/2022,224.00
"Communities, Customer & Commercial Services",Culture & Events,Supplies & Services,Equipment - Purchase,STAGE ELECTRICS PARTNERSHIP LTD,12/07/2022,326.40
"Communities, Customer & Commercial Services",Culture & Events,Supplies & Services,Equipment - Hire,MSM Hire Ltd,27/07/2022,703.50
"Communities, Customer & Commercial Services",Culture & Events,Supplies & Services,Service Contracts,FREELANCE BUSINESS ASSOCIATES,21/07/2022,435.00
"Communities, Customer & Commercial Services",Culture & Events,Supplies & Services,Promotion Expenses,Shrewsbury Food Festival Ltd,15/07/2022,260.00
"Communities, Customer & Commercial Services",Culture & Events,Supplies & Services,Advertising,WHATS ON MAGAZINES LTD,15/07/2022,275.00
"Communities, Customer & Commercial Services",Culture & Events,Supplies & Services,Promotion Expenses,Spektrix Limited,20/07/2022,"1,840.39"
"Communities, Customer & Commercial Services",Culture & Events,Supplies & Services,Promotion Expenses,crowdEngage Limited,25/07/2022,279.59
"Communities, Customer & Commercial Services",Culture & Events,Supplies & Services,Advertising,M C MARKETING LTD,26/07/2022,"1,192.00"
"Communities, Customer & Commercial Services",Culture & Events,Supplies & Services,Artistes Fees,Galaxy Dance School,15/07/2022,"1,626.00"
"Communities, Customer & Commercial Services",Culture & Events,Supplies & Services,Artistes Fees,Orchard Live Limited,22/07/2022,"7,241.15"
"Communities, Customer & Commercial Services",Culture & Events,Supplies & Services,Artistes Fees,Orchard Live Limited,22/07/2022,"7,518.49"
"Communities, Customer & Commercial Services",Culture & Events,Supplies & Services,Artistes Fees,Orchard Live Limited,22/07/2022,"14,340.88"
"Communities, Customer & Commercial Services",Culture & Events,Supplies & Services,Artistes Fees,Orchard Live Limited,22/07/2022,"3,244.44"
"Communities, Customer & Commercial Services",Culture & Events,Supplies & Services,Artistes Fees,Orchard Live Limited,22/07/2022,777.78
"Communities, Customer & Commercial Services",Culture & Events,Supplies & Services,Artistes Fees,Orchard Live Limited,22/07/2022,"13,213.33"
"Communities, Customer & Commercial Services",Culture & Events,Supplies & Services,Artistes Fees,Orchard Live Limited,22/07/2022,"45,919.05"
"Communities, Customer & Commercial Services",Culture & Events,Supplies & Services,Artistes Fees,Ignite Theatrical Productions LLP,22/07/2022,"5,019.00"
"Communities, Customer & Commercial Services",Culture & Events,Supplies & Services,Artistes Fees,P M ENTERTAINMENT LTD,12/07/2022,"4,268.95"
"Communities, Customer & Commercial Services",Culture & Events,Supplies & Services,Artistes Fees,E Whittingham Dance,15/07/2022,"5,424.19"
"Communities, Customer & Commercial Services",Culture & Events,Supplies & Services,Artistes Fees,MRC Enterprises Ltd,15/07/2022,"4,172.74"
"Communities, Customer & Commercial Services",Culture & Events,Supplies & Services,Artistes Fees,Blonde Sheep Events,27/07/2022,"3,265.82"
"Communities, Customer & Commercial Services",Culture & Events,Supplies & Services,Artistes Fees,Hadley Learning Community Academy,27/07/2022,"1,951.80"
"Communities, Customer & Commercial Services",Culture & Events,Supplies & Services,Artistes Fees,Europa Concerts Limited,15/07/2022,285.62
"Communities, Customer & Commercial Services",Culture & Events,Supplies & Services,Artistes Fees,Broseley Festival CIC,18/07/2022,"7,751.33"
"Communities, Customer & Commercial Services",Culture & Events,Supplies & Services,Artistes Fees,N S Productions,13/07/2022,"1,801.53"
"Communities, Customer & Commercial Services",Culture & Events,Supplies & Services,Artistes Fees,SSPA Events Limited,08/07/2022,"5,745.60"
"Communities, Customer & Commercial Services",Culture & Events,Supplies & Services,Artistes Fees,ODDSOCKS COMMUNICATIONS LTD,08/07/2022,"1,575.00"
"Communities, Customer & Commercial Services",Culture & Events,Supplies & Services,Provisions,BIKOLD,11/07/2022,169.47
"Communities, Customer & Commercial Services",Culture & Events,Supplies & Services,Wet Resale Provision,MOLSON COORS BREWING COMPANY UK LTD,15/07/2022,125.67
"Communities, Customer & Commercial Services",Culture & Events,Supplies & Services,Wet Resale Provision,MOLSON COORS BREWING COMPANY UK LTD,15/07/2022,104.91
"Communities, Customer & Commercial Services",Culture & Events,Supplies & Services,Provisions,BIKOLD,11/07/2022,170.54
"Communities, Customer & Commercial Services",Culture & Events,Supplies & Services,Wet Resale Provision,MOLSON COORS BREWING COMPANY UK LTD,11/07/2022,209.82
"Communities, Customer & Commercial Services",Culture & Events,Supplies & Services,Wet Resale Provision,MOLSON COORS BREWING COMPANY UK LTD,18/07/2022,419.64
"Communities, Customer & Commercial Services",Culture & Events,Supplies & Services,Wet Resale Provision,MOLSON COORS BREWING COMPANY UK LTD,18/07/2022,502.68
"Communities, Customer & Commercial Services",Culture & Events,Supplies & Services,Wet Resale Provision,MOLSON COORS BREWING COMPANY UK LTD,18/07/2022,176.48
"Communities, Customer & Commercial Services",Culture & Events,Supplies & Services,Wet Resale Provision,MOLSON COORS BREWING COMPANY UK LTD,18/07/2022,125.67
"Communities, Customer & Commercial Services",Culture & Events,Supplies & Services,Wet Resale Provision,MOLSON COORS BREWING COMPANY UK LTD,18/07/2022,314.73
"Communities, Customer & Commercial Services",Culture & Events,Supplies & Services,Wet Resale Provision,MOLSON COORS BREWING COMPANY UK LTD,08/07/2022,251.34
"Communities, Customer & Commercial Services",Culture & Events,Supplies & Services,Wet Resale Provision,MOLSON COORS BREWING COMPANY UK LTD,08/07/2022,314.73
"Communities, Customer & Commercial Services",Culture & Events,Supplies & Services,Crockery/Hardware/Light Equip,A1 BARSTUFF LTD,14/07/2022,123.80
"Communities, Customer & Commercial Services",Culture & Events,Supplies & Services,Wet Resale Provision,MOLSON COORS BREWING COMPANY UK LTD,15/07/2022,106.74
"Communities, Customer & Commercial Services",Culture & Events,Supplies & Services,Wet Resale Provision,MOLSON COORS BREWING COMPANY UK LTD,15/07/2022,629.46
"Communities, Customer & Commercial Services",Culture & Events,Supplies & Services,Wet Resale Provision,MOLSON COORS BREWING COMPANY UK LTD,15/07/2022,233.08
"Communities, Customer & Commercial Services",Culture & Events,Supplies & Services,Wet Resale Provision,MOLSON COORS BREWING COMPANY UK LTD,15/07/2022,235.95
"Communities, Customer & Commercial Services",Culture & Events,Supplies & Services,Wet Resale Provision,MOLSON COORS BREWING COMPANY UK LTD,15/07/2022,273.51
"Communities, Customer & Commercial Services",Culture & Events,Supplies & Services,Wet Resale Provision,MOLSON COORS BREWING COMPANY UK LTD,15/07/2022,180.26
"Communities, Customer & Commercial Services",Culture & Events,Supplies & Services,Wet Resale Provision,MOLSON COORS BREWING COMPANY UK LTD,15/07/2022,140.14
"Communities, Customer & Commercial Services",Culture & Events,Supplies & Services,Wet Resale Provision,MOLSON COORS BREWING COMPANY UK LTD,15/07/2022,167.82
"Communities, Customer & Commercial Services",Culture & Events,Supplies & Services,Wet Resale Provision,MOLSON COORS BREWING COMPANY UK LTD,08/07/2022,199.92
"Communities, Customer & Commercial Services",Culture & Events,Supplies & Services,Wet Resale Provision,MOLSON COORS BREWING COMPANY UK LTD,08/07/2022,251.34
"Communities, Customer & Commercial Services",Culture & Events,Supplies & Services,Wet Resale Provision,MOLSON COORS BREWING COMPANY UK LTD,08/07/2022,209.82
"Communities, Customer & Commercial Services",Culture & Events,Supplies & Services,Wet Resale Provision,MOLSON COORS BREWING COMPANY UK LTD,08/07/2022,162.70
"Communities, Customer & Commercial Services",Culture & Events,Premises-Related Expenditure,Grounds Maintenance - Other,MSM Hire Ltd,13/07/2022,899.07
"Communities, Customer & Commercial Services",Culture & Events,Supplies & Services,Equipment - Hire,RAP SERVICES LTD T/A TELFORD TOILET HIRE,25/07/2022,"2,780.00"
"Communities, Customer & Commercial Services",Culture & Events,Supplies & Services,Equipment - Hire,PG Skips Ltd,17/07/2022,695.00
"Communities, Customer & Commercial Services",Culture & Events,Supplies & Services,Equipment - Hire,Filmbank Distributors Ltd,04/07/2022,439.00
"Communities, Customer & Commercial Services",Culture & Events,Supplies & Services,Equipment - Hire,Event Furniture Hire Ltd,04/07/2022,300.00
"Communities, Customer & Commercial Services",Culture & Events,Supplies & Services,Equipment - Hire,J.E.F Scaffolding Ltd,04/07/2022,"1,365.00"
"Communities, Customer & Commercial Services",Culture & Events,Supplies & Services,Equipment - Hire,TELFORD TOILET HIRE,04/07/2022,"1,500.00"
"Communities, Customer & Commercial Services",Culture & Events,Supplies & Services,Equipment - Purchase,ALLWAG PROMOTIONS LTD,12/07/2022,"1,223.00"
"Communities, Customer & Commercial Services",Culture & Events,Supplies & Services,Equipment - Hire,Envisage Promotions Ltd,15/07/2022,"2,340.00"
"Communities, Customer & Commercial Services",Culture & Events,Supplies & Services,Equipment - Hire,Stage and Studios Services Limited,19/07/2022,"2,833.50"
"Communities, Customer & Commercial Services",Culture & Events,Supplies & Services,Printing - Other,THE SIGN SHOP,27/07/2022,"3,250.00"
"Communities, Customer & Commercial Services",Culture & Events,Supplies & Services,Equipment - Hire,JP AUDIO VISUAL LTD,27/07/2022,150.00
"Communities, Customer & Commercial Services",Culture & Events,Supplies & Services,Equipment - Hire,Avanti Gas Ltd,15/07/2022,"1,500.00"
"Communities, Customer & Commercial Services",Culture & Events,Supplies & Services,Materials,Urban3D Ltd,28/07/2022,400.00
"Communities, Customer & Commercial Services",Culture & Events,Supplies & Services,Equipment - Hire,J.E.F Scaffolding Ltd,25/07/2022,"1,665.00"
"Communities, Customer & Commercial Services",Culture & Events,Supplies & Services,Equipment - Hire,Filmbank Distributors Ltd,18/07/2022,439.00
"Communities, Customer & Commercial Services",Culture & Events,Supplies & Services,Equipment - Hire,Event Furniture Hire Ltd,17/07/2022,105.00
"Communities, Customer & Commercial Services",Culture & Events,Supplies & Services,Artistes Fees,AC Lasers Ltd,17/07/2022,"2,942.25"
"Communities, Customer & Commercial Services",Culture & Events,Supplies & Services,Artistes Fees,Ivory Flake Ltd,01/07/2022,900.00
"Communities, Customer & Commercial Services",Culture & Events,Supplies & Services,Artistes Fees,Same Difference Arts Limited,27/07/2022,150.00
"Communities, Customer & Commercial Services",Culture & Events,Supplies & Services,Artistes Fees,Historical Promotions,18/07/2022,"3,645.00"
"Communities, Customer & Commercial Services",Culture & Events,Supplies & Services,Artistes Fees,THE SMALL WOODS ASSOCIATION,20/07/2022,250.00
"Communities, Customer & Commercial Services",Culture & Events,Supplies & Services,Artistes Fees,S Ridings Ltd,20/07/2022,500.00
"Communities, Customer & Commercial Services",Culture & Events,Supplies & Services,Promotion Expenses,ALLWAG PROMOTIONS LTD,12/07/2022,"8,876.00"
"Communities, Customer & Commercial Services",Culture & Events,Supplies & Services,Promotion Expenses,ALLWAG PROMOTIONS LTD,12/07/2022,"2,853.00"
"Communities, Customer & Commercial Services",Culture & Events,Supplies & Services,First Aid,M- W Medical Service Ltd,25/07/2022,250.00
"Communities, Customer & Commercial Services",Culture & Events,Supplies & Services,Artistes Fees,The Great British Sports Show Ltd,22/07/2022,"9,853.00"
"Communities, Customer & Commercial Services",Culture & Events,Supplies & Services,Artistes Fees,The Great British Sports Show Ltd,22/07/2022,"3,492.00"
"Communities, Customer & Commercial Services",Customer Relationships & Welfare Services,Supplies & Services,Other Grants (Expenses),Hawk Incentives Ltd (Crown Commercial Services),07/07/2022,"618,796.70"
"Communities, Customer & Commercial Services",Customer Relationships & Welfare Services,Supplies & Services,Other Grants (Expenses),Hawk Incentives Ltd (Crown Commercial Services),12/07/2022,"19,744.00"
"Communities, Customer & Commercial Services",Customer Relationships & Welfare Services,Supplies & Services,Other Grants (Expenses),Discretionary Household Support,12/07/2022,172.35
"Communities, Customer & Commercial Services",Customer Relationships & Welfare Services,Supplies & Services,Other Grants (Expenses),Discretionary Household Support,20/07/2022,200.00
"Communities, Customer & Commercial Services",Customer Relationships & Welfare Services,Supplies & Services,Other Grants (Expenses),Discretionary Household Support,20/07/2022,365.67
"Communities, Customer & Commercial Services",Customer Relationships & Welfare Services,Supplies & Services,Other Grants (Expenses),Discretionary Household Support,20/07/2022,353.96
"Communities, Customer & Commercial Services",Customer Relationships & Welfare Services,Supplies & Services,Other Grants (Expenses),Discretionary Household Support,20/07/2022,123.50
"Communities, Customer & Commercial Services",Customer Relationships & Welfare Services,Supplies & Services,Other Grants (Expenses),Discretionary Household Support,20/07/2022,400.00
"Communities, Customer & Commercial Services",Customer Relationships & Welfare Services,Supplies & Services,Other Grants (Expenses),Discretionary Household Support,20/07/2022,198.64
"Communities, Customer & Commercial Services",Customer Relationships & Welfare Services,Supplies & Services,Other Grants (Expenses),Discretionary Household Support,20/07/2022,500.00
"Communities, Customer & Commercial Services",Customer Relationships & Welfare Services,Supplies & Services,Other Grants (Expenses),Hawk Incentives Ltd (Crown Commercial Services),28/07/2022,"533,088.00"
"Communities, Customer & Commercial Services",Customer Relationships & Welfare Services,Supplies & Services,Other Grants (Expenses),Discretionary Household Support,25/07/2022,350.00
"Communities, Customer & Commercial Services",Customer Relationships & Welfare Services,Supplies & Services,Other Grants (Expenses),Discretionary Household Support,28/07/2022,322.57
"Communities, Customer & Commercial Services",Customer Relationships & Welfare Services,Transfer Payments,Crisis Assistance Awards,PayPoint Network Limited,15/07/2022,675.00
"Communities, Customer & Commercial Services",Customer Relationships & Welfare Services,Transfer Payments,Crisis Assistance Awards,PayPoint Network Limited,01/07/2022,705.00
"Communities, Customer & Commercial Services",Customer Relationships & Welfare Services,Transfer Payments,Crisis Assistance Awards,PayPoint Network Limited,11/07/2022,860.00
"Communities, Customer & Commercial Services",Customer Relationships & Welfare Services,Transfer Payments,Crisis Assistance Awards,PayPoint Network Limited,20/07/2022,845.00
"Communities, Customer & Commercial Services",Customer Relationships & Welfare Services,Supplies & Services,Postages,Financial Data Management plc,08/07/2022,127.98
"Communities, Customer & Commercial Services",Customer Relationships & Welfare Services,Supplies & Services,Printing - Other,Financial Data Management plc,01/07/2022,224.45
"Communities, Customer & Commercial Services",Customer Relationships & Welfare Services,Supplies & Services,Printing - Other,Financial Data Management plc,11/07/2022,230.44
"Communities, Customer & Commercial Services",Customer Relationships & Welfare Services,Premises-Related Expenditure,Hire Of Rooms,MEETING POINT TRUST LTD,28/07/2022,130.00
"Communities, Customer & Commercial Services",Customer Relationships & Welfare Services,Supplies & Services,Fees,PayPoint Network Limited,18/07/2022,"4,889.89"
"Communities, Customer & Commercial Services",Customer Relationships & Welfare Services,Supplies & Services,Bus Pass Production,Euclid Limited,18/07/2022,832.68
"Communities, Customer & Commercial Services",Customer Relationships & Welfare Services,Supplies & Services,Permit Production - Blue Badge,APS Group,13/07/2022,935.01
"Communities, Customer & Commercial Services",Customer Relationships & Welfare Services,Supplies & Services,Hospitality,MEETING POINT TRUST LTD,28/07/2022,312.50
"Communities, Customer & Commercial Services",Customer Relationships & Welfare Services,Supplies & Services,Permit Production - Blue Badge,Valtech Limited,12/07/2022,430.28
"Communities, Customer & Commercial Services",Customer Relationships & Welfare Services,Supplies & Services,Permit Production - Blue Badge,APS Group,28/07/2022,807.91
"Communities, Customer & Commercial Services",Customer Relationships & Welfare Services,Transfer Payments,Crisis Assistance Awards,A W HOLDINGS,25/07/2022,239.00
"Communities, Customer & Commercial Services",Customer Relationships & Welfare Services,Transfer Payments,Crisis Assistance Awards,Kings of the Road,04/07/2022,345.00
"Communities, Customer & Commercial Services",Customer Relationships & Welfare Services,Transfer Payments,Crisis Assistance Awards,Kings of the Road,14/07/2022,365.00
"Communities, Customer & Commercial Services",Customer Relationships & Welfare Services,Transfer Payments,Crisis Assistance Awards,Kings of the Road,14/07/2022,425.00
"Communities, Customer & Commercial Services",Customer Relationships & Welfare Services,Transfer Payments,Crisis Assistance Awards,Kings of the Road,11/07/2022,445.00
"Communities, Customer & Commercial Services",Customer Relationships & Welfare Services,Transfer Payments,Crisis Assistance Awards,Kings of the Road,29/07/2022,395.00
"Communities, Customer & Commercial Services",Customer Relationships & Welfare Services,Supplies & Services,Comp Hardware (Purch / Hire),CCS MEDIA LIMITED,27/07/2022,625.00
"Communities, Customer & Commercial Services",Customer Relationships & Welfare Services,Premises-Related Expenditure,Grounds Maintenance - Cemeteries,Teleshore UK Ltd.,12/07/2022,"3,510.00"
"Communities, Customer & Commercial Services",Customer Relationships & Welfare Services,Supplies & Services,Carriage/Delivery Charge,Teleshore UK Ltd.,12/07/2022,200.00
"Communities, Customer & Commercial Services",ICT,Employees,Staff Training,QA LTD,09/07/2022,"15,000.00"
"Communities, Customer & Commercial Services",ICT,Supplies & Services,Comp Hardware (Purch / Hire),FURNITURE @ WORK LTD,12/07/2022,"2,530.80"
"Communities, Customer & Commercial Services",ICT,Supplies & Services,Telecomms,Airband Community Internet,07/07/2022,125.00
"Communities, Customer & Commercial Services",ICT,Supplies & Services,Telecomms,Airband Community Internet,07/07/2022,294.99
"Communities, Customer & Commercial Services",ICT,Supplies & Services,Telecomms,Airband Community Internet,07/07/2022,299.99
"Communities, Customer & Commercial Services",ICT,Supplies & Services,Equipment - Purchase,CCS MEDIA LIMITED,28/07/2022,196.00
"Communities, Customer & Commercial Services",ICT,Supplies & Services,Telephones,BRITISH TELECOMMUNICATIONS PLC ,25/07/2022,"2,970.13"
"Communities, Customer & Commercial Services",ICT,Supplies & Services,Telephones,Trustmarque Solutions Limited,07/07/2022,"2,889.08"
"Communities, Customer & Commercial Services",ICT,Supplies & Services,Text Messages,PROCESS FLOWS UK LTD,18/07/2022,383.64
"Communities, Customer & Commercial Services",ICT,Supplies & Services,Mobile Phones,EE LTD AIRTIME ,29/07/2022,"11,775.33"
"Communities, Customer & Commercial Services",ICT,Supplies & Services,Computer Hardware (Maint),PHOENIX SOFTWARE LTD,22/07/2022,"4,994.78"
"Communities, Customer & Commercial Services",ICT,Supplies & Services,Computer Hardware (Maint),PHOENIX SOFTWARE LTD,22/07/2022,"8,115.60"
"Communities, Customer & Commercial Services",ICT,Supplies & Services,Computer Hardware (Maint),PHOENIX SOFTWARE LTD,22/07/2022,"8,115.60"
"Communities, Customer & Commercial Services",ICT,Supplies & Services,Computer Hardware (Maint),PHOENIX SOFTWARE LTD,22/07/2022,"8,330.67"
"Communities, Customer & Commercial Services",ICT,Supplies & Services,Computer Hardware (Maint),PHOENIX SOFTWARE LTD,22/07/2022,"1,337.85"
"Communities, Customer & Commercial Services",ICT,Supplies & Services,Computer Software (Maint),Salamandersoft Limited,08/07/2022,450.00
"Communities, Customer & Commercial Services",ICT,Supplies & Services,Comp Software (Purch / Hire),Salamandersoft Limited,08/07/2022,"1,789.00"
"Communities, Customer & Commercial Services",ICT,Supplies & Services,Computer Hardware (Maint),PHOENIX SOFTWARE LTD,18/07/2022,"7,326.80"
"Communities, Customer & Commercial Services",ICT,Premises-Related Expenditure,R&M -Building Other,Charlton Academy,07/07/2022,"1,589.96"
"Communities, Customer & Commercial Services",ICT,Premises-Related Expenditure,R&M -Buildings DLO Charge,METS Ltd,20/07/2022,"1,236.60"
"Communities, Customer & Commercial Services",ICT,Supplies & Services,Telecomms,VIRGIN MEDIA BUSINESS,25/07/2022,"2,881.47"
"Communities, Customer & Commercial Services",ICT,Supplies & Services,Comp Software (Purch / Hire),PHOENIX SOFTWARE LTD,06/07/2022,406.08
"Communities, Customer & Commercial Services",ICT,Supplies & Services,Comp Software (Purch / Hire),PowerON Platforms Ltd,12/07/2022,"2,430.00"
"Communities, Customer & Commercial Services",ICT,Supplies & Services,Telecomms,VODAFONE LTD,28/07/2022,"1,694.00"
"Communities, Customer & Commercial Services",ICT,Supplies & Services,Computer Hardware (Maint),PHOENIX SOFTWARE LTD,22/07/2022,"7,492.18"
"Communities, Customer & Commercial Services",ICT,Supplies & Services,Computer Hardware (Maint),PHOENIX SOFTWARE LTD,22/07/2022,"12,173.40"
"Communities, Customer & Commercial Services",ICT,Supplies & Services,Computer Hardware (Maint),PHOENIX SOFTWARE LTD,22/07/2022,"12,173.40"
"Communities, Customer & Commercial Services",ICT,Supplies & Services,Computer Hardware (Maint),PHOENIX SOFTWARE LTD,22/07/2022,"12,496.01"
"Communities, Customer & Commercial Services",ICT,Supplies & Services,Computer Hardware (Maint),PHOENIX SOFTWARE LTD,22/07/2022,"2,006.77"
"Communities, Customer & Commercial Services",ICT,Supplies & Services,Telecomms,CAPITA IT SERVICES LIMITED,27/07/2022,"485,693.00"
"Communities, Customer & Commercial Services",ICT,Supplies & Services,Comp Software (Purch / Hire),PHOENIX SOFTWARE LTD,26/07/2022,"6,288.93"
"Communities, Customer & Commercial Services",ICT,Supplies & Services,Computer Hardware (Maint),PHOENIX SOFTWARE LTD,18/07/2022,"10,990.20"
"Communities, Customer & Commercial Services",ICT,Supplies & Services,Comp Software (Purch / Hire),PHOENIX SOFTWARE LTD,22/07/2022,"6,349.59"
"Communities, Customer & Commercial Services",ICT,Supplies & Services,Comp Software (Purch / Hire),PHOENIX SOFTWARE LTD,22/07/2022,"1,900.00"
"Communities, Customer & Commercial Services",ICT,Supplies & Services,Comp Software (Purch / Hire),WELLDATA LTD,01/07/2022,"25,152.77"
"Communities, Customer & Commercial Services",ICT,Supplies & Services,Comp Software (Purch / Hire),WELLDATA LTD,01/07/2022,"-25,907.35"
"Communities, Customer & Commercial Services",ICT,Supplies & Services,Comp Software (Purch / Hire),PHOENIX SOFTWARE LTD,11/07/2022,"4,427.60"
"Communities, Customer & Commercial Services",ICT,Supplies & Services,Stationery,Antalis Limited,26/07/2022,361.00
"Communities, Customer & Commercial Services",ICT,Supplies & Services,Comp Hardware (Purch / Hire),CCS MEDIA LIMITED,07/07/2022,"9,030.00"
"Communities, Customer & Commercial Services",ICT,Supplies & Services,Comp Software (Purch / Hire),PHOENIX SOFTWARE LTD,27/07/2022,"1,900.00"
"Communities, Customer & Commercial Services",ICT,Supplies & Services,Comp Hardware (Purch / Hire),ICTn Limited,22/07/2022,645.20
"Communities, Customer & Commercial Services",ICT,Supplies & Services,Comp Hardware (Purch / Hire),ICTn Limited,22/07/2022,307.80
"Communities, Customer & Commercial Services",ICT,Supplies & Services,Comp Hardware (Purch / Hire),ICTn Limited,22/07/2022,"1,628.50"
"Communities, Customer & Commercial Services",ICT,Supplies & Services,Comp Hardware (Purch / Hire),ICTn Limited,22/07/2022,450.00
"Communities, Customer & Commercial Services",ICT,Supplies & Services,Comp Hardware (Purch / Hire),ICTn Limited,22/07/2022,235.00
"Communities, Customer & Commercial Services",ICT,Supplies & Services,Comp Hardware (Purch / Hire),ICTn Limited,22/07/2022,395.00
"Communities, Customer & Commercial Services",ICT,Supplies & Services,Comp Hardware (Purch / Hire),ICTn Limited,22/07/2022,150.00
"Communities, Customer & Commercial Services",ICT,Supplies & Services,Comp Hardware (Purch / Hire),ICTn Limited,22/07/2022,243.00
"Communities, Customer & Commercial Services",ICT,Supplies & Services,Comp Hardware (Purch / Hire),ICTn Limited,22/07/2022,162.00
"Communities, Customer & Commercial Services",ICT,Supplies & Services,Comp Hardware (Purch / Hire),ICTn Limited,22/07/2022,412.00
"Communities, Customer & Commercial Services",ICT,Supplies & Services,Comp Hardware (Purch / Hire),ICTn Limited,22/07/2022,330.00
"Communities, Customer & Commercial Services",ICT,Supplies & Services,Comp Hardware (Purch / Hire),ICTn Limited,22/07/2022,480.00
"Communities, Customer & Commercial Services",ICT,Supplies & Services,Comp Hardware (Purch / Hire),ICTn Limited,22/07/2022,550.00
"Communities, Customer & Commercial Services",ICT,Supplies & Services,Comp Hardware (Purch / Hire),ICTn Limited,22/07/2022,245.00
"Communities, Customer & Commercial Services",ICT,Supplies & Services,Comp Hardware (Purch / Hire),ICTn Limited,22/07/2022,250.00
"Communities, Customer & Commercial Services",ICT,Supplies & Services,Comp Hardware (Purch / Hire),ICTn Limited,22/07/2022,216.00
"Communities, Customer & Commercial Services",ICT,Supplies & Services,Comp Hardware (Purch / Hire),ICTn Limited,22/07/2022,108.00
"Communities, Customer & Commercial Services",ICT,Supplies & Services,Comp Hardware (Purch / Hire),ICTn Limited,22/07/2022,370.80
"Communities, Customer & Commercial Services",ICT,Supplies & Services,Comp Hardware (Purch / Hire),ICTn Limited,22/07/2022,110.00
"Communities, Customer & Commercial Services",ICT,Supplies & Services,Comp Hardware (Purch / Hire),ICTn Limited,22/07/2022,250.00
"Communities, Customer & Commercial Services",ICT,Supplies & Services,Comp Hardware (Purch / Hire),ICTn Limited,22/07/2022,350.00
"Communities, Customer & Commercial Services",ICT,Supplies & Services,Comp Hardware (Purch / Hire),ICTn Limited,22/07/2022,250.00
"Communities, Customer & Commercial Services",ICT,Supplies & Services,Comp Hardware (Purch / Hire),ICTn Limited,22/07/2022,480.00
"Communities, Customer & Commercial Services",ICT,Supplies & Services,Comp Hardware (Purch / Hire),ICTn Limited,22/07/2022,985.00
"Communities, Customer & Commercial Services",ICT,Supplies & Services,Comp Hardware (Purch / Hire),ICTn Limited,22/07/2022,207.50
"Communities, Customer & Commercial Services",ICT,Supplies & Services,Comp Hardware (Purch / Hire),ICTn Limited,22/07/2022,150.00
"Communities, Customer & Commercial Services",ICT,Supplies & Services,Comp Hardware (Purch / Hire),ICTn Limited,22/07/2022,168.32
"Communities, Customer & Commercial Services",ICT,Supplies & Services,Comp Hardware (Purch / Hire),ICTn Limited,22/07/2022,110.00
"Communities, Customer & Commercial Services",ICT,Supplies & Services,Comp Hardware (Purch / Hire),ICTn Limited,22/07/2022,650.00
"Communities, Customer & Commercial Services",ICT,Supplies & Services,Comp Hardware (Purch / Hire),ICTn Limited,22/07/2022,350.00
"Communities, Customer & Commercial Services",ICT,Supplies & Services,Comp Hardware (Purch / Hire),ICTn Limited,22/07/2022,"2,219.00"
"Communities, Customer & Commercial Services",ICT,Supplies & Services,Comp Hardware (Purch / Hire),ICTn Limited,09/07/2022,"2,053.50"
"Communities, Customer & Commercial Services",ICT,Supplies & Services,Comp Hardware (Purch / Hire),ICTn Limited,09/07/2022,125.00
"Communities, Customer & Commercial Services",ICT,Supplies & Services,Comp Hardware (Purch / Hire),ICTn Limited,29/07/2022,"1,165.00"
"Communities, Customer & Commercial Services",ICT,Supplies & Services,Comp Hardware (Purch / Hire),ICTn Limited,29/07/2022,321.00
"Communities, Customer & Commercial Services",ICT,Supplies & Services,Comp Hardware (Purch / Hire),ICTn Limited,29/07/2022,325.00
"Communities, Customer & Commercial Services",ICT,Supplies & Services,Comp Hardware (Purch / Hire),ICTn Limited,29/07/2022,360.00
"Communities, Customer & Commercial Services",ICT,Supplies & Services,Comp Hardware (Purch / Hire),ICTn Limited,29/07/2022,450.00
"Communities, Customer & Commercial Services",ICT,Supplies & Services,Comp Hardware (Purch / Hire),ICTn Limited,29/07/2022,350.00
"Communities, Customer & Commercial Services",ICT,Supplies & Services,Comp Hardware (Purch / Hire),ICTn Limited,29/07/2022,243.00
"Communities, Customer & Commercial Services",ICT,Supplies & Services,Comp Hardware (Purch / Hire),ICTn Limited,29/07/2022,297.00
"Communities, Customer & Commercial Services",ICT,Supplies & Services,Comp Hardware (Purch / Hire),ICTn Limited,29/07/2022,247.20
"Communities, Customer & Commercial Services",ICT,Supplies & Services,Comp Hardware (Purch / Hire),ICTn Limited,29/07/2022,330.00
"Communities, Customer & Commercial Services",ICT,Supplies & Services,Comp Hardware (Purch / Hire),ICTn Limited,29/07/2022,250.00
"Communities, Customer & Commercial Services",ICT,Supplies & Services,Comp Hardware (Purch / Hire),ICTn Limited,29/07/2022,480.00
"Communities, Customer & Commercial Services",ICT,Supplies & Services,Comp Hardware (Purch / Hire),ICTn Limited,29/07/2022,895.00
"Communities, Customer & Commercial Services",ICT,Supplies & Services,Comp Hardware (Purch / Hire),ICTn Limited,29/07/2022,"1,170.00"
"Communities, Customer & Commercial Services",ICT,Supplies & Services,Comp Hardware (Purch / Hire),ICTn Limited,29/07/2022,"1,125.00"
"Communities, Customer & Commercial Services",ICT,Supplies & Services,Comp Hardware (Purch / Hire),ICTn Limited,29/07/2022,450.00
"Communities, Customer & Commercial Services",ICT,Supplies & Services,Comp Hardware (Purch / Hire),ICTn Limited,29/07/2022,183.00
"Communities, Customer & Commercial Services",ICT,Supplies & Services,Comp Hardware (Purch / Hire),ICTn Limited,29/07/2022,150.00
"Communities, Customer & Commercial Services",ICT,Supplies & Services,Comp Software (Purch / Hire),PHOENIX SOFTWARE LTD,06/07/2022,203.04
"Communities, Customer & Commercial Services",ICT,Supplies & Services,Comp Software (Purch / Hire),Bromcom Computers Plc,08/07/2022,"3,085.30"
"Communities, Customer & Commercial Services",ICT,Supplies & Services,Comp Software (Purch / Hire),ScholarPack,11/07/2022,638.00
"Communities, Customer & Commercial Services",ICT,Supplies & Services,Comp Software (Purch / Hire),ScholarPack,29/07/2022,430.50
"Communities, Customer & Commercial Services",ICT,Supplies & Services,Comp Software (Purch / Hire),ScholarPack,29/07/2022,"3,488.00"
"Communities, Customer & Commercial Services",ICT,Capital Expenditure,Computer Hardware,CCS MEDIA LIMITED,07/07/2022,"10,834.60"
"Communities, Customer & Commercial Services",ICT,Capital Expenditure,Computer Hardware,XMA LIMITED,06/07/2022,"780,587.66"
"Communities, Customer & Commercial Services",ICT,Capital Expenditure,Computer Hardware,CCS MEDIA LIMITED,11/07/2022,113.79
"Communities, Customer & Commercial Services",ICT,Capital Expenditure,Computer Hardware,INFORMATION DATA NETWORK SUPPLIES LTD,08/07/2022,"7,896.00"
"Communities, Customer & Commercial Services",ICT,Capital Expenditure,Payments to Contractor,PHOENIX SOFTWARE LTD,04/07/2022,"8,250.00"
"Communities, Customer & Commercial Services",ICT,Capital Expenditure,Payments to Contractor,FarrPoint Ltd,15/07/2022,"1,297.00"
"Communities, Customer & Commercial Services",ICT,Capital Expenditure,Payments to Contractor,PHOENIX SOFTWARE LTD,01/07/2022,"-6,225.00"
"Communities, Customer & Commercial Services",ICT,Capital Expenditure,Computer Hardware,CAPITA IT SERVICES LIMITED,12/07/2022,"18,331.97"
"Communities, Customer & Commercial Services",ICT,Capital Expenditure,Computer Software,Oracle Corporation UK Limited,01/07/2022,"9,744.14"
"Communities, Customer & Commercial Services",ICT,Capital Expenditure,Computer Hardware,CCS MEDIA LIMITED,08/07/2022,"1,832.00"
"Communities, Customer & Commercial Services",ICT,Capital Expenditure,Payments to Contractor,FarrPoint Ltd,27/07/2022,946.00
"Communities, Customer & Commercial Services",ICT,Capital Expenditure,Payments to Contractor,PHOENIX SOFTWARE LTD,29/07/2022,"6,900.00"
"Communities, Customer & Commercial Services",Sport & Leisure,Premises-Related Expenditure,Electricity,EON next,12/07/2022,145.50
"Communities, Customer & Commercial Services",Sport & Leisure,Supplies & Services,Protective Clothing,IMAGE@WORK LTD,04/07/2022,"1,305.25"
"Communities, Customer & Commercial Services",Sport & Leisure,Supplies & Services,Protective Clothing,IMAGE@WORK LTD,11/07/2022,361.70
"Communities, Customer & Commercial Services",Sport & Leisure,Supplies & Services,Protective Clothing,IMAGE@WORK LTD,11/07/2022,"1,106.46"
"Communities, Customer & Commercial Services",Sport & Leisure,Supplies & Services,Protective Clothing,IMAGE@WORK LTD,27/07/2022,150.15
"Communities, Customer & Commercial Services",Sport & Leisure,Supplies & Services,Protective Clothing,IMAGE@WORK LTD,27/07/2022,179.00
"Communities, Customer & Commercial Services",Sport & Leisure,Supplies & Services,EEC Whole Milk,J DAIRIES,27/07/2022,697.66
"Communities, Customer & Commercial Services",Sport & Leisure,Supplies & Services,EEC Whole Milk,J DAIRIES,27/07/2022,"1,257.70"
"Communities, Customer & Commercial Services",Sport & Leisure,Supplies & Services,Provisions,J DAIRIES,04/07/2022,747.35
"Communities, Customer & Commercial Services",Sport & Leisure,Supplies & Services,Provisions,BIKOLD,11/07/2022,130.06
"Communities, Customer & Commercial Services",Sport & Leisure,Supplies & Services,Provisions,BIKOLD,25/07/2022,113.04
"Communities, Customer & Commercial Services",Sport & Leisure,Supplies & Services,Provisions,BIKOLD,15/07/2022,152.59
"Communities, Customer & Commercial Services",Sport & Leisure,Employees,Agency Supply Costs,TOTAL CATERING SOLUTONS RECRUITMENT LTD,18/07/2022,320.00
"Communities, Customer & Commercial Services",Sport & Leisure,Employees,Agency Supply Costs,TOTAL CATERING SOLUTONS RECRUITMENT LTD,13/07/2022,320.00
"Communities, Customer & Commercial Services",Sport & Leisure,Employees,Agency Supply Costs,TOTAL CATERING SOLUTONS RECRUITMENT LTD,27/07/2022,320.00
"Communities, Customer & Commercial Services",Sport & Leisure,Premises-Related Expenditure,Clean Mats & Toilet Requisites,Border Janitorial Supplies Limited,11/07/2022,119.70
"Communities, Customer & Commercial Services",Sport & Leisure,Premises-Related Expenditure,Clean Mats & Toilet Requisites,Border Janitorial Supplies Limited,18/07/2022,133.39
"Communities, Customer & Commercial Services",Sport & Leisure,Premises-Related Expenditure,Clean Mats & Toilet Requisites,Border Janitorial Supplies Limited,13/07/2022,104.03
"Communities, Customer & Commercial Services",Sport & Leisure,Premises-Related Expenditure,Clean Mats & Toilet Requisites,Border Janitorial Supplies Limited,12/07/2022,176.61
"Communities, Customer & Commercial Services",Sport & Leisure,Premises-Related Expenditure,Clean Mats & Toilet Requisites,Border Janitorial Supplies Limited,12/07/2022,167.20
"Communities, Customer & Commercial Services",Sport & Leisure,Premises-Related Expenditure,Clean Mats & Toilet Requisites,Border Janitorial Supplies Limited,12/07/2022,183.78
"Communities, Customer & Commercial Services",Sport & Leisure,Premises-Related Expenditure,Clean Mats & Toilet Requisites,Border Janitorial Supplies Limited,27/07/2022,119.00
"Communities, Customer & Commercial Services",Sport & Leisure,Supplies & Services,Crockery/Hardware/Light Equip,E N CATERING EQUIPMENT AND SERVICES  LTD,18/07/2022,221.94
"Communities, Customer & Commercial Services",Sport & Leisure,Supplies & Services,Crockery/Hardware/Light Equip,E N CATERING EQUIPMENT AND SERVICES  LTD,13/07/2022,253.41
"Communities, Customer & Commercial Services",Sport & Leisure,Supplies & Services,Crockery/Hardware/Light Equip,E N CATERING EQUIPMENT AND SERVICES  LTD,04/07/2022,291.39
"Communities, Customer & Commercial Services",Sport & Leisure,Supplies & Services,Provisions,BIKOLD,25/07/2022,175.32
"Communities, Customer & Commercial Services",Sport & Leisure,Supplies & Services,Provisions,BIKOLD,15/07/2022,104.13
"Communities, Customer & Commercial Services",Sport & Leisure,Supplies & Services,Provisions,BIKOLD,15/07/2022,124.86
"Communities, Customer & Commercial Services",Sport & Leisure,Supplies & Services,Provisions,BIKOLD,15/07/2022,134.06
"Communities, Customer & Commercial Services",Sport & Leisure,Supplies & Services,Provisions,BIKOLD,15/07/2022,312.74
"Communities, Customer & Commercial Services",Sport & Leisure,Supplies & Services,Provisions,BIKOLD,15/07/2022,351.27
"Communities, Customer & Commercial Services",Sport & Leisure,Supplies & Services,Provisions,BIKOLD,15/07/2022,191.82
"Communities, Customer & Commercial Services",Sport & Leisure,Supplies & Services,Provisions,BIKOLD,15/07/2022,144.70
"Communities, Customer & Commercial Services",Sport & Leisure,Supplies & Services,Provisions,BIKOLD,15/07/2022,497.94
"Communities, Customer & Commercial Services",Sport & Leisure,Supplies & Services,Provisions,BIKOLD,15/07/2022,172.41
"Communities, Customer & Commercial Services",Sport & Leisure,Supplies & Services,Provisions,BIKOLD,15/07/2022,143.43
"Communities, Customer & Commercial Services",Sport & Leisure,Supplies & Services,Provisions,BIKOLD,15/07/2022,149.11
"Communities, Customer & Commercial Services",Sport & Leisure,Supplies & Services,Provisions,BIKOLD,15/07/2022,"1,024.25"
"Communities, Customer & Commercial Services",Sport & Leisure,Supplies & Services,Provisions,BIKOLD,15/07/2022,111.44
"Communities, Customer & Commercial Services",Sport & Leisure,Supplies & Services,Provisions,BIKOLD,15/07/2022,105.13
"Communities, Customer & Commercial Services",Sport & Leisure,Supplies & Services,Provisions,BIKOLD,15/07/2022,252.60
"Communities, Customer & Commercial Services",Sport & Leisure,Supplies & Services,Provisions,BIKOLD,15/07/2022,270.30
"Communities, Customer & Commercial Services",Sport & Leisure,Supplies & Services,Provisions,BIKOLD,15/07/2022,150.05
"Communities, Customer & Commercial Services",Sport & Leisure,Supplies & Services,Provisions,BIKOLD,15/07/2022,272.67
"Communities, Customer & Commercial Services",Sport & Leisure,Supplies & Services,Provisions,BIKOLD,15/07/2022,105.73
"Communities, Customer & Commercial Services",Sport & Leisure,Supplies & Services,Provisions,BIKOLD,15/07/2022,135.48
"Communities, Customer & Commercial Services",Sport & Leisure,Supplies & Services,Provisions,BIKOLD,15/07/2022,131.99
"Communities, Customer & Commercial Services",Sport & Leisure,Supplies & Services,Provisions,BIKOLD,15/07/2022,333.54
"Communities, Customer & Commercial Services",Sport & Leisure,Supplies & Services,Provisions,BIKOLD,15/07/2022,179.75
"Communities, Customer & Commercial Services",Sport & Leisure,Supplies & Services,Provisions,BIKOLD,15/07/2022,278.75
"Communities, Customer & Commercial Services",Sport & Leisure,Supplies & Services,Provisions,BIKOLD,15/07/2022,177.15
"Communities, Customer & Commercial Services",Sport & Leisure,Supplies & Services,Provisions,BIKOLD,15/07/2022,165.15
"Communities, Customer & Commercial Services",Sport & Leisure,Supplies & Services,Provisions,BIKOLD,15/07/2022,183.33
"Communities, Customer & Commercial Services",Sport & Leisure,Supplies & Services,Provisions,BIKOLD,15/07/2022,258.49
"Communities, Customer & Commercial Services",Sport & Leisure,Supplies & Services,Provisions,BIKOLD,15/07/2022,170.63
"Communities, Customer & Commercial Services",Sport & Leisure,Supplies & Services,Provisions,BIKOLD,15/07/2022,478.39
"Communities, Customer & Commercial Services",Sport & Leisure,Supplies & Services,Provisions,BIKOLD,15/07/2022,134.14
"Communities, Customer & Commercial Services",Sport & Leisure,Supplies & Services,Provisions,BIKOLD,15/07/2022,335.97
"Communities, Customer & Commercial Services",Sport & Leisure,Supplies & Services,Provisions,BIKOLD,15/07/2022,280.15
"Communities, Customer & Commercial Services",Sport & Leisure,Supplies & Services,Provisions,BIKOLD,15/07/2022,157.30
"Communities, Customer & Commercial Services",Sport & Leisure,Supplies & Services,Provisions,BIKOLD,15/07/2022,466.57
"Communities, Customer & Commercial Services",Sport & Leisure,Supplies & Services,Provisions,BIKOLD,15/07/2022,213.26
"Communities, Customer & Commercial Services",Sport & Leisure,Supplies & Services,Provisions,BIKOLD,15/07/2022,-201.48
"Communities, Customer & Commercial Services",Sport & Leisure,Supplies & Services,Provisions,BIKOLD,15/07/2022,213.86
"Communities, Customer & Commercial Services",Sport & Leisure,Supplies & Services,Provisions,BIKOLD,15/07/2022,143.54
"Communities, Customer & Commercial Services",Sport & Leisure,Supplies & Services,Provisions,BIKOLD,15/07/2022,247.21
"Communities, Customer & Commercial Services",Sport & Leisure,Supplies & Services,Provisions,BIKOLD,15/07/2022,374.81
"Communities, Customer & Commercial Services",Sport & Leisure,Supplies & Services,Provisions,BIKOLD,15/07/2022,155.68
"Communities, Customer & Commercial Services",Sport & Leisure,Supplies & Services,Provisions,BIKOLD,15/07/2022,105.87
"Communities, Customer & Commercial Services",Sport & Leisure,Supplies & Services,Provisions,BIKOLD,15/07/2022,141.19
"Communities, Customer & Commercial Services",Sport & Leisure,Supplies & Services,Provisions,BIKOLD,15/07/2022,237.33
"Communities, Customer & Commercial Services",Sport & Leisure,Supplies & Services,Provisions,BIKOLD,15/07/2022,224.16
"Communities, Customer & Commercial Services",Sport & Leisure,Supplies & Services,Provisions,BIKOLD,15/07/2022,318.76
"Communities, Customer & Commercial Services",Sport & Leisure,Supplies & Services,Provisions,BIKOLD,15/07/2022,264.02
"Communities, Customer & Commercial Services",Sport & Leisure,Supplies & Services,Provisions,BIKOLD,15/07/2022,201.40
"Communities, Customer & Commercial Services",Sport & Leisure,Supplies & Services,Provisions,BIKOLD,15/07/2022,150.07
"Communities, Customer & Commercial Services",Sport & Leisure,Supplies & Services,Provisions,BIKOLD,15/07/2022,621.77
"Communities, Customer & Commercial Services",Sport & Leisure,Supplies & Services,Provisions,BIKOLD,15/07/2022,152.91
"Communities, Customer & Commercial Services",Sport & Leisure,Supplies & Services,Provisions,BIKOLD,15/07/2022,177.68
"Communities, Customer & Commercial Services",Sport & Leisure,Supplies & Services,Provisions,BIKOLD,15/07/2022,126.79
"Communities, Customer & Commercial Services",Sport & Leisure,Supplies & Services,Provisions,BIKOLD,15/07/2022,212.66
"Communities, Customer & Commercial Services",Sport & Leisure,Supplies & Services,Provisions,BIKOLD,15/07/2022,101.28
"Communities, Customer & Commercial Services",Sport & Leisure,Supplies & Services,Provisions,BIKOLD,15/07/2022,308.21
"Communities, Customer & Commercial Services",Sport & Leisure,Supplies & Services,Provisions,BIKOLD,15/07/2022,438.01
"Communities, Customer & Commercial Services",Sport & Leisure,Supplies & Services,Provisions,BIKOLD,15/07/2022,481.80
"Communities, Customer & Commercial Services",Sport & Leisure,Supplies & Services,Provisions,BIKOLD,15/07/2022,104.61
"Communities, Customer & Commercial Services",Sport & Leisure,Supplies & Services,Provisions,BIKOLD,15/07/2022,116.43
"Communities, Customer & Commercial Services",Sport & Leisure,Supplies & Services,Provisions,BIKOLD,15/07/2022,650.00
"Communities, Customer & Commercial Services",Sport & Leisure,Supplies & Services,Provisions,BIKOLD,15/07/2022,277.53
"Communities, Customer & Commercial Services",Sport & Leisure,Supplies & Services,Provisions,BIKOLD,15/07/2022,109.57
"Communities, Customer & Commercial Services",Sport & Leisure,Supplies & Services,Provisions,BIKOLD,15/07/2022,118.43
"Communities, Customer & Commercial Services",Sport & Leisure,Supplies & Services,Provisions,BIKOLD,15/07/2022,514.50
"Communities, Customer & Commercial Services",Sport & Leisure,Supplies & Services,Provisions,BIKOLD,15/07/2022,362.73
"Communities, Customer & Commercial Services",Sport & Leisure,Supplies & Services,Provisions,BIKOLD,15/07/2022,231.37
"Communities, Customer & Commercial Services",Sport & Leisure,Supplies & Services,Provisions,BIKOLD,15/07/2022,110.09
"Communities, Customer & Commercial Services",Sport & Leisure,Supplies & Services,Provisions,BIKOLD,15/07/2022,296.76
"Communities, Customer & Commercial Services",Sport & Leisure,Supplies & Services,Provisions,BIKOLD,15/07/2022,139.35
"Communities, Customer & Commercial Services",Sport & Leisure,Supplies & Services,Provisions,BIKOLD,15/07/2022,152.64
"Communities, Customer & Commercial Services",Sport & Leisure,Supplies & Services,Provisions,BIKOLD,15/07/2022,320.96
"Communities, Customer & Commercial Services",Sport & Leisure,Supplies & Services,Provisions,BIKOLD,15/07/2022,106.96
"Communities, Customer & Commercial Services",Sport & Leisure,Supplies & Services,Provisions,BIKOLD,15/07/2022,171.81
"Communities, Customer & Commercial Services",Sport & Leisure,Supplies & Services,Provisions,BIKOLD,15/07/2022,144.43
"Communities, Customer & Commercial Services",Sport & Leisure,Supplies & Services,Provisions,BIKOLD,15/07/2022,101.87
"Communities, Customer & Commercial Services",Sport & Leisure,Supplies & Services,Provisions,BIKOLD,15/07/2022,159.92
"Communities, Customer & Commercial Services",Sport & Leisure,Supplies & Services,Provisions,BIKOLD,15/07/2022,291.38
"Communities, Customer & Commercial Services",Sport & Leisure,Supplies & Services,Provisions,BIKOLD,15/07/2022,161.28
"Communities, Customer & Commercial Services",Sport & Leisure,Supplies & Services,Provisions,BIKOLD,15/07/2022,282.48
"Communities, Customer & Commercial Services",Sport & Leisure,Supplies & Services,Provisions,BIKOLD,15/07/2022,359.02
"Communities, Customer & Commercial Services",Sport & Leisure,Supplies & Services,Provisions,BIKOLD,15/07/2022,212.04
"Communities, Customer & Commercial Services",Sport & Leisure,Supplies & Services,Provisions,BIKOLD,15/07/2022,237.75
"Communities, Customer & Commercial Services",Sport & Leisure,Supplies & Services,Provisions,BIKOLD,15/07/2022,419.96
"Communities, Customer & Commercial Services",Sport & Leisure,Supplies & Services,Provisions,BIKOLD,15/07/2022,124.05
"Communities, Customer & Commercial Services",Sport & Leisure,Supplies & Services,Provisions,BIKOLD,15/07/2022,112.87
"Communities, Customer & Commercial Services",Sport & Leisure,Supplies & Services,Provisions,BIKOLD,15/07/2022,310.58
"Communities, Customer & Commercial Services",Sport & Leisure,Supplies & Services,Provisions,BIKOLD,15/07/2022,382.87
"Communities, Customer & Commercial Services",Sport & Leisure,Supplies & Services,Provisions,J S Catering Butchers,27/07/2022,220.72
"Communities, Customer & Commercial Services",Sport & Leisure,Supplies & Services,Provisions,J S Catering Butchers,27/07/2022,186.29
"Communities, Customer & Commercial Services",Sport & Leisure,Supplies & Services,Provisions,J S Catering Butchers,27/07/2022,106.80
"Communities, Customer & Commercial Services",Sport & Leisure,Supplies & Services,Provisions,J S Catering Butchers,27/07/2022,148.14
"Communities, Customer & Commercial Services",Sport & Leisure,Supplies & Services,Provisions,J S Catering Butchers,27/07/2022,113.03
"Communities, Customer & Commercial Services",Sport & Leisure,Supplies & Services,Provisions,J DAIRIES,04/07/2022,"1,342.02"
"Communities, Customer & Commercial Services",Sport & Leisure,Supplies & Services,Provisions,R & COMPANY,05/07/2022,116.87
"Communities, Customer & Commercial Services",Sport & Leisure,Supplies & Services,Provisions,R & COMPANY,05/07/2022,134.10
"Communities, Customer & Commercial Services",Sport & Leisure,Supplies & Services,Provisions,R & COMPANY,05/07/2022,100.54
"Communities, Customer & Commercial Services",Sport & Leisure,Supplies & Services,Provisions,R & COMPANY,05/07/2022,109.24
"Communities, Customer & Commercial Services",Sport & Leisure,Supplies & Services,Provisions,Handmade Speciality Products Ltd,11/07/2022,290.00
"Communities, Customer & Commercial Services",Sport & Leisure,Supplies & Services,Provisions,R & COMPANY,05/07/2022,161.59
"Communities, Customer & Commercial Services",Sport & Leisure,Supplies & Services,Provisions,R & COMPANY,05/07/2022,157.19
"Communities, Customer & Commercial Services",Sport & Leisure,Supplies & Services,Provisions,R & COMPANY,05/07/2022,125.36
"Communities, Customer & Commercial Services",Sport & Leisure,Supplies & Services,Provisions,R & COMPANY,05/07/2022,167.89
"Communities, Customer & Commercial Services",Sport & Leisure,Supplies & Services,Provisions,R & COMPANY,05/07/2022,135.42
"Communities, Customer & Commercial Services",Sport & Leisure,Supplies & Services,Provisions,R & COMPANY,05/07/2022,125.42
"Communities, Customer & Commercial Services",Sport & Leisure,Supplies & Services,Provisions,R & COMPANY,05/07/2022,171.91
"Communities, Customer & Commercial Services",Sport & Leisure,Supplies & Services,Provisions,R & COMPANY,05/07/2022,125.28
"Communities, Customer & Commercial Services",Sport & Leisure,Supplies & Services,Provisions,R & COMPANY,05/07/2022,121.10
"Communities, Customer & Commercial Services",Sport & Leisure,Supplies & Services,Provisions,R & COMPANY,05/07/2022,250.30
"Communities, Customer & Commercial Services",Sport & Leisure,Supplies & Services,Provisions,R & COMPANY,05/07/2022,209.61
"Communities, Customer & Commercial Services",Sport & Leisure,Supplies & Services,Provisions,R & COMPANY,05/07/2022,260.03
"Communities, Customer & Commercial Services",Sport & Leisure,Supplies & Services,Provisions,R & COMPANY,05/07/2022,147.79
"Communities, Customer & Commercial Services",Sport & Leisure,Supplies & Services,Provisions,R & COMPANY,05/07/2022,179.23
"Communities, Customer & Commercial Services",Sport & Leisure,Supplies & Services,Provisions,R & COMPANY,05/07/2022,180.06
"Communities, Customer & Commercial Services",Sport & Leisure,Supplies & Services,Provisions,R & COMPANY,05/07/2022,109.59
"Communities, Customer & Commercial Services",Sport & Leisure,Supplies & Services,Provisions,R & COMPANY,05/07/2022,102.78
"Communities, Customer & Commercial Services",Sport & Leisure,Supplies & Services,Provisions,R & COMPANY,05/07/2022,113.33
"Communities, Customer & Commercial Services",Sport & Leisure,Supplies & Services,Provisions,R & COMPANY,05/07/2022,150.77
"Communities, Customer & Commercial Services",Sport & Leisure,Supplies & Services,Provisions,R & COMPANY,05/07/2022,104.91
"Communities, Customer & Commercial Services",Sport & Leisure,Supplies & Services,Provisions,R & COMPANY,05/07/2022,102.63
"Communities, Customer & Commercial Services",Sport & Leisure,Supplies & Services,Provisions,R & COMPANY,05/07/2022,106.12
"Communities, Customer & Commercial Services",Sport & Leisure,Supplies & Services,Provisions,R & COMPANY,05/07/2022,291.05
"Communities, Customer & Commercial Services",Sport & Leisure,Supplies & Services,Provisions,R & COMPANY,05/07/2022,176.60
"Communities, Customer & Commercial Services",Sport & Leisure,Supplies & Services,Provisions,R & COMPANY,05/07/2022,198.65
"Communities, Customer & Commercial Services",Sport & Leisure,Supplies & Services,Provisions,R & COMPANY,05/07/2022,113.36
"Communities, Customer & Commercial Services",Sport & Leisure,Supplies & Services,Provisions,R & COMPANY,05/07/2022,172.82
"Communities, Customer & Commercial Services",Sport & Leisure,Supplies & Services,Provisions,R & COMPANY,05/07/2022,130.87
"Communities, Customer & Commercial Services",Sport & Leisure,Supplies & Services,Provisions,Delice de France,18/07/2022,183.18
"Communities, Customer & Commercial Services",Sport & Leisure,Supplies & Services,Provisions,BIKOLD,11/07/2022,292.41
"Communities, Customer & Commercial Services",Sport & Leisure,Supplies & Services,Provisions,BIKOLD,11/07/2022,100.98
"Communities, Customer & Commercial Services",Sport & Leisure,Supplies & Services,Provisions,BIKOLD,11/07/2022,113.62
"Communities, Customer & Commercial Services",Sport & Leisure,Supplies & Services,Provisions,BIKOLD,11/07/2022,102.10
"Communities, Customer & Commercial Services",Sport & Leisure,Supplies & Services,Provisions,BIKOLD,11/07/2022,210.53
"Communities, Customer & Commercial Services",Sport & Leisure,Supplies & Services,Provisions,BIKOLD,11/07/2022,108.14
"Communities, Customer & Commercial Services",Sport & Leisure,Supplies & Services,Provisions,BIKOLD,11/07/2022,246.04
"Communities, Customer & Commercial Services",Sport & Leisure,Supplies & Services,Provisions,BIKOLD,11/07/2022,191.96
"Communities, Customer & Commercial Services",Sport & Leisure,Supplies & Services,Provisions,BIKOLD,11/07/2022,535.98
"Communities, Customer & Commercial Services",Sport & Leisure,Supplies & Services,Provisions,BIKOLD,11/07/2022,299.93
"Communities, Customer & Commercial Services",Sport & Leisure,Supplies & Services,Provisions,BIKOLD,11/07/2022,114.48
"Communities, Customer & Commercial Services",Sport & Leisure,Supplies & Services,Provisions,BIKOLD,11/07/2022,320.35
"Communities, Customer & Commercial Services",Sport & Leisure,Supplies & Services,Provisions,BIKOLD,11/07/2022,176.92
"Communities, Customer & Commercial Services",Sport & Leisure,Supplies & Services,Provisions,BIKOLD,11/07/2022,187.80
"Communities, Customer & Commercial Services",Sport & Leisure,Supplies & Services,Provisions,BIKOLD,11/07/2022,134.20
"Communities, Customer & Commercial Services",Sport & Leisure,Supplies & Services,Provisions,BIKOLD,11/07/2022,113.99
"Communities, Customer & Commercial Services",Sport & Leisure,Supplies & Services,Provisions,BIKOLD,11/07/2022,245.90
"Communities, Customer & Commercial Services",Sport & Leisure,Supplies & Services,Provisions,BIKOLD,11/07/2022,244.44
"Communities, Customer & Commercial Services",Sport & Leisure,Supplies & Services,Provisions,BIKOLD,11/07/2022,262.59
"Communities, Customer & Commercial Services",Sport & Leisure,Supplies & Services,Provisions,BIKOLD,11/07/2022,231.26
"Communities, Customer & Commercial Services",Sport & Leisure,Supplies & Services,Provisions,BIKOLD,11/07/2022,364.89
"Communities, Customer & Commercial Services",Sport & Leisure,Supplies & Services,Provisions,BIKOLD,11/07/2022,184.93
"Communities, Customer & Commercial Services",Sport & Leisure,Supplies & Services,Provisions,BIKOLD,11/07/2022,253.70
"Communities, Customer & Commercial Services",Sport & Leisure,Supplies & Services,Provisions,BIKOLD,11/07/2022,284.41
"Communities, Customer & Commercial Services",Sport & Leisure,Supplies & Services,Provisions,BIKOLD,11/07/2022,153.23
"Communities, Customer & Commercial Services",Sport & Leisure,Supplies & Services,Provisions,BIKOLD,11/07/2022,104.33
"Communities, Customer & Commercial Services",Sport & Leisure,Supplies & Services,Provisions,BIKOLD,11/07/2022,166.58
"Communities, Customer & Commercial Services",Sport & Leisure,Supplies & Services,Provisions,BIKOLD,11/07/2022,103.26
"Communities, Customer & Commercial Services",Sport & Leisure,Supplies & Services,Provisions,BIKOLD,11/07/2022,193.75
"Communities, Customer & Commercial Services",Sport & Leisure,Supplies & Services,Provisions,BIKOLD,11/07/2022,156.19
"Communities, Customer & Commercial Services",Sport & Leisure,Supplies & Services,Provisions,BIKOLD,11/07/2022,184.29
"Communities, Customer & Commercial Services",Sport & Leisure,Supplies & Services,Provisions,BIKOLD,11/07/2022,979.76
"Communities, Customer & Commercial Services",Sport & Leisure,Supplies & Services,Provisions,BIKOLD,11/07/2022,163.26
"Communities, Customer & Commercial Services",Sport & Leisure,Supplies & Services,Provisions,BIKOLD,11/07/2022,184.07
"Communities, Customer & Commercial Services",Sport & Leisure,Supplies & Services,Provisions,BIKOLD,11/07/2022,200.88
"Communities, Customer & Commercial Services",Sport & Leisure,Supplies & Services,Provisions,BIKOLD,11/07/2022,145.55
"Communities, Customer & Commercial Services",Sport & Leisure,Supplies & Services,Provisions,BIKOLD,11/07/2022,153.27
"Communities, Customer & Commercial Services",Sport & Leisure,Supplies & Services,Provisions,BIKOLD,11/07/2022,290.59
"Communities, Customer & Commercial Services",Sport & Leisure,Supplies & Services,Provisions,BIKOLD,11/07/2022,365.43
"Communities, Customer & Commercial Services",Sport & Leisure,Supplies & Services,Provisions,BIKOLD,11/07/2022,114.84
"Communities, Customer & Commercial Services",Sport & Leisure,Supplies & Services,Provisions,BIKOLD,11/07/2022,188.05
"Communities, Customer & Commercial Services",Sport & Leisure,Supplies & Services,Provisions,BIKOLD,11/07/2022,119.08
"Communities, Customer & Commercial Services",Sport & Leisure,Supplies & Services,Provisions,BIKOLD,11/07/2022,121.59
"Communities, Customer & Commercial Services",Sport & Leisure,Supplies & Services,Provisions,BIKOLD,11/07/2022,144.28
"Communities, Customer & Commercial Services",Sport & Leisure,Supplies & Services,Provisions,BIKOLD,11/07/2022,532.97
"Communities, Customer & Commercial Services",Sport & Leisure,Supplies & Services,Provisions,BIKOLD,11/07/2022,136.62
"Communities, Customer & Commercial Services",Sport & Leisure,Supplies & Services,Provisions,BIKOLD,11/07/2022,141.14
"Communities, Customer & Commercial Services",Sport & Leisure,Supplies & Services,Provisions,BIKOLD,11/07/2022,117.16
"Communities, Customer & Commercial Services",Sport & Leisure,Supplies & Services,Provisions,BIKOLD,11/07/2022,279.49
"Communities, Customer & Commercial Services",Sport & Leisure,Supplies & Services,Provisions,BIKOLD,11/07/2022,104.21
"Communities, Customer & Commercial Services",Sport & Leisure,Supplies & Services,Provisions,BIKOLD,11/07/2022,215.47
"Communities, Customer & Commercial Services",Sport & Leisure,Supplies & Services,Provisions,BIKOLD,11/07/2022,125.83
"Communities, Customer & Commercial Services",Sport & Leisure,Supplies & Services,Provisions,BIKOLD,11/07/2022,113.00
"Communities, Customer & Commercial Services",Sport & Leisure,Supplies & Services,Provisions,BIKOLD,11/07/2022,145.95
"Communities, Customer & Commercial Services",Sport & Leisure,Supplies & Services,Provisions,BIKOLD,11/07/2022,286.03
"Communities, Customer & Commercial Services",Sport & Leisure,Supplies & Services,Provisions,BIKOLD,11/07/2022,202.05
"Communities, Customer & Commercial Services",Sport & Leisure,Supplies & Services,Provisions,BIKOLD,11/07/2022,401.52
"Communities, Customer & Commercial Services",Sport & Leisure,Supplies & Services,Provisions,BIKOLD,11/07/2022,171.85
"Communities, Customer & Commercial Services",Sport & Leisure,Supplies & Services,Provisions,BIKOLD,11/07/2022,244.07
"Communities, Customer & Commercial Services",Sport & Leisure,Supplies & Services,Provisions,BIKOLD,11/07/2022,137.31
"Communities, Customer & Commercial Services",Sport & Leisure,Supplies & Services,Provisions,BIKOLD,11/07/2022,245.41
"Communities, Customer & Commercial Services",Sport & Leisure,Supplies & Services,Provisions,BIKOLD,11/07/2022,142.11
"Communities, Customer & Commercial Services",Sport & Leisure,Supplies & Services,Provisions,BIKOLD,11/07/2022,222.79
"Communities, Customer & Commercial Services",Sport & Leisure,Supplies & Services,Provisions,BIKOLD,11/07/2022,538.14
"Communities, Customer & Commercial Services",Sport & Leisure,Supplies & Services,Provisions,BIKOLD,11/07/2022,104.76
"Communities, Customer & Commercial Services",Sport & Leisure,Supplies & Services,Provisions,BIKOLD,11/07/2022,275.02
"Communities, Customer & Commercial Services",Sport & Leisure,Supplies & Services,Provisions,BIKOLD,11/07/2022,142.90
"Communities, Customer & Commercial Services",Sport & Leisure,Supplies & Services,Provisions,BIKOLD,11/07/2022,113.27
"Communities, Customer & Commercial Services",Sport & Leisure,Supplies & Services,Provisions,BIKOLD,11/07/2022,151.53
"Communities, Customer & Commercial Services",Sport & Leisure,Supplies & Services,Provisions,BIKOLD,11/07/2022,884.11
"Communities, Customer & Commercial Services",Sport & Leisure,Supplies & Services,Provisions,BIKOLD,11/07/2022,400.87
"Communities, Customer & Commercial Services",Sport & Leisure,Supplies & Services,Provisions,BIKOLD,11/07/2022,230.09
"Communities, Customer & Commercial Services",Sport & Leisure,Supplies & Services,Provisions,BIKOLD,11/07/2022,278.69
"Communities, Customer & Commercial Services",Sport & Leisure,Supplies & Services,Provisions,BIKOLD,11/07/2022,103.68
"Communities, Customer & Commercial Services",Sport & Leisure,Supplies & Services,Provisions,BIKOLD,11/07/2022,235.09
"Communities, Customer & Commercial Services",Sport & Leisure,Supplies & Services,Provisions,BIKOLD,11/07/2022,192.19
"Communities, Customer & Commercial Services",Sport & Leisure,Supplies & Services,Provisions,BIKOLD,11/07/2022,240.74
"Communities, Customer & Commercial Services",Sport & Leisure,Supplies & Services,Provisions,BIKOLD,11/07/2022,180.81
"Communities, Customer & Commercial Services",Sport & Leisure,Supplies & Services,Provisions,BIKOLD,11/07/2022,404.26
"Communities, Customer & Commercial Services",Sport & Leisure,Supplies & Services,Provisions,BIKOLD,11/07/2022,426.73
"Communities, Customer & Commercial Services",Sport & Leisure,Supplies & Services,Provisions,BIKOLD,11/07/2022,100.80
"Communities, Customer & Commercial Services",Sport & Leisure,Supplies & Services,Provisions,BIKOLD,11/07/2022,110.47
"Communities, Customer & Commercial Services",Sport & Leisure,Supplies & Services,Provisions,BIKOLD,11/07/2022,284.97
"Communities, Customer & Commercial Services",Sport & Leisure,Supplies & Services,Provisions,BIKOLD,11/07/2022,101.14
"Communities, Customer & Commercial Services",Sport & Leisure,Supplies & Services,Provisions,BIKOLD,11/07/2022,154.96
"Communities, Customer & Commercial Services",Sport & Leisure,Supplies & Services,Provisions,BIKOLD,11/07/2022,147.69
"Communities, Customer & Commercial Services",Sport & Leisure,Supplies & Services,Provisions,BIKOLD,11/07/2022,595.28
"Communities, Customer & Commercial Services",Sport & Leisure,Supplies & Services,Provisions,BIKOLD,11/07/2022,205.32
"Communities, Customer & Commercial Services",Sport & Leisure,Supplies & Services,Provisions,BIKOLD,11/07/2022,151.86
"Communities, Customer & Commercial Services",Sport & Leisure,Supplies & Services,Provisions,BIKOLD,11/07/2022,523.42
"Communities, Customer & Commercial Services",Sport & Leisure,Supplies & Services,Provisions,BIKOLD,11/07/2022,103.04
"Communities, Customer & Commercial Services",Sport & Leisure,Supplies & Services,Provisions,BIKOLD,11/07/2022,246.40
"Communities, Customer & Commercial Services",Sport & Leisure,Supplies & Services,Provisions,BIKOLD,11/07/2022,132.43
"Communities, Customer & Commercial Services",Sport & Leisure,Supplies & Services,Provisions,BIKOLD,11/07/2022,124.02
"Communities, Customer & Commercial Services",Sport & Leisure,Supplies & Services,Provisions,BIKOLD,11/07/2022,325.97
"Communities, Customer & Commercial Services",Sport & Leisure,Supplies & Services,Provisions,BIKOLD,11/07/2022,113.21
"Communities, Customer & Commercial Services",Sport & Leisure,Supplies & Services,Provisions,BIKOLD,11/07/2022,217.84
"Communities, Customer & Commercial Services",Sport & Leisure,Supplies & Services,Provisions,BIKOLD,11/07/2022,107.93
"Communities, Customer & Commercial Services",Sport & Leisure,Supplies & Services,Provisions,BIKOLD,11/07/2022,120.09
"Communities, Customer & Commercial Services",Sport & Leisure,Supplies & Services,Provisions,BIKOLD,11/07/2022,104.11
"Communities, Customer & Commercial Services",Sport & Leisure,Supplies & Services,Provisions,BIKOLD,11/07/2022,198.47
"Communities, Customer & Commercial Services",Sport & Leisure,Supplies & Services,Provisions,BIKOLD,11/07/2022,193.42
"Communities, Customer & Commercial Services",Sport & Leisure,Supplies & Services,Provisions,BIKOLD,11/07/2022,155.10
"Communities, Customer & Commercial Services",Sport & Leisure,Supplies & Services,Provisions,BIKOLD,11/07/2022,159.35
"Communities, Customer & Commercial Services",Sport & Leisure,Supplies & Services,Provisions,BIKOLD,11/07/2022,365.64
"Communities, Customer & Commercial Services",Sport & Leisure,Supplies & Services,Provisions,BIKOLD,11/07/2022,373.00
"Communities, Customer & Commercial Services",Sport & Leisure,Supplies & Services,Provisions,BIKOLD,11/07/2022,179.97
"Communities, Customer & Commercial Services",Sport & Leisure,Supplies & Services,Provisions,BIKOLD,11/07/2022,406.06
"Communities, Customer & Commercial Services",Sport & Leisure,Supplies & Services,Provisions,J S Catering Butchers,25/07/2022,136.05
"Communities, Customer & Commercial Services",Sport & Leisure,Supplies & Services,Provisions,J S Catering Butchers,25/07/2022,312.54
"Communities, Customer & Commercial Services",Sport & Leisure,Supplies & Services,Provisions,J S Catering Butchers,25/07/2022,118.85
"Communities, Customer & Commercial Services",Sport & Leisure,Supplies & Services,Provisions,J S Catering Butchers,25/07/2022,122.59
"Communities, Customer & Commercial Services",Sport & Leisure,Supplies & Services,Provisions,J S Catering Butchers,25/07/2022,122.36
"Communities, Customer & Commercial Services",Sport & Leisure,Supplies & Services,Provisions,J S Catering Butchers,25/07/2022,192.28
"Communities, Customer & Commercial Services",Sport & Leisure,Supplies & Services,Provisions,J S Catering Butchers,25/07/2022,144.00
"Communities, Customer & Commercial Services",Sport & Leisure,Supplies & Services,Provisions,J S Catering Butchers,25/07/2022,108.00
"Communities, Customer & Commercial Services",Sport & Leisure,Supplies & Services,Provisions,J S Catering Butchers,27/07/2022,181.80
"Communities, Customer & Commercial Services",Sport & Leisure,Supplies & Services,Provisions,J S Catering Butchers,27/07/2022,152.76
"Communities, Customer & Commercial Services",Sport & Leisure,Supplies & Services,Provisions,J S Catering Butchers,27/07/2022,155.45
"Communities, Customer & Commercial Services",Sport & Leisure,Supplies & Services,Provisions,J S Catering Butchers,27/07/2022,168.96
"Communities, Customer & Commercial Services",Sport & Leisure,Supplies & Services,Provisions,J S Catering Butchers,27/07/2022,179.78
"Communities, Customer & Commercial Services",Sport & Leisure,Supplies & Services,Provisions,J S Catering Butchers,27/07/2022,147.22
"Communities, Customer & Commercial Services",Sport & Leisure,Supplies & Services,Provisions,BIKOLD,15/07/2022,147.20
"Communities, Customer & Commercial Services",Sport & Leisure,Supplies & Services,Provisions,BIKOLD,15/07/2022,119.75
"Communities, Customer & Commercial Services",Sport & Leisure,Supplies & Services,Provisions,BIKOLD,15/07/2022,135.00
"Communities, Customer & Commercial Services",Sport & Leisure,Supplies & Services,Provisions,BIKOLD,15/07/2022,345.50
"Communities, Customer & Commercial Services",Sport & Leisure,Supplies & Services,Provisions,BIKOLD,15/07/2022,167.03
"Communities, Customer & Commercial Services",Sport & Leisure,Supplies & Services,Provisions,BIKOLD,15/07/2022,198.54
"Communities, Customer & Commercial Services",Sport & Leisure,Supplies & Services,Provisions,BIKOLD,15/07/2022,494.22
"Communities, Customer & Commercial Services",Sport & Leisure,Supplies & Services,Provisions,BIKOLD,15/07/2022,248.76
"Communities, Customer & Commercial Services",Sport & Leisure,Supplies & Services,Provisions,BIKOLD,15/07/2022,199.00
"Communities, Customer & Commercial Services",Sport & Leisure,Supplies & Services,Provisions,BIKOLD,15/07/2022,149.40
"Communities, Customer & Commercial Services",Sport & Leisure,Supplies & Services,Provisions,BIKOLD,15/07/2022,132.79
"Communities, Customer & Commercial Services",Sport & Leisure,Supplies & Services,Provisions,BIKOLD,15/07/2022,286.16
"Communities, Customer & Commercial Services",Sport & Leisure,Supplies & Services,Provisions,BIKOLD,15/07/2022,104.17
"Communities, Customer & Commercial Services",Sport & Leisure,Supplies & Services,Provisions,BIKOLD,15/07/2022,111.56
"Communities, Customer & Commercial Services",Sport & Leisure,Supplies & Services,Computer Hardware (Maint),CIVICA UK LIMITED ,28/07/2022,420.00
"Communities, Customer & Commercial Services",Sport & Leisure,Supplies & Services,Computer Hardware (Maint),CIVICA UK LIMITED ,28/07/2022,173.25
"Communities, Customer & Commercial Services",Sport & Leisure,Supplies & Services,Computer Hardware (Maint),CIVICA UK LIMITED ,28/07/2022,350.00
"Communities, Customer & Commercial Services",Sport & Leisure,Supplies & Services,Provisions,BIKOLD,25/07/2022,434.69
"Communities, Customer & Commercial Services",Sport & Leisure,Supplies & Services,Provisions,BIKOLD,25/07/2022,140.68
"Communities, Customer & Commercial Services",Sport & Leisure,Supplies & Services,Provisions,BIKOLD,25/07/2022,138.49
"Communities, Customer & Commercial Services",Sport & Leisure,Supplies & Services,Provisions,BIKOLD,25/07/2022,191.81
"Communities, Customer & Commercial Services",Sport & Leisure,Supplies & Services,Provisions,BIKOLD,25/07/2022,172.78
"Communities, Customer & Commercial Services",Sport & Leisure,Supplies & Services,Provisions,BIKOLD,25/07/2022,186.11
"Communities, Customer & Commercial Services",Sport & Leisure,Supplies & Services,Provisions,BIKOLD,25/07/2022,317.01
"Communities, Customer & Commercial Services",Sport & Leisure,Supplies & Services,Provisions,BIKOLD,25/07/2022,127.42
"Communities, Customer & Commercial Services",Sport & Leisure,Supplies & Services,Provisions,BIKOLD,25/07/2022,292.00
"Communities, Customer & Commercial Services",Sport & Leisure,Supplies & Services,Provisions,BIKOLD,25/07/2022,103.44
"Communities, Customer & Commercial Services",Sport & Leisure,Supplies & Services,Provisions,BIKOLD,25/07/2022,312.66
"Communities, Customer & Commercial Services",Sport & Leisure,Supplies & Services,Provisions,BIKOLD,25/07/2022,138.61
"Communities, Customer & Commercial Services",Sport & Leisure,Supplies & Services,Provisions,BIKOLD,25/07/2022,321.07
"Communities, Customer & Commercial Services",Sport & Leisure,Supplies & Services,Provisions,BIKOLD,25/07/2022,124.22
"Communities, Customer & Commercial Services",Sport & Leisure,Supplies & Services,Provisions,BIKOLD,25/07/2022,116.46
"Communities, Customer & Commercial Services",Sport & Leisure,Supplies & Services,Provisions,BIKOLD,25/07/2022,123.70
"Communities, Customer & Commercial Services",Sport & Leisure,Supplies & Services,Provisions,BIKOLD,25/07/2022,130.15
"Communities, Customer & Commercial Services",Sport & Leisure,Supplies & Services,Provisions,BIKOLD,25/07/2022,204.83
"Communities, Customer & Commercial Services",Sport & Leisure,Supplies & Services,Provisions,BIKOLD,25/07/2022,194.95
"Communities, Customer & Commercial Services",Sport & Leisure,Supplies & Services,Provisions,BIKOLD,25/07/2022,140.56
"Communities, Customer & Commercial Services",Sport & Leisure,Supplies & Services,Provisions,BIKOLD,25/07/2022,130.09
"Communities, Customer & Commercial Services",Sport & Leisure,Supplies & Services,Provisions,BIKOLD,25/07/2022,141.44
"Communities, Customer & Commercial Services",Sport & Leisure,Supplies & Services,Provisions,BIKOLD,25/07/2022,155.58
"Communities, Customer & Commercial Services",Sport & Leisure,Supplies & Services,Provisions,BIKOLD,25/07/2022,164.23
"Communities, Customer & Commercial Services",Sport & Leisure,Supplies & Services,Provisions,BIKOLD,25/07/2022,248.57
"Communities, Customer & Commercial Services",Sport & Leisure,Supplies & Services,Provisions,BIKOLD,25/07/2022,427.42
"Communities, Customer & Commercial Services",Sport & Leisure,Supplies & Services,Provisions,BIKOLD,25/07/2022,-185.55
"Communities, Customer & Commercial Services",Sport & Leisure,Supplies & Services,Provisions,BIKOLD,25/07/2022,424.30
"Communities, Customer & Commercial Services",Sport & Leisure,Supplies & Services,Provisions,BIKOLD,25/07/2022,156.96
"Communities, Customer & Commercial Services",Sport & Leisure,Supplies & Services,Provisions,BIKOLD,25/07/2022,110.77
"Communities, Customer & Commercial Services",Sport & Leisure,Supplies & Services,Provisions,BIKOLD,25/07/2022,222.66
"Communities, Customer & Commercial Services",Sport & Leisure,Supplies & Services,Provisions,BIKOLD,25/07/2022,170.03
"Communities, Customer & Commercial Services",Sport & Leisure,Supplies & Services,Provisions,BIKOLD,25/07/2022,184.55
"Communities, Customer & Commercial Services",Sport & Leisure,Supplies & Services,Provisions,BIKOLD,25/07/2022,340.72
"Communities, Customer & Commercial Services",Sport & Leisure,Supplies & Services,Provisions,BIKOLD,25/07/2022,317.00
"Communities, Customer & Commercial Services",Sport & Leisure,Supplies & Services,Provisions,BIKOLD,25/07/2022,-213.45
"Communities, Customer & Commercial Services",Sport & Leisure,Supplies & Services,Provisions,BIKOLD,25/07/2022,113.13
"Communities, Customer & Commercial Services",Sport & Leisure,Supplies & Services,Provisions,BIKOLD,25/07/2022,-129.59
"Communities, Customer & Commercial Services",Sport & Leisure,Supplies & Services,Provisions,BIKOLD,25/07/2022,128.76
"Communities, Customer & Commercial Services",Sport & Leisure,Supplies & Services,Provisions,BIKOLD,25/07/2022,159.01
"Communities, Customer & Commercial Services",Sport & Leisure,Supplies & Services,Provisions,BIKOLD,25/07/2022,504.12
"Communities, Customer & Commercial Services",Sport & Leisure,Supplies & Services,Provisions,BIKOLD,25/07/2022,162.08
"Communities, Customer & Commercial Services",Sport & Leisure,Supplies & Services,Provisions,BIKOLD,25/07/2022,114.08
"Communities, Customer & Commercial Services",Sport & Leisure,Supplies & Services,Provisions,BIKOLD,25/07/2022,151.36
"Communities, Customer & Commercial Services",Sport & Leisure,Supplies & Services,Provisions,BIKOLD,25/07/2022,237.19
"Communities, Customer & Commercial Services",Sport & Leisure,Supplies & Services,Provisions,BIKOLD,25/07/2022,310.54
"Communities, Customer & Commercial Services",Sport & Leisure,Supplies & Services,Provisions,BIKOLD,25/07/2022,562.96
"Communities, Customer & Commercial Services",Sport & Leisure,Supplies & Services,Provisions,BIKOLD,25/07/2022,129.59
"Communities, Customer & Commercial Services",Sport & Leisure,Supplies & Services,Provisions,BIKOLD,25/07/2022,157.20
"Communities, Customer & Commercial Services",Sport & Leisure,Supplies & Services,Provisions,BIKOLD,25/07/2022,145.18
"Communities, Customer & Commercial Services",Sport & Leisure,Supplies & Services,Provisions,BIKOLD,25/07/2022,297.40
"Communities, Customer & Commercial Services",Sport & Leisure,Supplies & Services,Provisions,BIKOLD,25/07/2022,485.41
"Communities, Customer & Commercial Services",Sport & Leisure,Supplies & Services,Provisions,BIKOLD,25/07/2022,135.05
"Communities, Customer & Commercial Services",Sport & Leisure,Supplies & Services,Provisions,BIKOLD,25/07/2022,103.41
"Communities, Customer & Commercial Services",Sport & Leisure,Supplies & Services,Provisions,BIKOLD,25/07/2022,250.79
"Communities, Customer & Commercial Services",Sport & Leisure,Supplies & Services,Provisions,BIKOLD,25/07/2022,598.27
"Communities, Customer & Commercial Services",Sport & Leisure,Supplies & Services,Provisions,BIKOLD,25/07/2022,266.86
"Communities, Customer & Commercial Services",Sport & Leisure,Supplies & Services,Provisions,BIKOLD,25/07/2022,341.87
"Communities, Customer & Commercial Services",Sport & Leisure,Supplies & Services,Provisions,BIKOLD,25/07/2022,247.87
"Communities, Customer & Commercial Services",Sport & Leisure,Supplies & Services,Provisions,BIKOLD,25/07/2022,134.32
"Communities, Customer & Commercial Services",Sport & Leisure,Supplies & Services,Provisions,BIKOLD,25/07/2022,114.70
"Communities, Customer & Commercial Services",Sport & Leisure,Supplies & Services,Provisions,BIKOLD,25/07/2022,107.30
"Communities, Customer & Commercial Services",Sport & Leisure,Supplies & Services,Provisions,BIKOLD,25/07/2022,102.97
"Communities, Customer & Commercial Services",Sport & Leisure,Supplies & Services,Provisions,BIKOLD,25/07/2022,249.66
"Communities, Customer & Commercial Services",Sport & Leisure,Supplies & Services,Provisions,BIKOLD,25/07/2022,241.40
"Communities, Customer & Commercial Services",Sport & Leisure,Supplies & Services,Provisions,BIKOLD,25/07/2022,103.59
"Communities, Customer & Commercial Services",Sport & Leisure,Supplies & Services,Provisions,BIKOLD,25/07/2022,729.57
"Communities, Customer & Commercial Services",Sport & Leisure,Supplies & Services,Provisions,BIKOLD,25/07/2022,130.48
"Communities, Customer & Commercial Services",Sport & Leisure,Supplies & Services,Provisions,BIKOLD,25/07/2022,197.83
"Communities, Customer & Commercial Services",Sport & Leisure,Supplies & Services,Provisions,BIKOLD,25/07/2022,376.32
"Communities, Customer & Commercial Services",Sport & Leisure,Supplies & Services,Provisions,BIKOLD,25/07/2022,419.39
"Communities, Customer & Commercial Services",Sport & Leisure,Supplies & Services,Provisions,BIKOLD,25/07/2022,268.85
"Communities, Customer & Commercial Services",Sport & Leisure,Supplies & Services,Provisions,BIKOLD,25/07/2022,216.16
"Communities, Customer & Commercial Services",Sport & Leisure,Supplies & Services,Provisions,BIKOLD,25/07/2022,167.70
"Communities, Customer & Commercial Services",Sport & Leisure,Supplies & Services,Provisions,BIKOLD,25/07/2022,144.18
"Communities, Customer & Commercial Services",Sport & Leisure,Supplies & Services,Provisions,BIKOLD,25/07/2022,105.17
"Communities, Customer & Commercial Services",Sport & Leisure,Supplies & Services,Provisions,BIKOLD,25/07/2022,573.36
"Communities, Customer & Commercial Services",Sport & Leisure,Supplies & Services,Provisions,BIKOLD,25/07/2022,135.49
"Communities, Customer & Commercial Services",Sport & Leisure,Supplies & Services,Provisions,BIKOLD,25/07/2022,101.23
"Communities, Customer & Commercial Services",Sport & Leisure,Supplies & Services,Provisions,BIKOLD,25/07/2022,112.11
"Communities, Customer & Commercial Services",Sport & Leisure,Supplies & Services,Provisions,BIKOLD,25/07/2022,142.86
"Communities, Customer & Commercial Services",Sport & Leisure,Supplies & Services,Provisions,BIKOLD,25/07/2022,134.00
"Communities, Customer & Commercial Services",Sport & Leisure,Employees,Agency Supply Costs,BIKOLD,27/07/2022,192.00
"Communities, Customer & Commercial Services",Sport & Leisure,Premises-Related Expenditure,Clean Mats & Toilet Requisites,Border Janitorial Supplies Limited,11/07/2022,111.21
"Communities, Customer & Commercial Services",Sport & Leisure,Supplies & Services,Crockery/Hardware/Light Equip,PLANGLOW LTD,18/07/2022,238.16
"Communities, Customer & Commercial Services",Sport & Leisure,Supplies & Services,Crockery/Hardware/Light Equip,PLANGLOW LTD,18/07/2022,432.82
"Communities, Customer & Commercial Services",Sport & Leisure,Supplies & Services,Crockery/Hardware/Light Equip,Nobisco Limited,04/07/2022,109.78
"Communities, Customer & Commercial Services",Sport & Leisure,Supplies & Services,Crockery/Hardware/Light Equip,PLANGLOW LTD,04/07/2022,348.31
"Communities, Customer & Commercial Services",Sport & Leisure,Supplies & Services,Crockery/Hardware/Light Equip,PLANGLOW LTD,11/07/2022,355.37
"Communities, Customer & Commercial Services",Sport & Leisure,Supplies & Services,Crockery/Hardware/Light Equip,PLANGLOW LTD,18/07/2022,641.56
"Communities, Customer & Commercial Services",Sport & Leisure,Supplies & Services,Crockery/Hardware/Light Equip,PLANGLOW LTD,18/07/2022,373.68
"Communities, Customer & Commercial Services",Sport & Leisure,Supplies & Services,Crockery/Hardware/Light Equip,Vegware,18/07/2022,341.52
"Communities, Customer & Commercial Services",Sport & Leisure,Supplies & Services,Provisions,BIKOLD,15/07/2022,653.97
"Communities, Customer & Commercial Services",Sport & Leisure,Supplies & Services,Provisions,BIKOLD,15/07/2022,453.27
"Communities, Customer & Commercial Services",Sport & Leisure,Supplies & Services,Provisions,BIKOLD,15/07/2022,344.43
"Communities, Customer & Commercial Services",Sport & Leisure,Supplies & Services,Provisions,BIKOLD,15/07/2022,411.71
"Communities, Customer & Commercial Services",Sport & Leisure,Supplies & Services,Provisions,BIKOLD,15/07/2022,115.73
"Communities, Customer & Commercial Services",Sport & Leisure,Supplies & Services,Provisions,BIKOLD,15/07/2022,167.55
"Communities, Customer & Commercial Services",Sport & Leisure,Supplies & Services,Provisions,BIKOLD,15/07/2022,180.63
"Communities, Customer & Commercial Services",Sport & Leisure,Supplies & Services,Provisions,BIKOLD,15/07/2022,735.73
"Communities, Customer & Commercial Services",Sport & Leisure,Supplies & Services,Provisions,BIKOLD,15/07/2022,145.81
"Communities, Customer & Commercial Services",Sport & Leisure,Supplies & Services,Provisions,BIKOLD,15/07/2022,117.04
"Communities, Customer & Commercial Services",Sport & Leisure,Supplies & Services,Provisions,BIKOLD,15/07/2022,144.02
"Communities, Customer & Commercial Services",Sport & Leisure,Supplies & Services,Provisions,BIKOLD,15/07/2022,193.20
"Communities, Customer & Commercial Services",Sport & Leisure,Supplies & Services,Provisions,BIKOLD,15/07/2022,203.25
"Communities, Customer & Commercial Services",Sport & Leisure,Supplies & Services,Provisions,BIKOLD,15/07/2022,429.30
"Communities, Customer & Commercial Services",Sport & Leisure,Supplies & Services,Provisions,BIKOLD,15/07/2022,115.08
"Communities, Customer & Commercial Services",Sport & Leisure,Supplies & Services,Provisions,BIKOLD,15/07/2022,294.74
"Communities, Customer & Commercial Services",Sport & Leisure,Supplies & Services,Provisions,BIKOLD,15/07/2022,152.28
"Communities, Customer & Commercial Services",Sport & Leisure,Supplies & Services,Provisions,BIKOLD,15/07/2022,248.82
"Communities, Customer & Commercial Services",Sport & Leisure,Supplies & Services,Provisions,BIKOLD,15/07/2022,124.09
"Communities, Customer & Commercial Services",Sport & Leisure,Supplies & Services,Provisions,BIKOLD,15/07/2022,168.87
"Communities, Customer & Commercial Services",Sport & Leisure,Supplies & Services,Provisions,BIKOLD,15/07/2022,209.47
"Communities, Customer & Commercial Services",Sport & Leisure,Supplies & Services,Provisions,PASTA KING (UK) LIMITED,18/07/2022,264.48
"Communities, Customer & Commercial Services",Sport & Leisure,Supplies & Services,Provisions,PLANGLOW LTD,18/07/2022,290.26
"Communities, Customer & Commercial Services",Sport & Leisure,Supplies & Services,Provisions,PASTA KING (UK) LIMITED,18/07/2022,395.52
"Communities, Customer & Commercial Services",Sport & Leisure,Supplies & Services,Provisions,PASTA KING (UK) LIMITED,18/07/2022,263.68
"Communities, Customer & Commercial Services",Sport & Leisure,Supplies & Services,Provisions,On A Roll,18/07/2022,164.96
"Communities, Customer & Commercial Services",Sport & Leisure,Supplies & Services,Provisions,On A Roll,18/07/2022,222.67
"Communities, Customer & Commercial Services",Sport & Leisure,Supplies & Services,Provisions,J S Catering Butchers,27/07/2022,143.97
"Communities, Customer & Commercial Services",Sport & Leisure,Supplies & Services,Provisions,SPICE TIME,04/07/2022,133.52
"Communities, Customer & Commercial Services",Sport & Leisure,Supplies & Services,Provisions,PASTA KING (UK) LIMITED,11/07/2022,164.80
"Communities, Customer & Commercial Services",Sport & Leisure,Supplies & Services,Provisions,T FOOD SERVICE LTD,11/07/2022,106.70
"Communities, Customer & Commercial Services",Sport & Leisure,Supplies & Services,Provisions,T FOOD SERVICE LTD,11/07/2022,720.00
"Communities, Customer & Commercial Services",Sport & Leisure,Supplies & Services,Provisions,On A Roll,11/07/2022,164.96
"Communities, Customer & Commercial Services",Sport & Leisure,Supplies & Services,Provisions,On A Roll,11/07/2022,217.97
"Communities, Customer & Commercial Services",Sport & Leisure,Supplies & Services,Provisions,On A Roll,11/07/2022,150.67
"Communities, Customer & Commercial Services",Sport & Leisure,Supplies & Services,Provisions,On A Roll,11/07/2022,857.70
"Communities, Customer & Commercial Services",Sport & Leisure,Supplies & Services,Provisions,T FOOD SERVICE LTD,11/07/2022,239.80
"Communities, Customer & Commercial Services",Sport & Leisure,Supplies & Services,Provisions,T FOOD SERVICE LTD,11/07/2022,568.00
"Communities, Customer & Commercial Services",Sport & Leisure,Supplies & Services,Provisions,SPICE TIME,11/07/2022,111.68
"Communities, Customer & Commercial Services",Sport & Leisure,Supplies & Services,Provisions,T FOOD SERVICE LTD,11/07/2022,175.00
"Communities, Customer & Commercial Services",Sport & Leisure,Supplies & Services,Provisions,T FOOD SERVICE LTD,11/07/2022,225.06
"Communities, Customer & Commercial Services",Sport & Leisure,Supplies & Services,Provisions,Delice de France,11/07/2022,429.80
"Communities, Customer & Commercial Services",Sport & Leisure,Supplies & Services,Provisions,T FOOD SERVICE LTD,11/07/2022,485.40
"Communities, Customer & Commercial Services",Sport & Leisure,Supplies & Services,Provisions,R & COMPANY,05/07/2022,127.58
"Communities, Customer & Commercial Services",Sport & Leisure,Supplies & Services,Provisions,R & COMPANY,05/07/2022,155.54
"Communities, Customer & Commercial Services",Sport & Leisure,Supplies & Services,Provisions,R & COMPANY,05/07/2022,116.16
"Communities, Customer & Commercial Services",Sport & Leisure,Supplies & Services,Provisions,R & COMPANY,05/07/2022,125.05
"Communities, Customer & Commercial Services",Sport & Leisure,Supplies & Services,Provisions,R & COMPANY,05/07/2022,252.67
"Communities, Customer & Commercial Services",Sport & Leisure,Supplies & Services,Provisions,On A Roll,18/07/2022,909.70
"Communities, Customer & Commercial Services",Sport & Leisure,Supplies & Services,Provisions,On A Roll,18/07/2022,135.55
"Communities, Customer & Commercial Services",Sport & Leisure,Supplies & Services,Provisions,On A Roll,13/07/2022,139.87
"Communities, Customer & Commercial Services",Sport & Leisure,Supplies & Services,Provisions,On A Roll,13/07/2022,857.70
"Communities, Customer & Commercial Services",Sport & Leisure,Supplies & Services,Provisions,On A Roll,13/07/2022,164.96
"Communities, Customer & Commercial Services",Sport & Leisure,Supplies & Services,Provisions,On A Roll,13/07/2022,299.14
"Communities, Customer & Commercial Services",Sport & Leisure,Supplies & Services,Provisions,PASTA KING (UK) LIMITED,13/07/2022,230.72
"Communities, Customer & Commercial Services",Sport & Leisure,Supplies & Services,Provisions,TROPICAL ICE,13/07/2022,794.50
"Communities, Customer & Commercial Services",Sport & Leisure,Supplies & Services,Provisions,TROPICAL ICE,13/07/2022,569.00
"Communities, Customer & Commercial Services",Sport & Leisure,Supplies & Services,Provisions,TROPICAL ICE,13/07/2022,344.50
"Communities, Customer & Commercial Services",Sport & Leisure,Supplies & Services,Provisions,BIKOLD,11/07/2022,208.36
"Communities, Customer & Commercial Services",Sport & Leisure,Supplies & Services,Provisions,BIKOLD,11/07/2022,407.35
"Communities, Customer & Commercial Services",Sport & Leisure,Supplies & Services,Provisions,BIKOLD,11/07/2022,181.54
"Communities, Customer & Commercial Services",Sport & Leisure,Supplies & Services,Provisions,BIKOLD,11/07/2022,116.30
"Communities, Customer & Commercial Services",Sport & Leisure,Supplies & Services,Provisions,BIKOLD,11/07/2022,255.72
"Communities, Customer & Commercial Services",Sport & Leisure,Supplies & Services,Provisions,BIKOLD,11/07/2022,233.69
"Communities, Customer & Commercial Services",Sport & Leisure,Supplies & Services,Provisions,BIKOLD,11/07/2022,"1,096.24"
"Communities, Customer & Commercial Services",Sport & Leisure,Supplies & Services,Provisions,BIKOLD,11/07/2022,305.46
"Communities, Customer & Commercial Services",Sport & Leisure,Supplies & Services,Provisions,BIKOLD,11/07/2022,221.30
"Communities, Customer & Commercial Services",Sport & Leisure,Supplies & Services,Provisions,BIKOLD,11/07/2022,487.39
"Communities, Customer & Commercial Services",Sport & Leisure,Supplies & Services,Provisions,BIKOLD,11/07/2022,406.14
"Communities, Customer & Commercial Services",Sport & Leisure,Supplies & Services,Provisions,BIKOLD,11/07/2022,227.26
"Communities, Customer & Commercial Services",Sport & Leisure,Supplies & Services,Provisions,BIKOLD,11/07/2022,219.01
"Communities, Customer & Commercial Services",Sport & Leisure,Supplies & Services,Provisions,BIKOLD,11/07/2022,557.70
"Communities, Customer & Commercial Services",Sport & Leisure,Supplies & Services,Provisions,BIKOLD,11/07/2022,142.10
"Communities, Customer & Commercial Services",Sport & Leisure,Supplies & Services,Provisions,BIKOLD,11/07/2022,241.05
"Communities, Customer & Commercial Services",Sport & Leisure,Supplies & Services,Provisions,BIKOLD,11/07/2022,595.66
"Communities, Customer & Commercial Services",Sport & Leisure,Supplies & Services,Provisions,BIKOLD,11/07/2022,508.61
"Communities, Customer & Commercial Services",Sport & Leisure,Supplies & Services,Provisions,BIKOLD,11/07/2022,242.08
"Communities, Customer & Commercial Services",Sport & Leisure,Supplies & Services,Provisions,BIKOLD,11/07/2022,155.22
"Communities, Customer & Commercial Services",Sport & Leisure,Supplies & Services,Provisions,BIKOLD,11/07/2022,530.06
"Communities, Customer & Commercial Services",Sport & Leisure,Supplies & Services,Provisions,BIKOLD,11/07/2022,111.84
"Communities, Customer & Commercial Services",Sport & Leisure,Supplies & Services,Provisions,BIKOLD,11/07/2022,451.68
"Communities, Customer & Commercial Services",Sport & Leisure,Supplies & Services,Provisions,BIKOLD,11/07/2022,290.89
"Communities, Customer & Commercial Services",Sport & Leisure,Supplies & Services,Provisions,BIKOLD,11/07/2022,"1,067.64"
"Communities, Customer & Commercial Services",Sport & Leisure,Supplies & Services,Provisions,BIKOLD,11/07/2022,255.57
"Communities, Customer & Commercial Services",Sport & Leisure,Supplies & Services,Provisions,SPICE TIME,12/07/2022,141.36
"Communities, Customer & Commercial Services",Sport & Leisure,Supplies & Services,Provisions,J S Catering Butchers,25/07/2022,112.01
"Communities, Customer & Commercial Services",Sport & Leisure,Supplies & Services,Provisions,J S Catering Butchers,25/07/2022,122.48
"Communities, Customer & Commercial Services",Sport & Leisure,Supplies & Services,Provisions,J S Catering Butchers,25/07/2022,135.40
"Communities, Customer & Commercial Services",Sport & Leisure,Supplies & Services,Provisions,J S Catering Butchers,27/07/2022,248.36
"Communities, Customer & Commercial Services",Sport & Leisure,Supplies & Services,Provisions,Handmade Speciality Products Ltd,27/07/2022,118.20
"Communities, Customer & Commercial Services",Sport & Leisure,Supplies & Services,Provisions,PASTA KING (UK) LIMITED,27/07/2022,164.80
"Communities, Customer & Commercial Services",Sport & Leisure,Supplies & Services,Provisions,On A Roll,27/07/2022,164.96
"Communities, Customer & Commercial Services",Sport & Leisure,Supplies & Services,Provisions,On A Roll,27/07/2022,316.27
"Communities, Customer & Commercial Services",Sport & Leisure,Supplies & Services,Provisions,On A Roll,27/07/2022,131.23
"Communities, Customer & Commercial Services",Sport & Leisure,Supplies & Services,Provisions,On A Roll,27/07/2022,560.80
"Communities, Customer & Commercial Services",Sport & Leisure,Supplies & Services,Provisions,BIKOLD,15/07/2022,712.94
"Communities, Customer & Commercial Services",Sport & Leisure,Supplies & Services,Provisions,BIKOLD,15/07/2022,452.07
"Communities, Customer & Commercial Services",Sport & Leisure,Supplies & Services,Provisions,BIKOLD,15/07/2022,328.93
"Communities, Customer & Commercial Services",Sport & Leisure,Supplies & Services,Provisions,BIKOLD,25/07/2022,145.35
"Communities, Customer & Commercial Services",Sport & Leisure,Supplies & Services,Provisions,BIKOLD,25/07/2022,288.53
"Communities, Customer & Commercial Services",Sport & Leisure,Supplies & Services,Provisions,BIKOLD,25/07/2022,345.24
"Communities, Customer & Commercial Services",Sport & Leisure,Supplies & Services,Provisions,BIKOLD,25/07/2022,141.19
"Communities, Customer & Commercial Services",Sport & Leisure,Supplies & Services,Provisions,BIKOLD,25/07/2022,173.46
"Communities, Customer & Commercial Services",Sport & Leisure,Supplies & Services,Provisions,BIKOLD,25/07/2022,248.62
"Communities, Customer & Commercial Services",Sport & Leisure,Supplies & Services,Provisions,BIKOLD,25/07/2022,-191.29
"Communities, Customer & Commercial Services",Sport & Leisure,Supplies & Services,Provisions,BIKOLD,25/07/2022,135.38
"Communities, Customer & Commercial Services",Sport & Leisure,Supplies & Services,Provisions,BIKOLD,25/07/2022,755.78
"Communities, Customer & Commercial Services",Sport & Leisure,Supplies & Services,Provisions,BIKOLD,25/07/2022,174.16
"Communities, Customer & Commercial Services",Sport & Leisure,Supplies & Services,Provisions,BIKOLD,25/07/2022,324.82
"Communities, Customer & Commercial Services",Sport & Leisure,Supplies & Services,Provisions,BIKOLD,25/07/2022,168.69
"Communities, Customer & Commercial Services",Sport & Leisure,Supplies & Services,Provisions,BIKOLD,25/07/2022,305.72
"Communities, Customer & Commercial Services",Sport & Leisure,Supplies & Services,Provisions,BIKOLD,25/07/2022,198.10
"Communities, Customer & Commercial Services",Sport & Leisure,Supplies & Services,Provisions,BIKOLD,25/07/2022,120.04
"Communities, Customer & Commercial Services",Sport & Leisure,Supplies & Services,Provisions,BIKOLD,25/07/2022,111.33
"Communities, Customer & Commercial Services",Sport & Leisure,Supplies & Services,Provisions,SPICE TIME,28/07/2022,104.68
"Communities, Customer & Commercial Services",Sport & Leisure,Supplies & Services,Protective Clothing,TA MYWORKWEAR,26/07/2022,"1,153.60"
"Communities, Customer & Commercial Services",Sport & Leisure,Premises-Related Expenditure,Clean Mats & Toilet Requisites,Border Janitorial Supplies Limited,26/07/2022,189.60
"Communities, Customer & Commercial Services",Sport & Leisure,Premises-Related Expenditure,Clean Mats & Toilet Requisites,Border Janitorial Supplies Limited,26/07/2022,120.09
"Communities, Customer & Commercial Services",Sport & Leisure,Premises-Related Expenditure,Clean Mats & Toilet Requisites,Border Janitorial Supplies Limited,26/07/2022,306.72
"Communities, Customer & Commercial Services",Sport & Leisure,Premises-Related Expenditure,Clean Mats & Toilet Requisites,Border Janitorial Supplies Limited,26/07/2022,115.35
"Communities, Customer & Commercial Services",Sport & Leisure,Premises-Related Expenditure,Clean Mats & Toilet Requisites,Border Janitorial Supplies Limited,08/07/2022,"-2,219.03"
"Communities, Customer & Commercial Services",Sport & Leisure,Premises-Related Expenditure,Clean Mats & Toilet Requisites,Border Janitorial Supplies Limited,08/07/2022,165.54
"Communities, Customer & Commercial Services",Sport & Leisure,Premises-Related Expenditure,Clean Mats & Toilet Requisites,Border Janitorial Supplies Limited,07/07/2022,296.44
"Communities, Customer & Commercial Services",Sport & Leisure,Premises-Related Expenditure,Clean Mats & Toilet Requisites,Border Janitorial Supplies Limited,07/07/2022,369.54
"Communities, Customer & Commercial Services",Sport & Leisure,Premises-Related Expenditure,Clean Mats & Toilet Requisites,Border Janitorial Supplies Limited,01/07/2022,128.10
"Communities, Customer & Commercial Services",Sport & Leisure,Premises-Related Expenditure,Clean Mats & Toilet Requisites,Border Janitorial Supplies Limited,07/07/2022,114.12
"Communities, Customer & Commercial Services",Sport & Leisure,Premises-Related Expenditure,Clean Mats & Toilet Requisites,Border Janitorial Supplies Limited,21/07/2022,189.60
"Communities, Customer & Commercial Services",Sport & Leisure,Premises-Related Expenditure,Clean Mats & Toilet Requisites,Border Janitorial Supplies Limited,21/07/2022,736.45
"Communities, Customer & Commercial Services",Sport & Leisure,Premises-Related Expenditure,Clean Mats & Toilet Requisites,Border Janitorial Supplies Limited,29/07/2022,112.41
"Communities, Customer & Commercial Services",Sport & Leisure,Premises-Related Expenditure,Clean Mats & Toilet Requisites,Border Janitorial Supplies Limited,29/07/2022,260.62
"Communities, Customer & Commercial Services",Sport & Leisure,Premises-Related Expenditure,Clean Mats & Toilet Requisites,Border Janitorial Supplies Limited,29/07/2022,178.99
"Communities, Customer & Commercial Services",Sport & Leisure,Premises-Related Expenditure,Clean Mats & Toilet Requisites,Border Janitorial Supplies Limited,29/07/2022,359.59
"Communities, Customer & Commercial Services",Sport & Leisure,Premises-Related Expenditure,Clean Mats & Toilet Requisites,Border Janitorial Supplies Limited,29/07/2022,"2,219.03"
"Communities, Customer & Commercial Services",Sport & Leisure,Premises-Related Expenditure,Clean Mats & Toilet Requisites,Border Janitorial Supplies Limited,26/07/2022,137.36
"Communities, Customer & Commercial Services",Sport & Leisure,Premises-Related Expenditure,Clean Mats & Toilet Requisites,Border Janitorial Supplies Limited,26/07/2022,158.85
"Communities, Customer & Commercial Services",Sport & Leisure,Premises-Related Expenditure,Clean Mats & Toilet Requisites,Border Janitorial Supplies Limited,26/07/2022,205.46
"Communities, Customer & Commercial Services",Sport & Leisure,Premises-Related Expenditure,Clean Mats & Toilet Requisites,Border Janitorial Supplies Limited,26/07/2022,171.61
"Communities, Customer & Commercial Services",Sport & Leisure,Premises-Related Expenditure,Clean Mats & Toilet Requisites,Border Janitorial Supplies Limited,08/07/2022,146.68
"Communities, Customer & Commercial Services",Sport & Leisure,Premises-Related Expenditure,Clean Mats & Toilet Requisites,Border Janitorial Supplies Limited,08/07/2022,185.33
"Communities, Customer & Commercial Services",Sport & Leisure,Premises-Related Expenditure,Clean Mats & Toilet Requisites,Border Janitorial Supplies Limited,08/07/2022,233.01
"Communities, Customer & Commercial Services",Sport & Leisure,Premises-Related Expenditure,Clean Mats & Toilet Requisites,Border Janitorial Supplies Limited,26/07/2022,146.90
"Communities, Customer & Commercial Services",Sport & Leisure,Premises-Related Expenditure,Clean Mats & Toilet Requisites,Border Janitorial Supplies Limited,26/07/2022,788.90
"Communities, Customer & Commercial Services",Sport & Leisure,Premises-Related Expenditure,Clean Mats & Toilet Requisites,Border Janitorial Supplies Limited,26/07/2022,116.56
"Communities, Customer & Commercial Services",Sport & Leisure,Premises-Related Expenditure,Clean Mats & Toilet Requisites,Border Janitorial Supplies Limited,08/07/2022,"1,040.00"
"Communities, Customer & Commercial Services",Sport & Leisure,Premises-Related Expenditure,Clean Mats & Toilet Requisites,Border Janitorial Supplies Limited,29/07/2022,222.85
"Communities, Customer & Commercial Services",Sport & Leisure,Premises-Related Expenditure,Clean Mats & Toilet Requisites,Border Janitorial Supplies Limited,29/07/2022,264.63
"Communities, Customer & Commercial Services",Sport & Leisure,Premises-Related Expenditure,Clean Mats & Toilet Requisites,Border Janitorial Supplies Limited,29/07/2022,224.59
"Communities, Customer & Commercial Services",Sport & Leisure,Premises-Related Expenditure,Clean Mats & Toilet Requisites,Border Janitorial Supplies Limited,29/07/2022,"2,490.00"
"Communities, Customer & Commercial Services",Sport & Leisure,Premises-Related Expenditure,Clean Mats & Toilet Requisites,Border Janitorial Supplies Limited,29/07/2022,"4,758.00"
"Communities, Customer & Commercial Services",Sport & Leisure,Premises-Related Expenditure,Clean Mats & Toilet Requisites,Border Janitorial Supplies Limited,29/07/2022,218.37
"Communities, Customer & Commercial Services",Sport & Leisure,Premises-Related Expenditure,Clean Mats & Toilet Requisites,Border Janitorial Supplies Limited,26/07/2022,109.29
"Communities, Customer & Commercial Services",Sport & Leisure,Premises-Related Expenditure,Clean Mats & Toilet Requisites,Border Janitorial Supplies Limited,26/07/2022,109.73
"Communities, Customer & Commercial Services",Sport & Leisure,Premises-Related Expenditure,Clean Mats & Toilet Requisites,Border Janitorial Supplies Limited,26/07/2022,225.56
"Communities, Customer & Commercial Services",Sport & Leisure,Premises-Related Expenditure,Clean Mats & Toilet Requisites,Border Janitorial Supplies Limited,26/07/2022,212.70
"Communities, Customer & Commercial Services",Sport & Leisure,Premises-Related Expenditure,Clean Mats & Toilet Requisites,Border Janitorial Supplies Limited,01/07/2022,134.19
"Communities, Customer & Commercial Services",Sport & Leisure,Premises-Related Expenditure,Clean Mats & Toilet Requisites,Border Janitorial Supplies Limited,01/07/2022,180.00
"Communities, Customer & Commercial Services",Sport & Leisure,Supplies & Services,Subscriptions,APSE (MANCHESTER),26/07/2022,600.00
"Communities, Customer & Commercial Services",Sport & Leisure,Supplies & Services,Equipment - Repair,DENMANS ELECTRICAL WHOLESALERS LTD,26/07/2022,373.40
"Communities, Customer & Commercial Services",Sport & Leisure,Supplies & Services,Equipment - Repair,THE CLEAN MACHINE DIRECT LTD,29/07/2022,207.95
"Communities, Customer & Commercial Services",Sport & Leisure,Premises-Related Expenditure,Clean Mats & Toilet Requisites,Border Janitorial Supplies Limited,26/07/2022,144.15
"Communities, Customer & Commercial Services",Sport & Leisure,Premises-Related Expenditure,Clean Mats & Toilet Requisites,Border Janitorial Supplies Limited,26/07/2022,146.37
"Communities, Customer & Commercial Services",Sport & Leisure,Premises-Related Expenditure,Clean Mats & Toilet Requisites,Border Janitorial Supplies Limited,08/07/2022,208.26
"Communities, Customer & Commercial Services",Sport & Leisure,Premises-Related Expenditure,Clean Mats & Toilet Requisites,Border Janitorial Supplies Limited,26/07/2022,722.85
"Communities, Customer & Commercial Services",Sport & Leisure,Premises-Related Expenditure,Clean Mats & Toilet Requisites,Border Janitorial Supplies Limited,08/07/2022,346.41
"Communities, Customer & Commercial Services",Sport & Leisure,Premises-Related Expenditure,Clean Mats & Toilet Requisites,Border Janitorial Supplies Limited,07/07/2022,249.47
"Communities, Customer & Commercial Services",Sport & Leisure,Premises-Related Expenditure,Clean Mats & Toilet Requisites,Border Janitorial Supplies Limited,21/07/2022,174.88
"Communities, Customer & Commercial Services",Sport & Leisure,Premises-Related Expenditure,Clean Mats & Toilet Requisites,Border Janitorial Supplies Limited,21/07/2022,114.06
"Communities, Customer & Commercial Services",Sport & Leisure,Premises-Related Expenditure,Clean Mats & Toilet Requisites,Border Janitorial Supplies Limited,21/07/2022,142.81
"Communities, Customer & Commercial Services",Sport & Leisure,Premises-Related Expenditure,Clean Mats & Toilet Requisites,Border Janitorial Supplies Limited,21/07/2022,244.17
"Communities, Customer & Commercial Services",Sport & Leisure,Premises-Related Expenditure,Clean Mats & Toilet Requisites,Border Janitorial Supplies Limited,29/07/2022,152.97
"Communities, Customer & Commercial Services",Sport & Leisure,Premises-Related Expenditure,Clean Mats & Toilet Requisites,Border Janitorial Supplies Limited,29/07/2022,114.48
"Communities, Customer & Commercial Services",Sport & Leisure,Premises-Related Expenditure,Clean Mats & Toilet Requisites,Border Janitorial Supplies Limited,29/07/2022,287.61
"Communities, Customer & Commercial Services",Sport & Leisure,Premises-Related Expenditure,Clean Mats & Toilet Requisites,Border Janitorial Supplies Limited,29/07/2022,177.72
"Communities, Customer & Commercial Services",Sport & Leisure,Premises-Related Expenditure,Clean Mats & Toilet Requisites,Border Janitorial Supplies Limited,29/07/2022,459.11
"Communities, Customer & Commercial Services",Sport & Leisure,Premises-Related Expenditure,Clean Mats & Toilet Requisites,Border Janitorial Supplies Limited,29/07/2022,202.12
"Communities, Customer & Commercial Services",Sport & Leisure,Premises-Related Expenditure,Clean Mats & Toilet Requisites,Border Janitorial Supplies Limited,29/07/2022,222.01
"Communities, Customer & Commercial Services",Sport & Leisure,Premises-Related Expenditure,Clean Mats & Toilet Requisites,Border Janitorial Supplies Limited,29/07/2022,275.47
"Communities, Customer & Commercial Services",Sport & Leisure,Supplies & Services,Equipment - Purchase,Probos Promotions Limited,07/07/2022,187.00
"Communities, Customer & Commercial Services",Sport & Leisure,Premises-Related Expenditure,Clean Mats & Toilet Requisites,Border Janitorial Supplies Limited,07/07/2022,167.70
"Communities, Customer & Commercial Services",Sport & Leisure,Premises-Related Expenditure,Clean Mats & Toilet Requisites,Border Janitorial Supplies Limited,26/07/2022,536.18
"Communities, Customer & Commercial Services",Sport & Leisure,Premises-Related Expenditure,Clean Mats & Toilet Requisites,Border Janitorial Supplies Limited,21/07/2022,272.67
"Communities, Customer & Commercial Services",Sport & Leisure,Premises-Related Expenditure,R&M -Building Other,BRADLEY INDUSTRIAL SERVICES,11/07/2022,231.03
"Communities, Customer & Commercial Services",Sport & Leisure,Premises-Related Expenditure,R&M -Building Other,JCE & SONS LTD,13/07/2022,131.18
"Communities, Customer & Commercial Services",Sport & Leisure,Premises-Related Expenditure,R&M -Building Other,TAYLORS MECHANICAL H & P SERVICES LTD,04/07/2022,147.28
"Communities, Customer & Commercial Services",Sport & Leisure,Premises-Related Expenditure,R&M -Building Other,JCE & SONS LTD,27/07/2022,186.00
"Communities, Customer & Commercial Services",Sport & Leisure,Supplies & Services,Crockery/Hardware/Light Equip,CALTEL CATERING & LAUNDRY EQUIPMENT LLP,13/07/2022,216.00
"Communities, Customer & Commercial Services",Sport & Leisure,Supplies & Services,Provisions,BIKOLD,15/07/2022,123.21
"Communities, Customer & Commercial Services",Sport & Leisure,Supplies & Services,Provisions,On A Roll,18/07/2022,338.62
"Communities, Customer & Commercial Services",Sport & Leisure,Supplies & Services,Provisions,Handmade Speciality Products Ltd,04/07/2022,167.97
"Communities, Customer & Commercial Services",Sport & Leisure,Supplies & Services,Provisions,On A Roll,11/07/2022,263.28
"Communities, Customer & Commercial Services",Sport & Leisure,Supplies & Services,Provisions,On A Roll,13/07/2022,206.25
"Communities, Customer & Commercial Services",Sport & Leisure,Supplies & Services,Provisions,On A Roll,13/07/2022,211.83
"Communities, Customer & Commercial Services",Sport & Leisure,Supplies & Services,Provisions,BIKOLD,11/07/2022,103.69
"Communities, Customer & Commercial Services",Sport & Leisure,Supplies & Services,Provisions,A Tea & Coffee Merchants,27/07/2022,227.92
"Communities, Customer & Commercial Services",Sport & Leisure,Supplies & Services,Provisions,On A Roll,27/07/2022,355.24
"Communities, Customer & Commercial Services",Sport & Leisure,Supplies & Services,Provisions,BIKOLD,25/07/2022,180.14
"Communities, Customer & Commercial Services",Sport & Leisure,Supplies & Services,Other Materials,A&N Signs,04/07/2022,475.00
"Communities, Customer & Commercial Services",Sport & Leisure,Supplies & Services,Other Materials,J L & SONS LTD,13/07/2022,247.29
"Communities, Customer & Commercial Services",Sport & Leisure,Supplies & Services,Sub Contractors,BUSINESS WATCH GUARDING LIMITED,15/07/2022,273.28
"Communities, Customer & Commercial Services",Sport & Leisure,Supplies & Services,Protective Clothing,CORPORATE TOGS LTD,04/07/2022,160.05
"Communities, Customer & Commercial Services",Sport & Leisure,Supplies & Services,Chemicals/Cleaning Products,BRENNTAG UK LIMITED,01/07/2022,125.00
"Communities, Customer & Commercial Services",Sport & Leisure,Supplies & Services,Chemicals/Cleaning Products,MAIN MAN SUPPLIES LTD,04/07/2022,100.20
"Communities, Customer & Commercial Services",Sport & Leisure,Supplies & Services,Stationery,THE TILL ROLL CO LTD,11/07/2022,550.00
"Communities, Customer & Commercial Services",Sport & Leisure,Employees,Staff Training,INSTITUTE OF SWIMMING ,12/07/2022,"1,198.00"
"Communities, Customer & Commercial Services",Sport & Leisure,Supplies & Services,Equipment - Purchase,Waterlogic GB LTD,19/07/2022,"1,716.90"
"Communities, Customer & Commercial Services",Sport & Leisure,Supplies & Services,Libraries Book Fund,L M Fitness UK Ltd,19/07/2022,789.17
"Communities, Customer & Commercial Services",Sport & Leisure,Premises-Related Expenditure,Preventative Maintenance,JCE & SONS LTD,13/07/2022,331.30
"Communities, Customer & Commercial Services",Sport & Leisure,Supplies & Services,Chemicals/Cleaning Products,J P L LTD,07/07/2022,144.00
"Communities, Customer & Commercial Services",Sport & Leisure,Supplies & Services,Chemicals/Cleaning Products,JAK WATER SYSTEMS LTD,04/07/2022,224.90
"Communities, Customer & Commercial Services",Sport & Leisure,Supplies & Services,Chemicals/Cleaning Products,BRENNTAG UK LIMITED,18/07/2022,"1,118.00"
"Communities, Customer & Commercial Services",Sport & Leisure,Supplies & Services,Items For Resale,SWIM ENGLAND TRADING LIMITED ,25/07/2022,739.69
"Communities, Customer & Commercial Services",Sport & Leisure,Supplies & Services,Protective Clothing,CORPORATE TOGS LTD,21/07/2022,120.50
"Communities, Customer & Commercial Services",Sport & Leisure,Supplies & Services,Items For Resale,Splash About International Limited,20/07/2022,263.10
"Communities, Customer & Commercial Services",Sport & Leisure,Supplies & Services,Chemicals/Cleaning Products,JAK WATER SYSTEMS LTD,18/07/2022,224.90
"Communities, Customer & Commercial Services",Sport & Leisure,Supplies & Services,Chemicals/Cleaning Products,BRENNTAG UK LIMITED,27/07/2022,145.50
"Communities, Customer & Commercial Services",Sport & Leisure,Supplies & Services,Chemicals/Cleaning Products,BRENNTAG UK LIMITED,28/07/2022,218.00
"Communities, Customer & Commercial Services",Sport & Leisure,Supplies & Services,Chemicals/Cleaning Products,Border Janitorial Supplies Limited,28/07/2022,150.30
"Communities, Customer & Commercial Services",Sport & Leisure,Supplies & Services,Chemicals/Cleaning Products,BRENNTAG UK LIMITED,27/07/2022,125.00
"Communities, Customer & Commercial Services",Sport & Leisure,Premises-Related Expenditure,R&M -Building Other,Surface Performance Ltd,25/07/2022,"1,295.00"
"Communities, Customer & Commercial Services",Sport & Leisure,Supplies & Services,Licences,L M Fitness UK Ltd,22/07/2022,565.18
"Communities, Customer & Commercial Services",Sport & Leisure,Supplies & Services,Licences,L M Fitness UK Ltd,11/07/2022,565.18
"Communities, Customer & Commercial Services",Sport & Leisure,Supplies & Services,Licences,L M Fitness UK Ltd,18/07/2022,565.18
"Communities, Customer & Commercial Services",Sport & Leisure,Supplies & Services,Licences,L M Fitness UK Ltd,18/07/2022,565.18
"Communities, Customer & Commercial Services",Sport & Leisure,Supplies & Services,Equipment - Purchase,J P L LTD,18/07/2022,196.80
"Communities, Customer & Commercial Services",Sport & Leisure,Supplies & Services,Equipment - Purchase,Neuff Athletic Equipment,18/07/2022,"1,495.50"
"Communities, Customer & Commercial Services",Sport & Leisure,Supplies & Services,Equipment - Purchase,Neuff Athletic Equipment,18/07/2022,150.00
"Communities, Customer & Commercial Services",Sport & Leisure,Supplies & Services,Equipment - Purchase,GRANVILLE CONSTRUCTION & MAINTENANCE LTD,29/07/2022,621.00
"Communities, Customer & Commercial Services",Sport & Leisure,Supplies & Services,Equipment - Purchase,GRANVILLE CONSTRUCTION & MAINTENANCE LTD,29/07/2022,693.47
"Communities, Customer & Commercial Services",Sport & Leisure,Supplies & Services,Concessionary Travel,THAMES CARD TECHNOLOGY LTD,13/07/2022,"1,971.30"
"Communities, Customer & Commercial Services",Sport & Leisure,Supplies & Services,Research Surveys,Max AssociatesLtd,25/07/2022,"11,212.50"
"Communities, Customer & Commercial Services",Sport & Leisure,Supplies & Services,Research Surveys,Max Associates  Ltd,08/07/2022,"13,455.00"
"Communities, Customer & Commercial Services",Sport & Leisure,Supplies & Services,Equipment - Purchase,Universal Services (Sports Equipment) Ltd,12/07/2022,216.99
"Communities, Customer & Commercial Services",Sport & Leisure,Supplies & Services,Equipment - Purchase,Life Fitness UK Ltd,25/07/2022,142.21
"Communities, Customer & Commercial Services",Sport & Leisure,Supplies & Services,Equipment - Purchase,The Telford Langley School,27/07/2022,500.00
"Communities, Customer & Commercial Services",Sport & Leisure,Supplies & Services,Equipment - Purchase,Surface Performance Ltd,12/07/2022,"1,295.00"
"Communities, Customer & Commercial Services",Sport & Leisure,Supplies & Services,Equipment - Purchase,Rangeball UK LTD,20/07/2022,"1,425.00"
"Communities, Customer & Commercial Services",Sport & Leisure,Supplies & Services,Equipment - Hire,OAKLEYS LTD,11/07/2022,639.98
"Communities, Customer & Commercial Services",Sport & Leisure,Premises-Related Expenditure,R&M WC Planned,Agrovista UK LTD,18/07/2022,"3,132.34"
"Communities, Customer & Commercial Services",Sport & Leisure,Premises-Related Expenditure,R&M WC Planned,Agrovista UK LTD,18/07/2022,"1,600.00"
"Communities, Customer & Commercial Services",Sport & Leisure,Premises-Related Expenditure,R&M WC Planned,Agrovista UK LTD,20/07/2022,"4,175.00"
"Communities, Customer & Commercial Services",Sport & Leisure,Transport-Related Expenditure,Servicing & Repairs V&P,C STORES LTD,18/07/2022,209.28
"Communities, Customer & Commercial Services",Sport & Leisure,Transport-Related Expenditure,Servicing & Repairs V&P,C STORES LTD,26/07/2022,"1,982.51"
"Communities, Customer & Commercial Services",Sport & Leisure,Transport-Related Expenditure,Servicing & Repairs V&P,Pirtek Telford,05/07/2022,133.73
"Communities, Customer & Commercial Services",Sport & Leisure,Transport-Related Expenditure,Servicing & Repairs V&P,THE LODGE TYRE CO LTD,01/07/2022,230.90
"Communities, Customer & Commercial Services",Sport & Leisure,Transport-Related Expenditure,Servicing & Repairs V&P,C STORES LTD,29/07/2022,534.51
"Communities, Customer & Commercial Services",Sport & Leisure,Transport-Related Expenditure,Servicing & Repairs V&P,C STORES LTD,29/07/2022,563.03
"Communities, Customer & Commercial Services",Sport & Leisure,Transport-Related Expenditure,Fuel,Butler Fuels,29/07/2022,"2,366.45"
"Communities, Customer & Commercial Services",Sport & Leisure,Supplies & Services,Crockery/Hardware/Light Equip,PLANGLOW LTD,04/07/2022,268.12
"Communities, Customer & Commercial Services",Sport & Leisure,Supplies & Services,Provisions,Delice de France,04/07/2022,412.03
"Communities, Customer & Commercial Services",Sport & Leisure,Supplies & Services,Provisions,Handmade Speciality Products Ltd,11/07/2022,140.70
"Communities, Customer & Commercial Services",Sport & Leisure,Supplies & Services,Provisions,TROPICAL ICE,13/07/2022,"1,279.75"
"Communities, Customer & Commercial Services",Sport & Leisure,Supplies & Services,Provisions,BIKOLD,11/07/2022,535.31
"Communities, Customer & Commercial Services",Sport & Leisure,Supplies & Services,Provisions,BIKOLD,11/07/2022,722.35
"Communities, Customer & Commercial Services",Sport & Leisure,Supplies & Services,Provisions,BIKOLD,11/07/2022,247.48
"Communities, Customer & Commercial Services",Sport & Leisure,Supplies & Services,Provisions,BIKOLD,11/07/2022,207.50
"Communities, Customer & Commercial Services",Sport & Leisure,Supplies & Services,Provisions,BIKOLD,25/07/2022,101.46
"Communities, Customer & Commercial Services",Sport & Leisure,Supplies & Services,Provisions,BIKOLD,25/07/2022,390.90
"Communities, Customer & Commercial Services",Sport & Leisure,Supplies & Services,Provisions,BIKOLD,25/07/2022,130.54
"Communities, Customer & Commercial Services",Sport & Leisure,Premises-Related Expenditure,R&M Fixed Plant Other,SAWMATIC,04/07/2022,121.75
"Communities, Customer & Commercial Services",Sport & Leisure,Supplies & Services,Licences,PPL PRS Ltd,27/07/2022,"9,878.65"
"Communities, Customer & Commercial Services",Sport & Leisure,Supplies & Services,Equipment - Purchase,CCS MEDIA LIMITED,12/07/2022,176.00
"Communities, Customer & Commercial Services",Sport & Leisure,Supplies & Services,Equipment - Purchase,Wrekin Pneumatics(Telford) Ltd,13/07/2022,769.58
"Communities, Customer & Commercial Services",Sport & Leisure,Supplies & Services,Equipment - Hire,SLIDERS SKATE SHOP,13/07/2022,300.00
"Communities, Customer & Commercial Services",Sport & Leisure,Supplies & Services,Equipment - Purchase,JP AUDIO VISUAL LTD,27/07/2022,415.00
"Communities, Customer & Commercial Services",Sport & Leisure,Employees,Staff Training,INSTITUTE OF SWIMMING ,12/07/2022,750.00
"Communities, Customer & Commercial Services",Sport & Leisure,Employees,Staff Training,INSTITUTE OF SWIMMING ,19/07/2022,"1,198.00"
"Communities, Customer & Commercial Services",Sport & Leisure,Employees,Staff Training,RLSS UK Shop,19/07/2022,232.00
"Communities, Customer & Commercial Services",Sport & Leisure,Employees,Staff Training,RLSS UK Shop,21/07/2022,199.50
"Communities, Customer & Commercial Services",Sport & Leisure,Supplies & Services,Equipment - Purchase,RLSS UK Shop,18/07/2022,210.00
"Communities, Customer & Commercial Services",Sport & Leisure,Supplies & Services,Chemicals/Cleaning Products,BRENNTAG UK LIMITED,27/07/2022,255.00
"Communities, Customer & Commercial Services",Sport & Leisure,Supplies & Services,Equipment - Purchase,J P L LTD,19/07/2022,308.00
"Communities, Customer & Commercial Services",Sport & Leisure,Employees,Staff Training,BACR EDUCATION CONSTORTIUM,12/07/2022,625.00
"Communities, Customer & Commercial Services",Sport & Leisure,Supplies & Services,Licences,L M Fitness UK Ltd,15/07/2022,"1,145.37"
"Communities, Customer & Commercial Services",Sport & Leisure,Supplies & Services,Sport Equip - Purchase,J P L LTD,12/07/2022,237.39
"Communities, Customer & Commercial Services",Sport & Leisure,Premises-Related Expenditure,Swimming Pool Chemicals,BRENNTAG UK LIMITED,28/07/2022,140.25
"Communities, Customer & Commercial Services",Sport & Leisure,Supplies & Services,Protective Clothing,J L & SONS LTD,28/07/2022,130.28
"Communities, Customer & Commercial Services",Sport & Leisure,Supplies & Services,Items For Resale,Splash About International Limited,21/07/2022,405.40
"Communities, Customer & Commercial Services",Sport & Leisure,Capital Expenditure,Payments to Contractor,luther engineering services ltd,06/07/2022,"1,628.06"
"Communities, Customer & Commercial Services",Sport & Leisure,Capital Expenditure,Payments to Contractor,Landscape Plants (Cleobury) Limited,22/07/2022,"1,001.60"
Corporate Communications,Communications & Marketing,Supplies & Services,Community Newspaper,ROYAL MAIL GROUP PLC ,04/07/2022,"2,962.99"
Corporate Communications,Communications & Marketing,Capital Expenditure,Other Capital Expenditure,MDT REPROGRAPHICS LTD,26/07/2022,566.80
Corporate Items,Corporate Codes,Capital Financing Costs,Penalty Deductions,PYRAMID SCHOOLS (HADLEY) LTD,20/07/2022,"-1,802.87"
Corporate Items,Corporate Codes,Capital Financing Costs,Unitary Charge,PYRAMID SCHOOLS (HADLEY) LTD,20/07/2022,"931,720.82"
Corporate Items,Corporate Codes,Employees,Agency Supply Costs,Matrix SCM,06/07/2022,"34,100.25"
Corporate Items,Corporate Codes,Employees,Agency Supply Costs,Matrix SCM,06/07/2022,"44,290.77"
Corporate Items,Corporate Codes,Employees,Agency Supply Costs,Matrix SCM,20/07/2022,"37,512.24"
Corporate Items,Corporate Codes,Employees,Agency Supply Costs,Matrix SCM,13/07/2022,"46,196.71"
Corporate Items,Corporate Codes,Employees,Agency Supply Costs,Matrix SCM,27/07/2022,"41,829.75"
Corporate Items,Corporate Codes,Employees,Ops Holding Account,CHILDCARE VOUCHERS LTD,20/07/2022,"3,325.00"
Education & Skills,Consultancy & Advisory Services,Employees,Professional Subs,School Improvement Liverpool,29/07/2022,"1,500.00"
Education & Skills,Consultancy & Advisory Services,Supplies & Services,Mobile Phones,EE LTD EQUIPMENT ,18/07/2022,284.00
Education & Skills,Consultancy & Advisory Services,Premises-Related Expenditure,Hire Of Rooms,Mercure Telford Centre Hotel,12/07/2022,112.50
Education & Skills,Consultancy & Advisory Services,Premises-Related Expenditure,Hire Of Rooms,Mercure Telford Centre Hotel,29/07/2022,112.50
Education & Skills,Consultancy & Advisory Services,Premises-Related Expenditure,Hire Of Rooms,Mercure Telford Centre Hotel,29/07/2022,112.50
Education & Skills,Consultancy & Advisory Services,Supplies & Services,Training Costs - Participants Recharged,Mercure Telford Centre Hotel,12/07/2022,228.89
Education & Skills,Consultancy & Advisory Services,Supplies & Services,Training Costs - Participants Recharged,Mercure Telford Centre Hotel,29/07/2022,206.00
Education & Skills,Consultancy & Advisory Services,Supplies & Services,Training Costs - Participants Recharged,Mercure Telford Centre Hotel,29/07/2022,206.00
Education & Skills,Consultancy & Advisory Services,Employees,Training Exp�s (Facilitators),D U Consultancy LTD,18/07/2022,500.00
Education & Skills,Consultancy & Advisory Services,Employees,Training Exp�s (Facilitators),Scrappies,29/07/2022,105.00
Education & Skills,Consultancy & Advisory Services,Premises-Related Expenditure,Hire Of Rooms,MEETING POINT TRUST LTD,06/07/2022,410.00
Education & Skills,Consultancy & Advisory Services,Premises-Related Expenditure,Hire Of Rooms,MEETING POINT TRUST LTD,29/07/2022,365.00
Education & Skills,Consultancy & Advisory Services,Supplies & Services,Mobile Phones,EE LTD EQUIPMENT ,18/07/2022,568.00
Education & Skills,Consultancy & Advisory Services,Supplies & Services,Training Costs - Participants Recharged,MEETING POINT TRUST LTD,29/07/2022,112.50
Education & Skills,Consultancy & Advisory Services,Supplies & Services,Comp Hardware (Purch / Hire),CCS MEDIA LIMITED,12/07/2022,590.60
Education & Skills,Consultancy & Advisory Services,Premises-Related Expenditure,Hire Of Rooms,MEETING POINT TRUST LTD,06/07/2022,450.00
Education & Skills,Consultancy & Advisory Services,Supplies & Services,Comp Software (Purch / Hire),ELKLAN TRAINING LTD,29/07/2022,130.00
Education & Skills,Education & Skills,Capital Expenditure,Payments to Contractor,Integral Roofing and Maintenance Services Ltd,13/07/2022,"49,797.18"
Education & Skills,Education & Skills,Capital Expenditure,Payments to Contractor,GRANVILLE CONSTRUCTION & MAINTENANCE LTD,29/07/2022,"1,604.35"
Education & Skills,Education & Skills,Capital Expenditure,Legal Fees,W H SOLICITORS,25/07/2022,364.80
Education & Skills,Education & Skills,Capital Expenditure,Legal Fees,W H SOLICITORS,25/07/2022,136.80
Education & Skills,Education & Skills,Capital Expenditure,Payments to Contractor,Security Wise Ltd,29/07/2022,375.00
Education & Skills,Education & Skills,Capital Expenditure,Payments to Contractor,CCS MEDIA LIMITED,27/07/2022,596.73
Education & Skills,Education & Skills,Capital Expenditure,Payments to Contractor,P (BUILDERS) LTD,21/07/2022,"25,550.00"
Education & Skills,Education & Skills,Capital Expenditure,Payments to Contractor,SGS United Kingdom Limited,19/07/2022,450.00
Education & Skills,Education & Skills,Capital Expenditure,Payments to Contractor,SGS United Kingdom Limited,19/07/2022,350.00
Education & Skills,Education & Skills,Capital Expenditure,Payments to Contractor,TDR Heating & Ventilation Engineers,04/07/2022,"61,314.43"
Education & Skills,Education & Skills,Capital Expenditure,Payments to Contractor,GRANVILLE CONSTRUCTION & MAINTENANCE LTD,29/07/2022,"1,205.00"
Education & Skills,Education & Skills,Capital Expenditure,Payments to Contractor,GRANVILLE CONSTRUCTION & MAINTENANCE LTD,01/07/2022,"3,200.00"
Education & Skills,Education & Skills,Capital Expenditure,Payments to Contractor,GRANVILLE CONSTRUCTION & MAINTENANCE LTD,01/07/2022,"4,894.18"
Education & Skills,Education & Skills,Capital Expenditure,Payments to Contractor,G I Sykes Ltd,01/07/2022,"8,395.73"
Education & Skills,Education & Skills,Capital Expenditure,Payments to Contractor,MERCIAN MASTERPLAN LTD,19/07/2022,118.80
Education & Skills,Education & Skills,Capital Expenditure,Payments to Contractor,CCS MEDIA LIMITED,07/07/2022,"22,247.40"
Education & Skills,Education & Skills,Capital Expenditure,Payments to Contractor,CCS MEDIA LIMITED,07/07/2022,385.72
Education & Skills,Education & Skills,Capital Expenditure,Payments to Contractor,CCS MEDIA LIMITED,07/07/2022,"3,047.20"
Education & Skills,Education & Skills,Capital Expenditure,Payments to Contractor,CCS MEDIA LIMITED,15/07/2022,768.00
Education & Skills,Education & Skills,Capital Expenditure,Payments to Contractor,CCS MEDIA LIMITED,13/07/2022,"9,852.78"
Education & Skills,Education & Skills,Capital Expenditure,Payments to Contractor,CCS MEDIA LIMITED,13/07/2022,"7,815.09"
Education & Skills,Education & Skills,Capital Expenditure,Payments to Contractor,W D Construction Ltd,27/07/2022,"728,429.67"
Education & Skills,Education & Skills,Capital Expenditure,Payments to Contractor,SHROPSHIRE BLINDS & AWNINGS LIMITED,25/07/2022,"1,621.00"
Education & Skills,Education & Skills,Capital Expenditure,Payments to Contractor,WREKIN REMOVALS,12/07/2022,"2,631.25"
Education & Skills,Education & Skills,Capital Expenditure,Payments to Contractor,DFE (UK) LTD,12/07/2022,625.00
Education & Skills,Education & Skills,Capital Expenditure,Payments to Contractor,WREKIN REMOVALS,12/07/2022,"1,500.00"
Education & Skills,Education & Skills,Capital Expenditure,Payments to Contractor,SGS United Kingdom Limited,19/07/2022,225.00
Education & Skills,Education & Skills,Capital Expenditure,Payments to Contractor,WREKIN REMOVALS,19/07/2022,124.50
Education & Skills,Education & Skills,Capital Expenditure,Payments to Contractor,WREKIN SELF STORAGE LTD,19/07/2022,200.00
Education & Skills,Education & Skills,Capital Expenditure,Payments to Contractor,Red Kite Network Limited,20/07/2022,368.55
Education & Skills,Education & Skills,Capital Expenditure,Payments to Contractor,WREKIN SELF STORAGE LTD,20/07/2022,585.00
Education & Skills,Education & Skills,Capital Expenditure,Payments to Contractor,GRANVILLE CONSTRUCTION & MAINTENANCE LTD,26/07/2022,"2,380.00"
Education & Skills,Education & Skills,Capital Expenditure,Payments to Contractor,GRANVILLE CONSTRUCTION & MAINTENANCE LTD,26/07/2022,"5,503.76"
Education & Skills,Education & Skills,Capital Expenditure,Payments to Contractor,GRANVILLE CONSTRUCTION & MAINTENANCE LTD,26/07/2022,"8,200.00"
Education & Skills,Education & Skills,Capital Expenditure,Payments to Contractor,GRANVILLE CONSTRUCTION & MAINTENANCE LTD,26/07/2022,"9,081.14"
Education & Skills,Pupil Support Services,Third Party Payments,Misc. Education Payments to Non Schools,HRP Education,01/07/2022,196.00
Education & Skills,Pupil Support Services,Supplies & Services,Equipment - Purchase,NORMANS MUSICAL INSTRUMENTS,15/07/2022,155.00
Education & Skills,Pupil Support Services,Supplies & Services,Equipment - Purchase,CHAMBERLAIN MUSIC,12/07/2022,632.61
Education & Skills,Pupil Support Services,Supplies & Services,Equipment - Purchase,Heritage Music & C Strings,12/07/2022,129.50
Education & Skills,Pupil Support Services,Supplies & Services,Equipment - Purchase,Heritage Music & C Strings,04/07/2022,343.50
Education & Skills,Pupil Support Services,Supplies & Services,Artistes Fees,REDACTED PERSONAL INFORMATION,29/07/2022,"3,150.00"
Education & Skills,Pupil Support Services,Supplies & Services,Artistes Fees,REDACTED PERSONAL INFORMATION,29/07/2022,"2,000.00"
Education & Skills,SEND (0-25),Transport-Related Expenditure,Taxi Costs,Telford Taxi Hire Limited,25/07/2022,"1,320.00"
Education & Skills,SEND (0-25),Transport-Related Expenditure,Taxi Costs,Go Carz,25/07/2022,"1,102.00"
Education & Skills,SEND (0-25),Transport-Related Expenditure,Transport Contractors,Telford Taxi Hire Limited,25/07/2022,"4,560.00"
Education & Skills,SEND (0-25),Transport-Related Expenditure,Taxi Costs, Go Carz,08/07/2022,336.00
Education & Skills,SEND (0-25),Transport-Related Expenditure,Taxi Costs,A2B Transports,14/07/2022,"1,320.00"
Education & Skills,SEND (0-25),Transport-Related Expenditure,Taxi Costs,A2B Transports,14/07/2022,"1,794.50"
Education & Skills,SEND (0-25),Transport-Related Expenditure,Taxi Costs,A-STAR TRANSPORT MIDLANDS LTD,13/07/2022,"1,862.00"
Education & Skills,SEND (0-25),Transport-Related Expenditure,Taxi Costs,A-STAR TRANSPORT MIDLANDS LTD,13/07/2022,"6,175.00"
Education & Skills,SEND (0-25),Transport-Related Expenditure,Taxi Costs, Go Carz,08/07/2022,"2,400.00"
Education & Skills,SEND (0-25),Transport-Related Expenditure,Taxi Costs,Go Carz,08/07/2022,810.00
Education & Skills,SEND (0-25),Transport-Related Expenditure,Taxi Costs,ULTIMATE TAXIS LTD,25/07/2022,"1,320.00"
Education & Skills,SEND (0-25),Transport-Related Expenditure,Taxi Costs,A2B Transports,18/07/2022,"3,663.00"
Education & Skills,SEND (0-25),Transport-Related Expenditure,Taxi Costs,Go Carz,18/07/2022,312.00
Education & Skills,SEND (0-25),Transport-Related Expenditure,Taxi Costs,A2B Transports,18/07/2022,"1,023.50"
Education & Skills,SEND (0-25),Transport-Related Expenditure,Taxi Costs,A2B Transports,18/07/2022,"2,831.00"
Education & Skills,SEND (0-25),Transport-Related Expenditure,Taxi Costs,Go Carz,18/07/2022,"3,422.00"
Education & Skills,SEND (0-25),Transport-Related Expenditure,Taxi Costs,Go Carz,22/07/2022,"1,247.00"
Education & Skills,SEND (0-25),Transport-Related Expenditure,Taxi Costs,Go Carz,22/07/2022,195.00
Education & Skills,SEND (0-25),Transport-Related Expenditure,Taxi Costs,Go Carz,08/07/2022,554.40
Education & Skills,SEND (0-25),Transport-Related Expenditure,Taxi Costs,Go Carz,08/07/2022,"1,383.00"
Education & Skills,SEND (0-25),Transport-Related Expenditure,Taxi Costs,Go Carz,22/07/2022,"1,464.00"
Education & Skills,SEND (0-25),Transport-Related Expenditure,Taxi Costs,Go Carz,22/07/2022,848.00
Education & Skills,SEND (0-25),Transport-Related Expenditure,Taxi Costs,Go Carz,22/07/2022,272.00
Education & Skills,SEND (0-25),Transport-Related Expenditure,Taxi Costs,Go Carz,22/07/2022,369.60
Education & Skills,SEND (0-25),Transport-Related Expenditure,Taxi Costs,Go Carz,22/07/2022,234.00
Education & Skills,SEND (0-25),Transport-Related Expenditure,Taxi Costs,Go Carz,22/07/2022,600.00
Education & Skills,SEND (0-25),Transport-Related Expenditure,Taxi Costs,Go Carz,22/07/2022,560.00
Education & Skills,SEND (0-25),Transport-Related Expenditure,Taxi Costs,Go Carz,22/07/2022,725.00
Education & Skills,SEND (0-25),Transport-Related Expenditure,Taxi Costs,Go Carz,29/07/2022,"3,477.00"
Education & Skills,SEND (0-25),Transport-Related Expenditure,Taxi Costs,Go Carz,29/07/2022,128.00
Education & Skills,SEND (0-25),Transport-Related Expenditure,Taxi Costs,Go Carz,29/07/2022,128.00
Education & Skills,SEND (0-25),Transport-Related Expenditure,Taxi Costs,Go Carz,29/07/2022,"1,412.00"
Education & Skills,SEND (0-25),Transport-Related Expenditure,Taxi Costs,24X7 Ltd,29/07/2022,"1,051.20"
Education & Skills,SEND (0-25),Transport-Related Expenditure,Taxi Costs,24X7 Ltd,29/07/2022,553.55
Education & Skills,SEND (0-25),Transport-Related Expenditure,Taxi Costs,24X7 Ltd,29/07/2022,"1,541.76"
Education & Skills,SEND (0-25),Transport-Related Expenditure,Taxi Costs,Go Carz,29/07/2022,"1,213.00"
Education & Skills,SEND (0-25),Transport-Related Expenditure,Taxi Costs,Go Carz,29/07/2022,424.00
Education & Skills,SEND (0-25),Transport-Related Expenditure,Taxi Costs,Go Carz,29/07/2022,750.00
Education & Skills,SEND (0-25),Transport-Related Expenditure,Taxi Costs,Go Carz,29/07/2022,487.20
Education & Skills,SEND (0-25),Transport-Related Expenditure,Taxi Costs,Go Carz,29/07/2022,128.00
Education & Skills,SEND (0-25),Transport-Related Expenditure,Taxi Costs,Go Carz,28/07/2022,273.00
Education & Skills,SEND (0-25),Transport-Related Expenditure,Taxi Costs,Go Carz,28/07/2022,480.00
Education & Skills,SEND (0-25),Employees,Staff Training,COMMUNICATE-ED,28/07/2022,190.00
Education & Skills,SEND (0-25),Premises-Related Expenditure,Hire Of Rooms,The Shropshire Golf Centre,11/07/2022,108.75
Education & Skills,SEND (0-25),Employees,Staff Training,Tacpac Limited,25/07/2022,120.00
Education & Skills,SEND (0-25),Supplies & Services,Other Services,Permanent Futures Ltd,08/07/2022,"1,150.00"
Education & Skills,SEND (0-25),Supplies & Services,Other Services,Permanent Futures Ltd,08/07/2022,"2,300.00"
Education & Skills,SEND (0-25),Supplies & Services,Other Services,Permanent Futures Ltd,08/07/2022,"2,300.00"
Education & Skills,SEND (0-25),Supplies & Services,Other Services,Permanent Futures Ltd,08/07/2022,"1,100.00"
Education & Skills,SEND (0-25),Supplies & Services,Other Services,EDEN BROWN LTD,20/07/2022,"2,750.00"
Education & Skills,SEND (0-25),Supplies & Services,Other Services,EDEN BROWN LTD,20/07/2022,"2,750.00"
Education & Skills,SEND (0-25),Supplies & Services,Other Services,EDEN BROWN LTD,20/07/2022,"2,200.00"
Education & Skills,SEND (0-25),Supplies & Services,Other Services,Association of Educational Psychologist,20/07/2022,700.00
Education & Skills,SEND (0-25),Third Party Payments,DSG - High Needs Block,SHROPSHIRE COMMUNITY HEALTH NHS TRUST,20/07/2022,"4,000.00"
Education & Skills,SEND (0-25),Third Party Payments,DSG - High Needs Block,Bridge Therapy,20/07/2022,446.00
Education & Skills,SEND (0-25),Third Party Payments,DSG - High Needs Block,Queensway HLC,27/07/2022,"94,105.00"
Education & Skills,SEND (0-25),Third Party Payments,DSG - High Needs Block,Queensway HLC,27/07/2022,"63,796.58"
Education & Skills,SEND (0-25),Third Party Payments,DSG - High Needs Block,HIGHLAND COUNCIL,25/07/2022,"10,710.00"
Education & Skills,SEND (0-25),Third Party Payments,DSG - High Needs Block,Keys PCE Limited,25/07/2022,"2,550.00"
Education & Skills,SEND (0-25),Third Party Payments,DSG - High Needs Block,Acorn Care & Education Ltd,25/07/2022,"4,816.11"
Education & Skills,SEND (0-25),Third Party Payments,DSG - High Needs Block,SEVERNDALE SPECIALIST ACADEMY,20/07/2022,"7,000.00"
Education & Skills,SEND (0-25),Third Party Payments,DSG - High Needs Block,Tettenhall College,20/07/2022,"1,821.00"
Education & Skills,SEND (0-25),Third Party Payments,DSG - High Needs Block,Tettenhall College,20/07/2022,"11,841.37"
Education & Skills,SEND (0-25),Third Party Payments,DSG - High Needs Block,Nisai Virtual Academy Limited,27/07/2022,"1,167.00"
Education & Skills,SEND (0-25),Employees,Agency Supply Costs,Guide Dogs for the Blind,20/07/2022,"2,710.00"
Education & Skills,SEND (0-25),Supplies & Services,Equipment - Purchase,OTICON LIMITED,27/07/2022,259.00
Education & Skills,SEND (0-25),Supplies & Services,Equipment - Purchase,OTICON LIMITED,11/07/2022,112.00
Education & Skills,SEND (0-25),Supplies & Services,Equipment - Purchase,PHONAK UK LTD,25/07/2022,437.34
Education & Skills,SEND (0-25),Supplies & Services,Equipment - Purchase,PHONAK UK LTD,25/07/2022,"1,121.36"
Education & Skills,SEND (0-25),Supplies & Services,Equipment - Purchase,PHONAK UK LTD,25/07/2022,"1,682.04"
Education & Skills,SEND (0-25),Supplies & Services,Equipment - Purchase,PHONAK UK LTD,25/07/2022,547.00
Education & Skills,SEND (0-25),Supplies & Services,Equipment - Purchase,PHONAK UK LTD,25/07/2022,547.00
Education & Skills,SEND (0-25),Supplies & Services,Equipment - Purchase,PHONAK UK LTD,25/07/2022,560.68
Education & Skills,SEND (0-25),Supplies & Services,Equipment - Purchase,OTICON LIMITED,11/07/2022,209.04
Education & Skills,SEND (0-25),Supplies & Services,Comp Hardware (Purch / Hire),CCS MEDIA LIMITED,27/07/2022,139.00
Education & Skills,SEND (0-25),Supplies & Services,Mobile Phones,EE LTD EQUIPMENT ,14/07/2022,142.00
Education & Skills,SEND (0-25),Premises-Related Expenditure,Hire Of Rooms,MEETING POINT TRUST LTD,27/07/2022,120.00
Education & Skills,SEND (0-25),Third Party Payments,DSG - High Needs Block,Right Mediation,20/07/2022,800.00
Education & Skills,SEND (0-25),Third Party Payments,DSG - High Needs Block,Right Mediation,25/07/2022,800.00
Education & Skills,SEND (0-25),Supplies & Services,Other Services,Send4Change Ltd,11/07/2022,"2,250.00"
Education & Skills,SEND (0-25),Third Party Payments,DSG - High Needs Block,HRP Education,25/07/2022,294.00
Education & Skills,SEND (0-25),Third Party Payments,DSG - High Needs Block,HRP Education,25/07/2022,245.00
Education & Skills,SEND (0-25),Third Party Payments,DSG - High Needs Block,HRP Education,25/07/2022,245.00
Education & Skills,SEND (0-25),Third Party Payments,DSG - High Needs Block,HRP Education,25/07/2022,294.00
Education & Skills,SEND (0-25),Third Party Payments,DSG - High Needs Block,HRP Education,25/07/2022,735.00
Education & Skills,SEND (0-25),Third Party Payments,DSG - High Needs Block,HRP Education,25/07/2022,294.00
Education & Skills,SEND (0-25),Third Party Payments,DSG - High Needs Block,HRP Education,25/07/2022,735.00
Education & Skills,SEND (0-25),Third Party Payments,DSG - High Needs Block,HRP Education,25/07/2022,735.00
Education & Skills,SEND (0-25),Third Party Payments,DSG - High Needs Block,HRP Education,25/07/2022,367.50
Education & Skills,SEND (0-25),Third Party Payments,DSG - High Needs Block,HRP Education,25/07/2022,980.00
Education & Skills,SEND (0-25),Third Party Payments,DSG - High Needs Block,HRP Education,25/07/2022,294.00
Education & Skills,SEND (0-25),Third Party Payments,DSG - High Needs Block,HRP Education,25/07/2022,588.00
Education & Skills,SEND (0-25),Third Party Payments,DSG - High Needs Block,HRP Education,25/07/2022,245.00
Education & Skills,SEND (0-25),Supplies & Services,Health & Safety Expenses,MIDSHIRES MOBILITY GROUP,12/07/2022,"2,451.55"
Education & Skills,SEND (0-25),Third Party Payments,DSG - High Needs Block,RED GEORGE RURAL SKILLS PROJECT,25/07/2022,200.00
Education & Skills,SEND (0-25),Third Party Payments,DSG - High Needs Block,RED GEORGE RURAL SKILLS PROJECT,25/07/2022,700.00
Education & Skills,SEND (0-25),Third Party Payments,DSG - High Needs Block,CONDOVER COLLEGE LTD,20/07/2022,"9,056.15"
Education & Skills,SEND (0-25),Third Party Payments,DSG - High Needs Block,TELFORD COLLEGE,18/07/2022,"360,092.33"
Education & Skills,Skills,Premises-Related Expenditure,Hire Of Rooms,DONNINGTON PARTNERSHIP,28/07/2022,140.25
Education & Skills,Skills,Premises-Related Expenditure,Hire Of Rooms,The Leegate Centre CIC,28/07/2022,240.00
Education & Skills,Skills,Premises-Related Expenditure,Hire Of Rooms,The Leegate Centre CIC,28/07/2022,240.00
Education & Skills,Skills,Premises-Related Expenditure,Hire Of Rooms,The Leegate Centre CIC,28/07/2022,120.00
Education & Skills,Skills,Premises-Related Expenditure,Hire Of Rooms,DONNINGTON PARTNERSHIP,28/07/2022,104.13
Education & Skills,Skills,Premises-Related Expenditure,Hire Of Rooms,DONNINGTON PARTNERSHIP,28/07/2022,187.00
Education & Skills,Skills,Premises-Related Expenditure,Hire Of Rooms,DONNINGTON PARTNERSHIP,28/07/2022,165.77
Education & Skills,Skills,Supplies & Services,Mobile Phones,EE LTD EQUIPMENT ,14/07/2022,142.00
Education & Skills,Skills,Supplies & Services,Exam Fees,OPEN COLLEGE NETWORK WEST MIDLANDS REGION,13/07/2022,126.00
Education & Skills,Skills,Supplies & Services,Exam Fees,OPEN COLLEGE NETWORK WEST MIDLANDS REGION,13/07/2022,168.00
Education & Skills,Skills,Supplies & Services,Exam Fees,CITY & GUILDS,13/07/2022,370.00
Education & Skills,Skills,Supplies & Services,Exam Fees,CITY & GUILDS,13/07/2022,407.00
Education & Skills,Skills,Supplies & Services,Computer Software (Maint),CogniSoft Limited,28/07/2022,"1,429.75"
Education & Skills,Skills,Supplies & Services,Exam Fees,CITY & GUILDS,28/07/2022,268.25
Education & Skills,Skills,Third Party Payments,Childminders,CHILDCARE SOS,13/07/2022,256.00
Education & Skills,Skills,Third Party Payments,Childminders,CHILDCARE SOS,13/07/2022,656.00
Education & Skills,Skills,Third Party Payments,Childminders,CHILDCARE SOS,28/07/2022,848.00
Education & Skills,Skills,Employees,Course Fees,QUALSAFE.COM,11/07/2022,255.75
Education & Skills,Skills,Premises-Related Expenditure,Hire Of Rooms,PARK LANE CENTRE,28/07/2022,485.00
Education & Skills,Skills,Supplies & Services,Consultancy,The Growth Company Limited,18/07/2022,"1,650.00"
Education & Skills,Skills,Supplies & Services,Computer Software (Maint),CogniSoft Limited,28/07/2022,"4,786.00"
Education & Skills,Skills,Supplies & Services,Subscriptions,Career Development Institute,28/07/2022,190.00
Education & Skills,Skills,Third Party Payments,Childminders,CHILDCARE SOS,28/07/2022,376.00
Education & Skills,Skills,Premises-Related Expenditure,Hire Of Rooms,Bright Star Boxing Academy,28/07/2022,780.00
Education & Skills,Skills,Supplies & Services,Computer Software (Maint),CogniSoft Limited,28/07/2022,"4,786.00"
Finance & Human Resources,Finance,Supplies & Services,Other Services,ALLPAY.NET LIMITED,18/07/2022,228.45
Finance & Human Resources,Finance,Supplies & Services,Other Services,ALLPAY.NET LIMITED,18/07/2022,"1,727.31"
Finance & Human Resources,Finance,Supplies & Services,External Audit Fees,G T UK LLP,14/07/2022,"24,045.50"
Finance & Human Resources,"Finance Manager (Business, Education & Care)",Employees,Professional Subs,AAT,01/07/2022, 167.00 
Finance & Human Resources,"Finance Manager (Business, Education & Care)",Employees,Professional Subs,AAT,01/07/2022, 167.00 
Finance & Human Resources,Finance Manager (Corporate & Capital),Employees,Staff Training,Severn Financial Training,14/07/2022,"1,505.00"
Finance & Human Resources,Finance Manager (Corporate & Capital),Employees,Staff Training,Severn Financial Training,14/07/2022,370.00
Finance & Human Resources,Finance Manager (Corporate & Capital),Employees,Staff Training,CIPFA BUSINESS LTD,18/07/2022,590.00
Finance & Human Resources,Finance Manager (Corporate & Capital),Supplies & Services,Advertising,THE MIDLAND NEWS ASSOCIATION LTD,08/07/2022,277.20
Finance & Human Resources,Finance Manager (Corporate & Capital),Supplies & Services,Bank Charges,TALL Security Print Ltd,01/07/2022,487.89
Finance & Human Resources,Human Resources,Employees,Criminal Records Bureau Checks,Capita Recruitment Vetting Service,18/07/2022,725.85
Finance & Human Resources,Human Resources,Employees,Recruitment Advertising,Spacehouse Ltd,18/07/2022,"2,000.00"
Finance & Human Resources,Human Resources,Supplies & Services,Doctors Fees,Ensure Health LTD,14/07/2022,490.00
Finance & Human Resources,Human Resources,Supplies & Services,Doctors Fees,Ensure Health LTD,14/07/2022,350.00
Finance & Human Resources,Human Resources,Supplies & Services,Subscriptions,LNRS Data Services Limited,13/07/2022,725.00
Finance & Human Resources,Revenues,Supplies & Services,Printing - Other,Manchester Printers Ltd,07/07/2022,130.00
Finance & Human Resources,Revenues,Supplies & Services,Printing - Other,SIGNS EXPRESS (TELFORD),26/07/2022,148.00
Finance & Human Resources,Revenues,Supplies & Services,Printing - Other,PrintCheck Ltd - PCG Media Group,27/07/2022,129.60
Finance & Human Resources,Revenues,Supplies & Services,Printing - Other,PrintCheck Ltd - PCG Media Group,27/07/2022,319.50
Finance & Human Resources,Revenues,Supplies & Services,Printing - Other,TUDOR PRINT & SIGNS,28/07/2022,171.00
Finance & Human Resources,Revenues,Supplies & Services,Printing - Other,Visual Print & Design,29/07/2022,440.00
Finance & Human Resources,Revenues,Supplies & Services,Printing - Other,MARKETING AT THE MILL,11/07/2022,507.00
Finance & Human Resources,Revenues,Supplies & Services,Printing - Other,MARKETING AT THE MILL,14/07/2022,325.00
Finance & Human Resources,Revenues,Supplies & Services,Printing - Other,MARKETING AT THE MILL,12/07/2022,138.00
Finance & Human Resources,Revenues,Supplies & Services,Printing - Other,MARKETING AT THE MILL,01/07/2022,140.00
Finance & Human Resources,Revenues,Supplies & Services,Printing - Other,The Severn Sign & Print Company Ltd,12/07/2022,535.00
Finance & Human Resources,Revenues,Supplies & Services,Printing - Other,Prontaprint - Stratford,22/07/2022,320.00
Finance & Human Resources,Revenues,Supplies & Services,Quarterly rental/service charge for printing machine,RICOH UK LIMITED,25/07/2022,"-5,605.28"
Finance & Human Resources,Revenues,Supplies & Services,Quarterly rental/service charge for printing machine,RICOH UK LIMITED,25/07/2022,"7,938.77"
Finance & Human Resources,Revenues,Supplies & Services,Printing - Other,MailSolutions,09/07/2022,"1,088.50"
Finance & Human Resources,Revenues,Supplies & Services,Printing - Other,MARKETING AT THE MILL,09/07/2022,280.00
Finance & Human Resources,Revenues,Supplies & Services,Printing - Other,MARKETING AT THE MILL,09/07/2022,220.00
Finance & Human Resources,Revenues,Supplies & Services,Printing - Other,WPG Limited,06/07/2022,"2,934.00"
Finance & Human Resources,Revenues,Supplies & Services,Printing - Other,WPG Limited,06/07/2022,702.04
Finance & Human Resources,Revenues,Supplies & Services,Stationery,PREMIER PAPER GROUP LTD,14/07/2022,277.92
Finance & Human Resources,Revenues,Supplies & Services,Stationery,PREMIER PAPER GROUP LTD,12/07/2022,131.22
Finance & Human Resources,Revenues,Supplies & Services,Stationery,PREMIER PAPER GROUP LTD,12/07/2022,108.08
Finance & Human Resources,Revenues,Supplies & Services,Stationery,Antalis Limited,12/07/2022,402.90
Finance & Human Resources,Revenues,Supplies & Services,Stationery,Antalis Limited,22/07/2022,100.90
Finance & Human Resources,Revenues,Supplies & Services,Printing - Other,WPG Limited,06/07/2022,"4,828.00"
Finance & Human Resources,Revenues,Supplies & Services,Printing - Other,WPG Limited,06/07/2022,"-3,520.80"
Finance & Human Resources,Revenues,Supplies & Services,Stationery,Antalis Limited,17/07/2022,361.00
Finance & Human Resources,Revenues,Supplies & Services,Printing - Other,WPG Limited,01/07/2022,"3,520.80"
Finance & Human Resources,Revenues,Supplies & Services,Stationery,Antalis Limited,11/07/2022,361.00
Finance & Human Resources,Revenues,Supplies & Services,Postages,FREELANCE BUSINESS ASSOCIATES,15/07/2022,360.00
Finance & Human Resources,Revenues,Supplies & Services,Postages,ROYAL MAIL GROUP PLC ,14/07/2022,136.23
Finance & Human Resources,Revenues,Supplies & Services,Postages,ROYAL MAIL GROUP PLC ,01/07/2022,"3,756.17"
Finance & Human Resources,Revenues,Supplies & Services,Postages,ROYAL MAIL GROUP PLC,15/07/2022,"8,522.25"
Finance & Human Resources,Revenues,Supplies & Services,Postages,ROYAL MAIL GROUP PLC ,14/07/2022,"1,979.96"
Finance & Human Resources,Revenues,Supplies & Services,Postages,ROYAL MAIL GROUP PLC ,21/07/2022,"3,202.57"
Finance & Human Resources,Revenues,Supplies & Services,Franking Machine Service,FRANCOTYP-POSTALIA LTD ,21/07/2022,500.00
Finance & Human Resources,Revenues,Supplies & Services,Franking Machine Service,FRANCOTYP-POSTALIA LTD,21/07/2022,500.00
Finance & Human Resources,Revenues,Supplies & Services,Energy Rebate Payment,Energy Rebate Payments,22/07/2022,150.00
Finance & Human Resources,Revenues,Supplies & Services,Energy Rebate Payment,Energy Rebate Payments,22/07/2022,150.00
Finance & Human Resources,Revenues,Supplies & Services,Energy Rebate Payment,Energy Rebate Payments,04/07/2022,150.00
Finance & Human Resources,Revenues,Supplies & Services,Energy Rebate Payment,Energy Rebate Payments,08/07/2022,150.00
Finance & Human Resources,Revenues,Supplies & Services,Energy Rebate Payment,Energy Rebate Payments,28/07/2022,150.00
Finance & Human Resources,Revenues,Supplies & Services,Energy Rebate Payment,Energy Rebate Payments,29/07/2022,150.00
Finance & Human Resources,Revenues,Employees,Off site processing,NEC Software Solutions UK Ltd,06/07/2022,"1,137.96"
Finance & Human Resources,Revenues,Employees,Off site processing,NEC Software Solutions UK Ltd,28/07/2022,"5,515.40"
Finance & Human Resources,Revenues,Supplies & Services,Legal Expenses,J F Law Limited,05/07/2022,"1,806.00"
Finance & Human Resources,Revenues,Supplies & Services,Printing - Other,Financial Data Management plc,01/07/2022,"1,087.40"
Finance & Human Resources,Revenues,Supplies & Services,Printing - Other,Financial Data Management plc,01/07/2022,180.01
Finance & Human Resources,Revenues,Supplies & Services,Printing - Other,Financial Data Management plc,01/07/2022,"2,067.00"
Finance & Human Resources,Revenues,Supplies & Services,Printing - Other,Financial Data Management plc,11/07/2022,184.97
Finance & Human Resources,Revenues,Supplies & Services,Printing - Other,Financial Data Management plc,11/07/2022,204.50
Finance & Human Resources,Revenues,Supplies & Services,Postages,Financial Data Management plc,08/07/2022,461.45
Finance & Human Resources,Revenues,Supplies & Services,Postages,Financial Data Management plc,08/07/2022,202.32
Finance & Human Resources,Revenues,Supplies & Services,Postages,Financial Data Management plc,12/07/2022,696.83
Finance & Human Resources,Revenues,Supplies & Services,Postages,Financial Data Management plc,12/07/2022,336.89
Finance & Human Resources,Revenues,Supplies & Services,Postages,Financial Data Management plc,08/07/2022,534.65
Finance & Human Resources,Revenues,Supplies & Services,Postages,Financial Data Management plc,08/07/2022,460.94
Finance & Human Resources,Revenues,Supplies & Services,Postages,Financial Data Management plc,12/07/2022,"1,292.66"
Finance & Human Resources,Revenues,Supplies & Services,Postages,Financial Data Management plc,28/07/2022,482.61
Finance & Human Resources,Revenues,Supplies & Services,Postages,Financial Data Management plc,28/07/2022,219.39
Finance & Human Resources,Revenues,Supplies & Services,Postages,Financial Data Management plc,15/07/2022,690.55
Finance & Human Resources,Revenues,Supplies & Services,Postages,Financial Data Management plc,15/07/2022,295.70
Finance & Human Resources,Revenues,Supplies & Services,Printing - Other,Financial Data Management plc,01/07/2022,"1,512.02"
Health & Wellbeing,Consultant in Public Health,Third Party Payments,Health Funded Services,"NHS Shropshire, Telford and Wrekin CCG",29/07/2022,"2,103.20"
Health & Wellbeing,Consultant in Public Health,Third Party Payments,Health Funded Services,"NHS Shropshire, Telford and Wrekin CCG",29/07/2022,"2,103.20"
Health & Wellbeing,Consultant in Public Health,Third Party Payments,Health Funded Services,"NHS Shropshire, Telford and Wrekin CCG",29/07/2022,"2,103.20"
Health & Wellbeing,Consultant in Public Health,Employees,Staff Training,LOUDMOUTH EDUCATION & TRAINING LTD,26/07/2022,695.00
Health & Wellbeing,Consultant in Public Health,Premises-Related Expenditure,Hire Of Rooms,PARK LANE CENTRE,26/07/2022,564.00
Health & Wellbeing,Consultant in Public Health,Supplies & Services,Sub Contractors,A Better Tomorrow C.I.C.,29/07/2022,"26,279.77"
Health & Wellbeing,Consultant in Public Health,Supplies & Services,Security Services,Archer Security Ltd,18/07/2022,"2,248.72"
Health & Wellbeing,Consultant in Public Health,Supplies & Services,Sub Contractors,Alere Uk Holdings Ltd,07/07/2022,107.50
Health & Wellbeing,Consultant in Public Health,Supplies & Services,Sub Contractors,NHS Midlands and Lancashire CSU,07/07/2022,"3,206.43"
Health & Wellbeing,Consultant in Public Health,Supplies & Services,Service Contracts,TACT,29/07/2022,"33,750.00"
Health & Wellbeing,Consultant in Public Health,Supplies & Services,Service Contracts,TACT,29/07/2022,"33,750.00"
Health & Wellbeing,Consultant in Public Health,Supplies & Services,Service Contracts,Midlands Partnership NHS Trust,01/07/2022,"443,557.73"
Health & Wellbeing,Consultant in Public Health,Supplies & Services,Sub Contractors,Dudley Group of Hospitals NHS Foundation Trust,26/07/2022,373.00
Health & Wellbeing,Consultant in Public Health,Supplies & Services,Sub Contractors,Sandwell & West Birmingham Hospitals NHS Trust,04/07/2022,105.00
Health & Wellbeing,Consultant in Public Health,Supplies & Services,Sub Contractors,Chelsea and Westminster Hospital,12/07/2022,100.89
Health & Wellbeing,Consultant in Public Health,Supplies & Services,Sub Contractors,The Royal Wolverhampton NHS Trust,12/07/2022,105.00
Health & Wellbeing,Consultant in Public Health,Supplies & Services,Comp Software (Purch / Hire),SHROPSHIRE COUNCIL ,25/07/2022,"4,536.00"
Health & Wellbeing,Consultant in Public Health,Supplies & Services,Comp Software (Purch / Hire),SHROPSHIRE COUNCIL ,21/07/2022,"1,265.29"
Health & Wellbeing,Consultant in Public Health,Supplies & Services,Comp Software (Purch / Hire),SHROPSHIRE COUNCIL ,29/07/2022,"2,530.58"
Health & Wellbeing,Consultant in Public Health,Supplies & Services,Comp Software (Purch / Hire),SHROPSHIRE COUNCIL ,21/07/2022,"1,080.00"
Health & Wellbeing,Consultant in Public Health,Supplies & Services,Comp Software (Purch / Hire),SHROPSHIRE COUNCIL ,21/07/2022,"2,268.00"
Health & Wellbeing,Consultant in Public Health,Supplies & Services,Other Services,SHROPSHIRE COMMUNITY HEALTH NHS TRUST,01/07/2022,"-701,208.25"
Health & Wellbeing,Consultant in Public Health,Supplies & Services,Other Services,SHROPSHIRE COMMUNITY HEALTH NHS TRUST,01/07/2022,"701,208.25"
Health & Wellbeing,Consultant in Public Health,Supplies & Services,Other Services,SHROPSHIRE COMMUNITY HEALTH NHS TRUST,01/07/2022,"233,736.08"
Health & Wellbeing,Consultant in Public Health,Premises-Related Expenditure,Hire Of Rooms,PARK LANE CENTRE,29/07/2022,712.00
Health & Wellbeing,Consultant in Public Health,Premises-Related Expenditure,Hire Of Rooms,PARK LANE CENTRE,29/07/2022,144.00
Health & Wellbeing,Consultant in Public Health,Premises-Related Expenditure,Other,SHREWSBURY & TELFORD HOSPITAL NHS TRUST,22/07/2022,"6,224.29"
Health & Wellbeing,Consultant in Public Health,Premises-Related Expenditure,Other,SHREWSBURY & TELFORD HOSPITAL NHS TRUST,22/07/2022,"18,672.87"
Health & Wellbeing,Consultant in Public Health,Supplies & Services,Other Expenses,SHROPSHIRE COUNCIL ,28/07/2022,"20,000.00"
Health & Wellbeing,Health Improvement,Supplies & Services,Subscriptions,Specialist Support Services,18/07/2022,360.00
Health & Wellbeing,Health Improvement,Premises-Related Expenditure,Hire Of Rooms,DONNINGTON PARTNERSHIP,14/07/2022,224.00
Health & Wellbeing,Health Improvement,Third Party Payments,Interpreters Fees,VISS Sign Language Interpreting Service,14/07/2022,115.00
Health & Wellbeing,Health Improvement,Third Party Payments,Interpreters Fees,VISS Sign Language Interpreting Service,14/07/2022,115.00
Health & Wellbeing,Health Improvement,Supplies & Services,Other Grants (Expenses),CAT - Telford Priory School,27/07/2022,"26,550.00"
Health & Wellbeing,Health Improvement,Supplies & Services,Other Grants (Expenses),Windmill Primary School Academy,18/07/2022,"8,066.00"
Health & Wellbeing,Health Improvement,Supplies & Services,Other Grants (Expenses),NEWDALE PRIMARY SCHOOL & NURSERY,18/07/2022,"8,100.00"
Health & Wellbeing,Health Improvement,Supplies & Services,Other Grants (Expenses),CEIA,11/07/2022,"12,665.85"
Health & Wellbeing,Health Improvement,Supplies & Services,Other Grants (Expenses),GREAT DAWLEY PARISH COUNCIL,11/07/2022,"13,403.06"
Health & Wellbeing,Health Improvement,Supplies & Services,Other Grants (Expenses),HOLLINSWOOD & RANDLAY PARISH COUNCIL,11/07/2022,"8,858.18"
Health & Wellbeing,Health Improvement,Supplies & Services,Other Grants (Expenses),Sutton Hill Community Trust,11/07/2022,"6,986.04"
Health & Wellbeing,Health Improvement,Supplies & Services,Other Grants (Expenses),Casey�s Cordingley Hall,11/07/2022,"13,000.00"
Health & Wellbeing,Health Improvement,Supplies & Services,Other Grants (Expenses),TWIGGYS DAY NURSERY MADELEY,11/07/2022,"1,300.00"
Health & Wellbeing,Health Improvement,Supplies & Services,Other Grants (Expenses),Twiggys Day Nursery Ltd SUTTON HILL,11/07/2022,"2,080.00"
Health & Wellbeing,Health Improvement,Supplies & Services,Other Grants (Expenses),Old Park Primary SCHOOL FUND,11/07/2022,"5,166.66"
Health & Wellbeing,Health Improvement,Employees,Professional Subs,POETRY ON LOAN,06/07/2022,210.00
Health & Wellbeing,Health Improvement,Supplies & Services,Libraries Book Fund,P  LTD,01/07/2022,327.05
Health & Wellbeing,Health Improvement,Supplies & Services,Libraries Book Fund,W F H LTD,15/07/2022,126.40
